Directorate,Department,Expenditure Type,Ref.Doc.1,Vendor Name,Expenditure Amount (exc VAT),Payment Date
Assurance,Assurance,General Office Expenses,40003179,OFFICE DEPOT UK LTD,39.24,11/04/2019
Assurance,Assurance,Other Services,60128751,GEOGRAPHERS A-Z MAP COMPANY LTD,"4,132.00",26/04/2019
Assurance,Assurance,Other Services,60128907,SHRED-IT,272.85,29/04/2019
Assurance,Assurance,Postage,60127374,ELECTORAL REFORM SERVICES,"1,309.60",04/04/2019
Assurance,Assurance,Postage,60129016,ROYAL MAIL GROUP LIMITED,610.18,29/04/2019
Assurance,Assurance,Printing-Contract,10015132,ELECTORAL REFORM SERVICES,"53,080.95",18/04/2019
Assurance,Assurance,Professional Services,60127880,BARNARD &  WESTWOOD LTD,114.10,11/04/2019
Assurance,Assurance,Professional Services,60127902,BARNARD &  WESTWOOD LTD,119.60,11/04/2019
Assurance,Assurance,Professional Services,60126536,GOOD IMPRESSIONS (LONDON) LIMITED,120.00,18/04/2019
Assurance,Assurance,Professional Services,60125319,PRICEWATERHOUSE COOPERS,"25,000.00",02/04/2019
Assurance,Assurance,Professional Services,60126400,PRICEWATERHOUSE COOPERS,"25,000.00",17/04/2019
Assurance,Assurance,Training,60127238,ACT NOW TRAINING LTD,349.00,03/04/2019
Assurance,Assurance,Training,60127590,ACT NOW TRAINING LTD,349.00,04/04/2019
Assurance,Assurance,Training,60128089,ACT NOW TRAINING LTD,349.00,11/04/2019
Assurance,Assurance,Training,80023720,BAKER LOMAX & SHACKLEY LTD,750.00,01/04/2019
Assurance,Assurance,Training,60128386,CENTRE FOR PUBLIC SCRUTINY LTD,195.00,17/04/2019
Assurance,Assurance,Training,10015139,CIPFA BUSINESS LIMITED,125.00,23/04/2019
Assurance,Assurance,Translation Exp / Interpret,60127909,PRIME PRODUCTION LTD,54.50,09/04/2019
Assurance,Assurance,Translation Exp / Interpret,60129146,REDACTED - PERSONAL DATA,106.25,30/04/2019
Balance Sheet,Balance Sheet,Charitable Giving,20045812,CHARITIES TRUST,435.00,26/04/2019
Central Expenses,Central Expenses,Insurance Claims,80024674,AVIVA INSURANCE,"2,158.83",05/04/2019
Central Expenses,Central Expenses,Insurance Claims,60128279,CLYDE & CO LLP,"4,790.00",16/04/2019
Central Expenses,Central Expenses,Insurance Claims,60128365,CLYDE & CO LLP,"5,987.50",16/04/2019
Central Expenses,Central Expenses,Insurance Claims,80024710,DEPARTMENT FOR WORK & PENSIONS,318.50,05/04/2019
Central Expenses,Central Expenses,Insurance Claims,80024992,DWP COMPENSATION RECOVERY UNIT,688.00,05/04/2019
Central Expenses,Central Expenses,Insurance Claims,80025343,DWP COMPENSATION RECOVERY UNIT,678.00,24/04/2019
Central Expenses,Central Expenses,Insurance Claims,80024210,GALLAGHER BASSETT,360.00,04/04/2019
Central Expenses,Central Expenses,Insurance Claims,80024213,GALLAGHER BASSETT,"1,703.00",04/04/2019
Central Expenses,Central Expenses,Insurance Claims,80024216,GALLAGHER BASSETT,"23,992.00",04/04/2019
Central Expenses,Central Expenses,Insurance Claims,80024225,GALLAGHER BASSETT,"20,665.00",04/04/2019
Central Expenses,Central Expenses,Insurance Claims,80024232,GALLAGHER BASSETT,"4,725.69",04/04/2019
Central Expenses,Central Expenses,Insurance Claims,80024234,GALLAGHER BASSETT,250.00,04/04/2019
Central Expenses,Central Expenses,Insurance Claims,80024253,GALLAGHER BASSETT,"17,642.00",09/04/2019
Central Expenses,Central Expenses,Insurance Claims,80024256,GALLAGHER BASSETT,"11,978.04",09/04/2019
Central Expenses,Central Expenses,Insurance Claims,80024257,GALLAGHER BASSETT,"11,000.00",09/04/2019
Central Expenses,Central Expenses,Insurance Claims,80024258,GALLAGHER BASSETT,616.00,09/04/2019
Central Expenses,Central Expenses,Insurance Claims,60126211,GLENDALE COUNTRYSIDE LTD,190.30,11/04/2019
Central Expenses,Central Expenses,Insurance Claims,60128853,GLENDALE COUNTRYSIDE LTD,398.40,29/04/2019
Central Expenses,Central Expenses,Insurance Claims,60126773,GRISTWOOD & TOM LTD,184.50,18/04/2019
Central Expenses,Central Expenses,Insurance Claims,60127290,GRISTWOOD & TOM LTD,570.50,24/04/2019
Central Expenses,Central Expenses,Insurance Claims,80025345,HODGE JONES & ALLEN SOLICITORS,"4,923.55",24/04/2019
Central Expenses,Central Expenses,Insurance Claims,80025383,HODGE JONES & ALLEN SOLICITORS,"3,010.00",29/04/2019
Central Expenses,Central Expenses,Insurance Claims,80025341,JMW SOLICITORS LLP,"10,810.00",30/04/2019
Central Expenses,Central Expenses,Insurance Claims,60126887,JOHNSON AUSTIN LIMITED,375.00,02/04/2019
Central Expenses,Central Expenses,Insurance Claims,80025013,KINDERTONS LTD,"1,600.00",08/04/2019
Central Expenses,Central Expenses,Insurance Claims,80025320,OGR STOCK DENTON LLP,"6,008.00",23/04/2019
Central Expenses,Central Expenses,Insurance Claims,80024880,OSBORNES SOLICITORS,"24,440.07",08/04/2019
Central Expenses,Central Expenses,Insurance Claims,80025328,PABLA & PABLA SOLICITORS,"8,571.00",23/04/2019
Central Expenses,Central Expenses,Insurance Claims,20045681,PLEXUS LAW,180.00,18/04/2019
Central Expenses,Central Expenses,Insurance Claims,80024241,REDACTED - PERSONAL DATA,100.00,05/04/2019
Central Expenses,Central Expenses,Insurance Claims,80024766,REDACTED - PERSONAL DATA,259.99,08/04/2019
Central Expenses,Central Expenses,Insurance Claims,80024959,REDACTED - PERSONAL DATA,280.00,05/04/2019
Central Expenses,Central Expenses,Insurance Claims,80024962,REDACTED - PERSONAL DATA,167.99,05/04/2019
Central Expenses,Central Expenses,Insurance Claims,80024964,REDACTED - PERSONAL DATA,"3,119.69",05/04/2019
Central Expenses,Central Expenses,Insurance Claims,80024989,REDACTED - PERSONAL DATA,"9,000.00",10/04/2019
Central Expenses,Central Expenses,Insurance Claims,80025050,REDACTED - PERSONAL DATA,742.14,09/04/2019
Central Expenses,Central Expenses,Insurance Claims,80025061,REDACTED - PERSONAL DATA,427.75,09/04/2019
Central Expenses,Central Expenses,Insurance Claims,80025084,REDACTED - PERSONAL DATA,52.00,10/04/2019
Central Expenses,Central Expenses,Insurance Claims,80025109,REDACTED - PERSONAL DATA,78.00,12/04/2019
Central Expenses,Central Expenses,Insurance Claims,80025153,REDACTED - PERSONAL DATA,263.11,12/04/2019
Central Expenses,Central Expenses,Insurance Claims,80025261,REDACTED - PERSONAL DATA,491.27,23/04/2019
Central Expenses,Central Expenses,Insurance Claims,80025305,REDACTED - PERSONAL DATA,"1,000.00",29/04/2019
Central Expenses,Central Expenses,Insurance Claims,80025367,REDACTED - PERSONAL DATA,"1,310.00",29/04/2019
Central Expenses,Central Expenses,Insurance Claims,80025544,REDACTED - PERSONAL DATA,581.48,30/04/2019
Central Expenses,Central Expenses,Insurance Claims,20045625,WEIGHTMANS LLP,726.13,17/04/2019
Central Expenses,Central Expenses,Insurance Claims,60127351,WEIGHTMANS LLP,"7,524.00",04/04/2019
Central Expenses,Central Expenses,Insurance Claims,60127580,WEIGHTMANS LLP,"2,544.00",04/04/2019
Central Expenses,Central Expenses,Insurance Claims,60127970,WEIGHTMANS LLP,"1,999.40",11/04/2019
Central Expenses,Central Expenses,Insurance Claims,60128180,WEIGHTMANS LLP,600.00,30/04/2019
Central Expenses,Central Expenses,Professional Services,60127858,SOCIETY OF INFORMATION TECHNOLOGY MANAGE,"12,995.00",09/04/2019
Central Expenses,Central Expenses,Subscriptions,60128427,LONDON COUNCILS,"114,663.00",26/04/2019
Commercial,Customer Support Group,Advertising,60126847,TMP (UK) LTD,148.00,02/04/2019
Commercial,Customer Support Group,Advertising,60128363,TMP (UK) LTD,148.00,16/04/2019
Commercial,Customer Support Group,Books-CDs-Audio-Video,60125830,SM ELECTRICAL SERVICES,250.00,04/04/2019
Commercial,Customer Support Group,Building Repairs & Maintenance,10015117,AJS LTD,308.00,11/04/2019
Commercial,Customer Support Group,Building Repairs & Maintenance,10015118,AJS LTD,321.00,11/04/2019
Commercial,Customer Support Group,Building Repairs & Maintenance,60127145,AJS LTD,45.60,02/04/2019
Commercial,Customer Support Group,Building Repairs & Maintenance,60127648,AJS LTD,115.20,12/04/2019
Commercial,Customer Support Group,Building Repairs & Maintenance,60127666,AJS LTD,"5,358.18",08/04/2019
Commercial,Customer Support Group,Building Repairs & Maintenance,60127678,AJS LTD,294.40,11/04/2019
Commercial,Customer Support Group,Building Repairs & Maintenance,60127783,AJS LTD,52.00,08/04/2019
Commercial,Customer Support Group,Building Repairs & Maintenance,60127837,AJS LTD,352.80,10/04/2019
Commercial,Customer Support Group,Building Repairs & Maintenance,60127838,AJS LTD,"1,830.95",08/04/2019
Commercial,Customer Support Group,Building Repairs & Maintenance,60127853,AJS LTD,241.96,10/04/2019
Commercial,Customer Support Group,Building Repairs & Maintenance,60127857,AJS LTD,152.98,12/04/2019
Commercial,Customer Support Group,Building Repairs & Maintenance,60127868,AJS LTD,266.47,11/04/2019
Commercial,Customer Support Group,Building Repairs & Maintenance,60127872,AJS LTD,143.35,10/04/2019
Commercial,Customer Support Group,Building Repairs & Maintenance,60127873,AJS LTD,376.36,11/04/2019
Commercial,Customer Support Group,Building Repairs & Maintenance,60127876,AJS LTD,166.99,10/04/2019
Commercial,Customer Support Group,Building Repairs & Maintenance,60127881,AJS LTD,86.14,10/04/2019
Commercial,Customer Support Group,Building Repairs & Maintenance,60127886,AJS LTD,781.75,12/04/2019
Commercial,Customer Support Group,Building Repairs & Maintenance,60127887,AJS LTD,96.00,11/04/2019
Commercial,Customer Support Group,Building Repairs & Maintenance,60127890,AJS LTD,180.00,18/04/2019
Commercial,Customer Support Group,Building Repairs & Maintenance,60127891,AJS LTD,76.51,16/04/2019
Commercial,Customer Support Group,Building Repairs & Maintenance,60127895,AJS LTD,224.00,10/04/2019
Commercial,Customer Support Group,Building Repairs & Maintenance,60127896,AJS LTD,"1,067.80",11/04/2019
Commercial,Customer Support Group,Building Repairs & Maintenance,60127899,AJS LTD,244.80,18/04/2019
Commercial,Customer Support Group,Building Repairs & Maintenance,60127903,AJS LTD,133.80,12/04/2019
Commercial,Customer Support Group,Building Repairs & Maintenance,60127907,AJS LTD,311.14,17/04/2019
Commercial,Customer Support Group,Building Repairs & Maintenance,60127908,AJS LTD,160.00,12/04/2019
Commercial,Customer Support Group,Building Repairs & Maintenance,60127910,AJS LTD,70.40,18/04/2019
Commercial,Customer Support Group,Building Repairs & Maintenance,60127913,AJS LTD,873.99,18/04/2019
Commercial,Customer Support Group,Building Repairs & Maintenance,60127921,AJS LTD,121.60,18/04/2019
Commercial,Customer Support Group,Building Repairs & Maintenance,60127922,AJS LTD,266.32,16/04/2019
Commercial,Customer Support Group,Building Repairs & Maintenance,60127925,AJS LTD,"1,120.78",18/04/2019
Commercial,Customer Support Group,Building Repairs & Maintenance,60127931,AJS LTD,129.44,12/04/2019
Commercial,Customer Support Group,Building Repairs & Maintenance,60127935,AJS LTD,64.00,18/04/2019
Commercial,Customer Support Group,Building Repairs & Maintenance,60127937,AJS LTD,64.00,10/04/2019
Commercial,Customer Support Group,Building Repairs & Maintenance,60127939,AJS LTD,177.49,10/04/2019
Commercial,Customer Support Group,Building Repairs & Maintenance,60127940,AJS LTD,233.98,11/04/2019
Commercial,Customer Support Group,Building Repairs & Maintenance,60127942,AJS LTD,64.00,12/04/2019
Commercial,Customer Support Group,Building Repairs & Maintenance,60127954,AJS LTD,269.19,11/04/2019
Commercial,Customer Support Group,Building Repairs & Maintenance,60127955,AJS LTD,52.00,11/04/2019
Commercial,Customer Support Group,Building Repairs & Maintenance,60127962,AJS LTD,104.00,16/04/2019
Commercial,Customer Support Group,Building Repairs & Maintenance,60127963,AJS LTD,38.40,18/04/2019
Commercial,Customer Support Group,Building Repairs & Maintenance,60127965,AJS LTD,"3,013.97",11/04/2019
Commercial,Customer Support Group,Building Repairs & Maintenance,60127969,AJS LTD,566.75,11/04/2019
Commercial,Customer Support Group,Building Repairs & Maintenance,60127972,AJS LTD,316.83,11/04/2019
Commercial,Customer Support Group,Building Repairs & Maintenance,60127973,AJS LTD,52.00,18/04/2019
Commercial,Customer Support Group,Building Repairs & Maintenance,60127981,AJS LTD,411.40,18/04/2019
Commercial,Customer Support Group,Building Repairs & Maintenance,60127983,AJS LTD,142.40,18/04/2019
Commercial,Customer Support Group,Building Repairs & Maintenance,60127984,AJS LTD,16.29,18/04/2019
Commercial,Customer Support Group,Building Repairs & Maintenance,60128045,AJS LTD,"7,718.00",29/04/2019
Commercial,Customer Support Group,Building Repairs & Maintenance,60128188,AJS LTD,128.51,16/04/2019
Commercial,Customer Support Group,Building Repairs & Maintenance,60128242,AJS LTD,"3,957.36",16/04/2019
Commercial,Customer Support Group,Building Repairs & Maintenance,60128247,AJS LTD,52.00,16/04/2019
Commercial,Customer Support Group,Building Repairs & Maintenance,60128328,AJS LTD,64.00,16/04/2019
Commercial,Customer Support Group,Building Repairs & Maintenance,60128753,AJS LTD,215.95,26/04/2019
Commercial,Customer Support Group,Building Repairs & Maintenance,60129149,AJS LTD,140.52,30/04/2019
Commercial,Customer Support Group,Building Repairs & Maintenance,60128088,APT SECURITY SYSTEMS LTD,519.00,11/04/2019
Commercial,Customer Support Group,Building Repairs & Maintenance,60117509,BRIAR ASSOCIATES,195.00,29/04/2019
Commercial,Customer Support Group,Building Repairs & Maintenance,60118403,BRIAR ASSOCIATES,300.00,29/04/2019
Commercial,Customer Support Group,Building Repairs & Maintenance,60128109,CARRYLIFT MATERIALS HANDLING LTD,182.75,30/04/2019
Commercial,Customer Support Group,Building Repairs & Maintenance,10015111,DORMA UK LTD,774.00,16/04/2019
Commercial,Customer Support Group,Building Repairs & Maintenance,60123657,DORMA UK LTD,746.25,25/04/2019
Commercial,Customer Support Group,Building Repairs & Maintenance,60127294,GLOBAL SAFETY & ENVIRONMENTAL LTD,511.50,24/04/2019
Commercial,Customer Support Group,Building Repairs & Maintenance,60127454,GLOBAL SAFETY & ENVIRONMENTAL LTD,"1,055.00",24/04/2019
Commercial,Customer Support Group,Building Repairs & Maintenance,60126666,HSL COMPLIANCE LTD,"1,605.14",11/04/2019
Commercial,Customer Support Group,Building Repairs & Maintenance,60126741,HSL COMPLIANCE LTD,"1,606.08",11/04/2019
Commercial,Customer Support Group,Building Repairs & Maintenance,60128183,LEE SECURITY LONDON LIMITED,120.00,29/04/2019
Commercial,Customer Support Group,Building Repairs & Maintenance,60128205,LEE SECURITY LONDON LIMITED,200.80,18/04/2019
Commercial,Customer Support Group,Building Repairs & Maintenance,60127996,NORTH LONDON CATERING EQUIPMENT,107.00,11/04/2019
Commercial,Customer Support Group,Building Repairs & Maintenance,10015062,OAKRAY LIMITED,"-4,165.30",03/04/2019
Commercial,Customer Support Group,Building Repairs & Maintenance,10015116,OAKRAY LIMITED,828.75,09/04/2019
Commercial,Customer Support Group,Building Repairs & Maintenance,60115640,OAKRAY LIMITED,228.75,03/04/2019
Commercial,Customer Support Group,Building Repairs & Maintenance,60126542,OAKRAY LIMITED,180.00,11/04/2019
Commercial,Customer Support Group,Building Repairs & Maintenance,60126549,OAKRAY LIMITED,"1,657.75",16/04/2019
Commercial,Customer Support Group,Building Repairs & Maintenance,60126551,OAKRAY LIMITED,773.50,11/04/2019
Commercial,Customer Support Group,Building Repairs & Maintenance,60126557,OAKRAY LIMITED,"5,563.75",11/04/2019
Commercial,Customer Support Group,Building Repairs & Maintenance,60126560,OAKRAY LIMITED,551.00,16/04/2019
Commercial,Customer Support Group,Building Repairs & Maintenance,60126565,OAKRAY LIMITED,"5,733.25",10/04/2019
Commercial,Customer Support Group,Building Repairs & Maintenance,60126569,OAKRAY LIMITED,565.25,11/04/2019
Commercial,Customer Support Group,Building Repairs & Maintenance,60126574,OAKRAY LIMITED,"5,647.75",16/04/2019
Commercial,Customer Support Group,Building Repairs & Maintenance,60126582,OAKRAY LIMITED,"2,470.95",11/04/2019
Commercial,Customer Support Group,Building Repairs & Maintenance,60126584,OAKRAY LIMITED,"1,188.30",11/04/2019
Commercial,Customer Support Group,Building Repairs & Maintenance,60126585,OAKRAY LIMITED,"1,045.00",10/04/2019
Commercial,Customer Support Group,Building Repairs & Maintenance,60126592,OAKRAY LIMITED,"2,024.05",11/04/2019
Commercial,Customer Support Group,Building Repairs & Maintenance,60126594,OAKRAY LIMITED,"1,398.65",11/04/2019
Commercial,Customer Support Group,Building Repairs & Maintenance,60126595,OAKRAY LIMITED,901.85,17/04/2019
Commercial,Customer Support Group,Building Repairs & Maintenance,60126598,OAKRAY LIMITED,419.35,10/04/2019
Commercial,Customer Support Group,Building Repairs & Maintenance,60126613,OAKRAY LIMITED,199.75,11/04/2019
Commercial,Customer Support Group,Building Repairs & Maintenance,60126614,OAKRAY LIMITED,582.25,11/04/2019
Commercial,Customer Support Group,Building Repairs & Maintenance,60126616,OAKRAY LIMITED,"1,064.00",10/04/2019
Commercial,Customer Support Group,Building Repairs & Maintenance,60126619,OAKRAY LIMITED,382.50,11/04/2019
Commercial,Customer Support Group,Building Repairs & Maintenance,60126620,OAKRAY LIMITED,340.00,11/04/2019
Commercial,Customer Support Group,Building Repairs & Maintenance,60126627,OAKRAY LIMITED,637.50,11/04/2019
Commercial,Customer Support Group,Building Repairs & Maintenance,60126628,OAKRAY LIMITED,437.00,16/04/2019
Commercial,Customer Support Group,Building Repairs & Maintenance,60126634,OAKRAY LIMITED,986.00,11/04/2019
Commercial,Customer Support Group,Building Repairs & Maintenance,60126638,OAKRAY LIMITED,380.00,10/04/2019
Commercial,Customer Support Group,Building Repairs & Maintenance,60126639,OAKRAY LIMITED,380.00,10/04/2019
Commercial,Customer Support Group,Building Repairs & Maintenance,60126653,OAKRAY LIMITED,380.00,10/04/2019
Commercial,Customer Support Group,Building Repairs & Maintenance,60126656,OAKRAY LIMITED,453.68,04/04/2019
Commercial,Customer Support Group,Building Repairs & Maintenance,60126663,OAKRAY LIMITED,192.00,04/04/2019
Commercial,Customer Support Group,Building Repairs & Maintenance,60126669,OAKRAY LIMITED,122.54,09/04/2019
Commercial,Customer Support Group,Building Repairs & Maintenance,60126670,OAKRAY LIMITED,128.00,04/04/2019
Commercial,Customer Support Group,Building Repairs & Maintenance,60126671,OAKRAY LIMITED,556.68,09/04/2019
Commercial,Customer Support Group,Building Repairs & Maintenance,60126676,OAKRAY LIMITED,385.78,03/04/2019
Commercial,Customer Support Group,Building Repairs & Maintenance,60126678,OAKRAY LIMITED,206.63,09/04/2019
Commercial,Customer Support Group,Building Repairs & Maintenance,60126685,OAKRAY LIMITED,206.63,09/04/2019
Commercial,Customer Support Group,Building Repairs & Maintenance,60126686,OAKRAY LIMITED,96.00,04/04/2019
Commercial,Customer Support Group,Building Repairs & Maintenance,60126691,OAKRAY LIMITED,96.00,04/04/2019
Commercial,Customer Support Group,Building Repairs & Maintenance,60126697,OAKRAY LIMITED,160.00,04/04/2019
Commercial,Customer Support Group,Building Repairs & Maintenance,60126701,OAKRAY LIMITED,114.59,04/04/2019
Commercial,Customer Support Group,Building Repairs & Maintenance,60126702,OAKRAY LIMITED,137.40,04/04/2019
Commercial,Customer Support Group,Building Repairs & Maintenance,60126703,OAKRAY LIMITED,96.00,04/04/2019
Commercial,Customer Support Group,Building Repairs & Maintenance,60126704,OAKRAY LIMITED,208.00,04/04/2019
Commercial,Customer Support Group,Building Repairs & Maintenance,60126713,OAKRAY LIMITED,96.00,04/04/2019
Commercial,Customer Support Group,Building Repairs & Maintenance,60126716,OAKRAY LIMITED,80.00,04/04/2019
Commercial,Customer Support Group,Building Repairs & Maintenance,60126723,OAKRAY LIMITED,80.00,04/04/2019
Commercial,Customer Support Group,Building Repairs & Maintenance,60126724,OAKRAY LIMITED,96.00,04/04/2019
Commercial,Customer Support Group,Building Repairs & Maintenance,60128046,PICKERINGS LIFTS LTD,998.00,29/04/2019
Commercial,Customer Support Group,Building Repairs & Maintenance,60128461,PICKERINGS LIFTS LTD,"1,702.11",29/04/2019
Commercial,Customer Support Group,Building Repairs & Maintenance,10015144,PURDY CONTRACTS LTD,"1,087.18",25/04/2019
Commercial,Customer Support Group,Building Repairs & Maintenance,60118942,PURDY CONTRACTS LTD,624.89,29/04/2019
Commercial,Customer Support Group,Building Repairs & Maintenance,60124131,PURDY CONTRACTS LTD,10.80,24/04/2019
Commercial,Customer Support Group,Building Repairs & Maintenance,60127622,PURDY CONTRACTS LTD,25.20,25/04/2019
Commercial,Customer Support Group,Building Repairs & Maintenance,60126990,S W BRUCE & CO LTD,146.19,24/04/2019
Commercial,Customer Support Group,Building Repairs & Maintenance,60127002,S W BRUCE & CO LTD,105.40,24/04/2019
Commercial,Customer Support Group,Building Repairs & Maintenance,60127037,S W BRUCE & CO LTD,115.89,24/04/2019
Commercial,Customer Support Group,Building Repairs & Maintenance,60127070,S W BRUCE & CO LTD,78.61,24/04/2019
Commercial,Customer Support Group,Building Repairs & Maintenance,60127072,S W BRUCE & CO LTD,57.31,24/04/2019
Commercial,Customer Support Group,Building Repairs & Maintenance,60127090,S W BRUCE & CO LTD,101.12,24/04/2019
Commercial,Customer Support Group,Building Repairs & Maintenance,60127128,S W BRUCE & CO LTD,254.56,24/04/2019
Commercial,Customer Support Group,Building Repairs & Maintenance,60127155,S W BRUCE & CO LTD,101.12,24/04/2019
Commercial,Customer Support Group,Building Repairs & Maintenance,60127167,S W BRUCE & CO LTD,42.24,24/04/2019
Commercial,Customer Support Group,Building Repairs & Maintenance,60127172,S W BRUCE & CO LTD,48.92,24/04/2019
Commercial,Customer Support Group,Building Repairs & Maintenance,60127213,S W BRUCE & CO LTD,58.42,24/04/2019
Commercial,Customer Support Group,Building Repairs & Maintenance,60127223,S W BRUCE & CO LTD,42.24,24/04/2019
Commercial,Customer Support Group,Building Repairs & Maintenance,60124455,T. & D. BARRS,127.50,09/04/2019
Commercial,Customer Support Group,Building Repairs & Maintenance,60124474,T. & D. BARRS,354.45,09/04/2019
Commercial,Customer Support Group,Building Repairs & Maintenance,60124485,T. & D. BARRS,178.50,09/04/2019
Commercial,Customer Support Group,Building Repairs & Maintenance,60125563,T. & D. BARRS,165.75,04/04/2019
Commercial,Customer Support Group,Building Repairs & Maintenance,60125572,T. & D. BARRS,95.88,04/04/2019
Commercial,Customer Support Group,Building Repairs & Maintenance,60125580,T. & D. BARRS,127.84,04/04/2019
Commercial,Customer Support Group,Building Repairs & Maintenance,60125598,T. & D. BARRS,153.00,04/04/2019
Commercial,Customer Support Group,Building Repairs & Maintenance,60125606,T. & D. BARRS,539.19,04/04/2019
Commercial,Customer Support Group,Building Repairs & Maintenance,60125614,T. & D. BARRS,425.00,24/04/2019
Commercial,Customer Support Group,Building Repairs & Maintenance,60125671,T. & D. BARRS,117.30,04/04/2019
Commercial,Customer Support Group,Building Repairs & Maintenance,60125675,T. & D. BARRS,63.92,04/04/2019
Commercial,Customer Support Group,Building Repairs & Maintenance,60125681,T. & D. BARRS,323.00,04/04/2019
Commercial,Customer Support Group,Building Repairs & Maintenance,60125687,T. & D. BARRS,209.10,04/04/2019
Commercial,Customer Support Group,Building Repairs & Maintenance,60125692,T. & D. BARRS,87.92,04/04/2019
Commercial,Customer Support Group,Building Repairs & Maintenance,60126475,T. & D. BARRS,85.00,17/04/2019
Commercial,Customer Support Group,Building Repairs & Maintenance,60126494,T. & D. BARRS,84.15,17/04/2019
Commercial,Customer Support Group,Building Repairs & Maintenance,60126499,T. & D. BARRS,170.00,17/04/2019
Commercial,Customer Support Group,Building Repairs & Maintenance,60126504,T. & D. BARRS,782.00,17/04/2019
Commercial,Customer Support Group,Building Repairs & Maintenance,60126647,T. & D. BARRS,63.92,17/04/2019
Commercial,Customer Support Group,Building Repairs & Maintenance,60127092,T. & D. BARRS,647.49,24/04/2019
Commercial,Customer Support Group,Building Repairs & Maintenance,60127559,T. & D. BARRS,63.92,25/04/2019
Commercial,Customer Support Group,Building Repairs & Maintenance,60128986,T. & D. BARRS,127.84,29/04/2019
Commercial,Customer Support Group,Building Repairs & Maintenance,60129133,T. & D. BARRS,221.21,30/04/2019
Commercial,Customer Support Group,Building Repairs & Maintenance,60125577,WATES LIVING SPACE,"1,215.00",04/04/2019
Commercial,Customer Support Group,Building Repairs & Maintenance,60125642,WATES LIVING SPACE,562.16,04/04/2019
Commercial,Customer Support Group,Building Repairs & Maintenance,60125710,WATES LIVING SPACE,225.75,02/04/2019
Commercial,Customer Support Group,Building Repairs & Maintenance,60125824,WATES LIVING SPACE,80.73,04/04/2019
Commercial,Customer Support Group,Building Repairs & Maintenance,60126204,WATES LIVING SPACE,72.46,11/04/2019
Commercial,Customer Support Group,Building Repairs & Maintenance,60126222,WATES LIVING SPACE,35.63,11/04/2019
Commercial,Customer Support Group,Building Repairs & Maintenance,60126367,WATES LIVING SPACE,"1,662.04",17/04/2019
Commercial,Customer Support Group,Building Repairs & Maintenance,60127854,WATES LIVING SPACE,172.00,16/04/2019
Commercial,Customer Support Group,Building Repairs & Maintenance,60127877,WATES LIVING SPACE,195.60,16/04/2019
Commercial,Customer Support Group,Building Repairs & Maintenance,60127924,WATES LIVING SPACE,71.25,16/04/2019
Commercial,Customer Support Group,Building Repairs & Maintenance,60127929,WATES LIVING SPACE,106.88,11/04/2019
Commercial,Customer Support Group,Building Repairs & Maintenance,60127979,WATES LIVING SPACE,71.25,16/04/2019
Commercial,Customer Support Group,Building Repairs & Maintenance,60127980,WATES LIVING SPACE,214.63,16/04/2019
Commercial,Customer Support Group,Building Repairs & Maintenance,60127631,WOODS BUILDING SERVICES,"5,390.00",25/04/2019
Commercial,Customer Support Group,Cleaning and domestic material,60128021,BIRKIN CLEANING SERVICES LTD,211.74,29/04/2019
Commercial,Customer Support Group,Cleaning and domestic material,60128023,BIRKIN CLEANING SERVICES LTD,"3,293.47",29/04/2019
Commercial,Customer Support Group,Cleaning and domestic material,60128029,BIRKIN CLEANING SERVICES LTD,"1,534.25",29/04/2019
Commercial,Customer Support Group,Cleaning and domestic material,60128040,BIRKIN CLEANING SERVICES LTD,281.95,29/04/2019
Commercial,Customer Support Group,Cleaning and domestic material,60129113,CHURCHILL CONTRACT SERVICES,105.00,30/04/2019
Commercial,Customer Support Group,Conference Expenses,60110154,COMER BUSINESS AND INNOVATION CENTRES,-160.00,08/04/2019
Commercial,Customer Support Group,Consultants Fees,60128480,CBRE INDIRECT INVESTMENT SERVS. LTD,"4,000.00",18/04/2019
Commercial,Customer Support Group,Consultants Fees,60128514,KPMG FEES ACCOUNT,"15,000.00",24/04/2019
Commercial,Customer Support Group,CSG Services Contract Payment,10015100,CAPITA BUSINESS SERVICES LTD,"-3,360.00",09/04/2019
Commercial,Customer Support Group,CSG Services Contract Payment,60126387,CAPITA BUSINESS SERVICES LTD,"-211,045.00",09/04/2019
Commercial,Customer Support Group,CSG Services Contract Payment,60126390,CAPITA BUSINESS SERVICES LTD,"6,975.40",09/04/2019
Commercial,Customer Support Group,CSG Services Contract Payment,60126404,CAPITA BUSINESS SERVICES LTD,"7,463.30",09/04/2019
Commercial,Customer Support Group,CSG Services Contract Payment,60126443,CAPITA BUSINESS SERVICES LTD,"9,349.35",09/04/2019
Commercial,Customer Support Group,CSG Services Contract Payment,60126801,CAPITA BUSINESS SERVICES LTD,"36,098.77",09/04/2019
Commercial,Customer Support Group,CSG Services Contract Payment,60126808,CAPITA BUSINESS SERVICES LTD,"29,647.09",09/04/2019
Commercial,Customer Support Group,CSG Services Contract Payment,60127484,CAPITA BUSINESS SERVICES LTD,"238,333.00",09/04/2019
Commercial,Customer Support Group,CSG Services Contract Payment,60127552,CAPITA BUSINESS SERVICES LTD,871.00,11/04/2019
Commercial,Customer Support Group,CSG Services Contract Payment,60127652,CAPITA BUSINESS SERVICES LTD,"9,722.60",11/04/2019
Commercial,Customer Support Group,CSG Services Contract Payment,60127676,CAPITA BUSINESS SERVICES LTD,"6,941.55",11/04/2019
Commercial,Customer Support Group,CSG Services Contract Payment,60127703,CAPITA BUSINESS SERVICES LTD,"8,125.70",11/04/2019
Commercial,Customer Support Group,CSG Services Contract Payment,60128898,CAPITA BUSINESS SERVICES LTD,"64,968.46",29/04/2019
Commercial,Customer Support Group,CSG Services Contract Payment,60128903,CAPITA BUSINESS SERVICES LTD,"7,804.00",29/04/2019
Commercial,Customer Support Group,CSG Services Contract Payment,60128922,CAPITA BUSINESS SERVICES LTD,"21,855.37",29/04/2019
Commercial,Customer Support Group,CSG Services Contract Payment,60129008,CAPITA BUSINESS SERVICES LTD,"56,996.76",29/04/2019
Commercial,Customer Support Group,Electricity,60127859,EDF ENERGY CUSTOMERS PLC,317.86,25/04/2019
Commercial,Customer Support Group,Electricity,60128283,E-ON ENERGY,639.44,16/04/2019
Commercial,Customer Support Group,Electricity,60128345,E-ON ENERGY,713.43,16/04/2019
Commercial,Customer Support Group,Electricity,60092780,KENT COUNTY COUNCIL (KCS),-303.76,02/04/2019
Commercial,Customer Support Group,Electricity,60093769,KENT COUNTY COUNCIL (KCS),"-1,411.78",02/04/2019
Commercial,Customer Support Group,Electricity,60124212,KENT COUNTY COUNCIL (KCS),"1,301.72",02/04/2019
Commercial,Customer Support Group,Electricity,60125646,KENT COUNTY COUNCIL (KCS),91.69,02/04/2019
Commercial,Customer Support Group,Electricity,60125693,KENT COUNTY COUNCIL (KCS),91.69,02/04/2019
Commercial,Customer Support Group,Electricity,60125733,KENT COUNTY COUNCIL (KCS),88.74,02/04/2019
Commercial,Customer Support Group,Electricity,60125739,KENT COUNTY COUNCIL (KCS),91.69,02/04/2019
Commercial,Customer Support Group,Electricity,60126410,KENT COUNTY COUNCIL (KCS),"6,117.58",02/04/2019
Commercial,Customer Support Group,Electricity,60126440,KENT COUNTY COUNCIL (KCS),"1,542.39",03/04/2019
Commercial,Customer Support Group,Electricity,60126476,KENT COUNTY COUNCIL (KCS),"2,514.26",02/04/2019
Commercial,Customer Support Group,Electricity,60126515,KENT COUNTY COUNCIL (KCS),771.17,02/04/2019
Commercial,Customer Support Group,Electricity,60126553,KENT COUNTY COUNCIL (KCS),553.26,02/04/2019
Commercial,Customer Support Group,Electricity,60126586,KENT COUNTY COUNCIL (KCS),"1,910.11",04/04/2019
Commercial,Customer Support Group,Electricity,60126625,KENT COUNTY COUNCIL (KCS),799.11,04/04/2019
Commercial,Customer Support Group,Electricity,60126645,KENT COUNTY COUNCIL (KCS),327.52,02/04/2019
Commercial,Customer Support Group,Equipment and Materials Purcha,60127750,LOCALE LIMITED,"7,300.00",25/04/2019
Commercial,Customer Support Group,Equipment and Materials Purcha,60126601,OAKRAY LIMITED,311.10,11/04/2019
Commercial,Customer Support Group,Furniture-Purchase-Repair,60127861,LYCO DIRECT LTD,83.70,09/04/2019
Commercial,Customer Support Group,Furniture-Purchase-Repair,60127923,LYCO DIRECT LTD,83.70,09/04/2019
Commercial,Customer Support Group,Furniture-Purchase-Repair,60127367,SCREWFIX DIRECT LTD,26.65,05/04/2019
Commercial,Customer Support Group,Furniture-Purchase-Repair,60127850,SCREWFIX DIRECT LTD,333.33,11/04/2019
Commercial,Customer Support Group,Gas,60093761,KENT COUNTY COUNCIL (KCS),-366.73,02/04/2019
Commercial,Customer Support Group,Gas,60095879,KENT COUNTY COUNCIL (KCS),-376.86,02/04/2019
Commercial,Customer Support Group,Gas,60102638,KENT COUNTY COUNCIL (KCS),-184.26,02/04/2019
Commercial,Customer Support Group,Gas,60124543,KENT COUNTY COUNCIL (KCS),-191.74,02/04/2019
Commercial,Customer Support Group,Gas,60126142,KENT COUNTY COUNCIL (KCS),79.80,02/04/2019
Commercial,Customer Support Group,Gas,60126259,KENT COUNTY COUNCIL (KCS),"6,300.33",02/04/2019
Commercial,Customer Support Group,Gas,60126273,KENT COUNTY COUNCIL (KCS),44.24,02/04/2019
Commercial,Customer Support Group,Gas,60126289,KENT COUNTY COUNCIL (KCS),671.74,02/04/2019
Commercial,Customer Support Group,Gas,60126292,KENT COUNTY COUNCIL (KCS),681.47,02/04/2019
Commercial,Customer Support Group,Gas,60126365,KENT COUNTY COUNCIL (KCS),51.86,02/04/2019
Commercial,Customer Support Group,Gas,60126366,KENT COUNTY COUNCIL (KCS),53.76,02/04/2019
Commercial,Customer Support Group,Gas,60126397,KENT COUNTY COUNCIL (KCS),39.67,02/04/2019
Commercial,Customer Support Group,Gas,60126399,KENT COUNTY COUNCIL (KCS),229.45,02/04/2019
Commercial,Customer Support Group,Gas,60126428,KENT COUNTY COUNCIL (KCS),825.64,02/04/2019
Commercial,Customer Support Group,Gas,60126471,KENT COUNTY COUNCIL (KCS),243.38,02/04/2019
Commercial,Customer Support Group,Other Energy,10015131,NPOWER YORKSHIRE LTD,200.00,18/04/2019
Commercial,Customer Support Group,Other Services,60127241,BLUE 9 SECURITY LIMITED,31.14,04/04/2019
Commercial,Customer Support Group,Other Services,60127247,BLUE 9 SECURITY LIMITED,214.88,04/04/2019
Commercial,Customer Support Group,Other Services,60127250,BLUE 9 SECURITY LIMITED,"1,058.00",04/04/2019
Commercial,Customer Support Group,Other Services,60127257,BLUE 9 SECURITY LIMITED,"8,314.38",04/04/2019
Commercial,Customer Support Group,Other Services,60127261,BLUE 9 SECURITY LIMITED,53.72,04/04/2019
Commercial,Customer Support Group,Other Services,60127279,BLUE 9 SECURITY LIMITED,"14,330.93",04/04/2019
Commercial,Customer Support Group,Other Services,60127306,BLUE 9 SECURITY LIMITED,116.58,04/04/2019
Commercial,Customer Support Group,Other Services,60127313,BLUE 9 SECURITY LIMITED,"22,773.84",04/04/2019
Commercial,Customer Support Group,Other Services,60127318,BLUE 9 SECURITY LIMITED,"3,923.64",04/04/2019
Commercial,Customer Support Group,Other Services,60127319,BLUE 9 SECURITY LIMITED,"23,168.16",04/04/2019
Commercial,Customer Support Group,Other Services,60127323,BLUE 9 SECURITY LIMITED,"11,584.08",04/04/2019
Commercial,Customer Support Group,Other Services,60127326,BLUE 9 SECURITY LIMITED,"6,089.59",04/04/2019
Commercial,Customer Support Group,Other Services,60127331,BLUE 9 SECURITY LIMITED,"1,915.13",04/04/2019
Commercial,Customer Support Group,Other Services,60127335,BLUE 9 SECURITY LIMITED,"4,328.46",04/04/2019
Commercial,Customer Support Group,Other Services,60127724,BLUE 9 SECURITY LIMITED,177.22,09/04/2019
Commercial,Customer Support Group,Other Services,60123300,ECOLAB SERVICES LTD,49.97,26/04/2019
Commercial,Customer Support Group,Other Services,60127307,GOOD IMPRESSIONS (LONDON) LIMITED,150.00,25/04/2019
Commercial,Customer Support Group,Other Services,60128055,LONDON CARETAKERS,280.00,29/04/2019
Commercial,Customer Support Group,Other Services,60128523,LONDON CARETAKERS,280.00,29/04/2019
Commercial,Customer Support Group,Other Services,60127914,WAVE ANGLIAN WATER BUSINESS,535.95,18/04/2019
Commercial,Customer Support Group,Postage,60126626,GD WEB OFFSET LTD,"11,507.11",15/04/2019
Commercial,Customer Support Group,Postage,20045526,HEIDELBERG GRAPHIC EQUIPMENT,436.72,12/04/2019
Commercial,Customer Support Group,Postage,20045527,HEIDELBERG GRAPHIC EQUIPMENT,640.02,12/04/2019
Commercial,Customer Support Group,Postage,20045528,HEIDELBERG GRAPHIC EQUIPMENT,799.37,12/04/2019
Commercial,Customer Support Group,Postage,60128009,OFF THE WALL MARKETING LTD,171.50,16/04/2019
Commercial,Customer Support Group,Postage,60128362,PARAGON GROUP UK LIMITED,592.25,16/04/2019
Commercial,Customer Support Group,Postage,60127710,PULSTAR DATAPRINT LTD,339.17,10/04/2019
Commercial,Customer Support Group,Postage,60127095,ROYAL MAIL GROUP LIMITED,16.38,03/04/2019
Commercial,Customer Support Group,Postage,60127104,ROYAL MAIL GROUP LIMITED,646.00,03/04/2019
Commercial,Customer Support Group,Postage,60127424,ROYAL MAIL GROUP LIMITED,0.76,04/04/2019
Commercial,Customer Support Group,Postage,60127548,ROYAL MAIL GROUP LIMITED,339.31,04/04/2019
Commercial,Customer Support Group,Professional Services,60128027,LOOMIS UK LIMITED,54.00,11/04/2019
Commercial,Customer Support Group,Professional Services,60124637,ROSSENDALES (COLLECT) LTD,835.27,18/04/2019
Commercial,Customer Support Group,Professional Services,60127135,ROSSENDALES (COLLECT) LTD,400.64,03/04/2019
Commercial,Customer Support Group,Professional Services,60127169,ROSSENDALES (COLLECT) LTD,519.49,03/04/2019
Commercial,Customer Support Group,Professional Services,60127217,ROSSENDALES (COLLECT) LTD,521.65,03/04/2019
Commercial,Customer Support Group,Professional Services,60127971,ROSSENDALES (COLLECT) LTD,3.57,09/04/2019
Commercial,Customer Support Group,Publications,10015109,TV LICENSING,150.50,05/04/2019
Commercial,Customer Support Group,Rents,60128888,NHS PROPERTY SERVICES,"2,737.50",30/04/2019
Commercial,Customer Support Group,Rents,60128911,NHS PROPERTY SERVICES,"2,737.50",30/04/2019
Commercial,Customer Support Group,Rents,60128912,NHS PROPERTY SERVICES,"2,737.50",30/04/2019
Commercial,Customer Support Group,Rents,60128929,NHS PROPERTY SERVICES,"2,737.50",30/04/2019
Commercial,Customer Support Group,Rents,60128941,NHS PROPERTY SERVICES,"2,737.50",30/04/2019
Commercial,Customer Support Group,Rents,60128984,NHS PROPERTY SERVICES,"2,737.50",30/04/2019
Commercial,Customer Support Group,Rents,60129001,NHS PROPERTY SERVICES,"2,737.50",30/04/2019
Commercial,Customer Support Group,Rents,60129031,NHS PROPERTY SERVICES,"2,737.50",30/04/2019
Commercial,Customer Support Group,Rubbish Collection,60128201,G.B.HOLDINGS LTD,58.80,16/04/2019
Commercial,Customer Support Group,Rubbish Collection,60126826,LONDON CARETAKERS,278.00,18/04/2019
Commercial,Customer Support Group,Rubbish Collection,60128368,PEARCE RECYCLING GROUP,64.50,17/04/2019
Commercial,Customer Support Group,Rubbish Collection,60128369,PEARCE RECYCLING GROUP,74.50,29/04/2019
Commercial,Customer Support Group,Rubbish Collection,60128371,PEARCE RECYCLING GROUP,56.50,29/04/2019
Commercial,Customer Support Group,Rubbish Collection,60127405,PREMIER SHREDDING,68.00,04/04/2019
Commercial,Customer Support Group,Service Charges,10015147,MIDDLESEX UNIVERSITY,"22,920.03",29/04/2019
Commercial,Customer Support Group,Service Charges,60127510,MIDDLESEX UNIVERSITY,"2,302.00",05/04/2019
Commercial,Customer Support Group,Ttl IT & Comms,60126878,TELEFONICA UK LTD,0.51,05/04/2019
Commercial,Customer Support Group,Ttl IT & Comms,60126905,TELEFONICA UK LTD,40.00,04/04/2019
Commercial,Customer Support Group,Ttl IT & Comms,60126933,TELEFONICA UK LTD,50.00,04/04/2019
Commercial,Customer Support Group,Water Services,60127373,AFFINITY WATER LIMITED,247.34,04/04/2019
Commercial,Customer Support Group,Water Services,60127576,AFFINITY WATER LIMITED,480.09,04/04/2019
Commercial,Customer Support Group,Water Services,60128638,AFFINITY WATER LIMITED,42.81,24/04/2019
Commercial,Customer Support Group,Water Services,60128076,ANGEL SPRINGS LTD,283.32,29/04/2019
Commercial,Customer Support Group,Water Services,60128211,ANGEL SPRINGS LTD,400.80,29/04/2019
Commercial,Customer Support Group,Water Services,60112305,CASTLE WATER LTD,87.21,08/04/2019
Commercial,Customer Support Group,Water Services,60114333,CASTLE WATER LTD,128.45,08/04/2019
Commercial,Customer Support Group,Water Services,60118053,CASTLE WATER LTD,90.44,10/04/2019
Commercial,Customer Support Group,Water Services,60120013,CASTLE WATER LTD,93.79,08/04/2019
Commercial,Customer Support Group,Water Services,60126792,CASTLE WATER LTD,561.98,11/04/2019
Commercial,Customer Support Group,Water Services,60127360,MIDDLESEX UNIVERSITY,"2,610.94",04/04/2019
Commercial,HB LAW,Professional Services,60128128,ANTHONY COLLINS SOLICITORS,"1,657.00",18/04/2019
Commercial,HB LAW,Professional Services,60127419,LONDON BOROUGH OF HARROW,"313,887.93",29/04/2019
Commercial,Housing Needs Resources,Consultants Fees,60127355,BARNET HOMES LIMITED,"92,460.00",09/04/2019
Commercial,Housing Needs Resources,Consultants Fees,60127480,BARNET HOMES LIMITED,"318,763.08",05/04/2019
Commercial,Housing Needs Resources,Consultants Fees,60127496,BARNET HOMES LIMITED,"7,750.00",05/04/2019
Commercial,Housing Needs Resources,Consultants Fees,60127530,BARNET HOMES LIMITED,"120,000.00",09/04/2019
Commercial,Housing Needs Resources,Consultants Fees,60127736,BARNET HOMES LIMITED,"90,290.00",08/04/2019
Commercial,Housing Needs Resources,Consultants Fees,60127799,BARNET HOMES LIMITED,"25,000.00",08/04/2019
Commercial,Housing Needs Resources,Consultants Fees,60128011,BARNET HOMES LIMITED,"38,074.23",12/04/2019
Commercial,Housing Needs Resources,Consultants Fees,60127998,THE BARNETGROUP LIMITED,"57,446.16",10/04/2019
Commercial,Housing Needs Resources,Consultants Fees,60128277,THE BARNETGROUP LIMITED,"124,875.87",16/04/2019
Commercial,Housing Needs Resources,Consultants Fees,60128742,THE BARNETGROUP LIMITED,"27,995.58",26/04/2019
Commercial,Housing Needs Resources,Consultants Fees,60128765,THE BARNETGROUP LIMITED,"22,052.00",26/04/2019
Commercial,Housing Needs Resources,Consultants Fees,60128769,THE BARNETGROUP LIMITED,"19,542.90",26/04/2019
Commercial,Housing Needs Resources,Consultants Fees,60128837,THE BARNETGROUP LIMITED,"33,021.58",29/04/2019
COMMERCIAL,HOUSING NEEDS RESOURCES,Grant Payments,80024120,REDACTED - PERSONAL DATA,"1,091.25",24/04/2019
Commercial,Housing Needs Resources,Other Agencies - Third Party P,60128486,THE BARNETGROUP LIMITED,"2,400.00",23/04/2019
Commercial,Housing Needs Resources,Other Services,60128442,THE BARNETGROUP LIMITED,"25,285.17",23/04/2019
Commercial,Housing Needs Resources,Other Services,60128456,THE BARNETGROUP LIMITED,"47,601.33",23/04/2019
Commercial,Housing Needs Resources,Private Contractors - Third Pa,60126128,THE BARNETGROUP LIMITED,"20,401.69",05/04/2019
Commercial,Housing Needs Resources,Private Contractors - Third Pa,60128286,THE BARNETGROUP LIMITED,"34,312.40",16/04/2019
Commercial,Housing Needs Resources,Private Contractors - Third Pa,60128421,THE BARNETGROUP LIMITED,"5,073,111.17",23/04/2019
COMMERCIAL,HOUSING NEEDS RESOURCES,Professional Services,60127240,TBG OPEN DOOR LIMITED,"1,302,204.69",04/04/2019
Commercial,Housing Needs Resources,Professional Services,60126539,THE BARNETGROUP LIMITED,"85,000.00",11/04/2019
COMMERCIAL,HOUSING REVENUE ACCOUNT,Consultants Fees,60127384,ALLIES AND MORRRISON,"9,323.50",25/04/2019
COMMERCIAL,HOUSING REVENUE ACCOUNT,Consultants Fees,60127792,BARNET HOMES LIMITED,"43,902.50",08/04/2019
COMMERCIAL,HOUSING REVENUE ACCOUNT,Consultants Fees,60127941,THE BARNETGROUP LIMITED,"25,187.50",16/04/2019
Commercial,HRA,Advertising,60128948,TMP (UK) LTD,296.00,29/04/2019
Commercial,HRA,Consultants Fees,60128857,AD HOC PROPERTY MANAGEMENT LTD,225.00,29/04/2019
Commercial,HRA,Consultants Fees,60127430,BARNET HOMES LIMITED,"147,263.00",04/04/2019
Commercial,HRA,Consultants Fees,60127540,BARNET HOMES LIMITED,"77,625.00",04/04/2019
Commercial,HRA,Consultants Fees,60127547,BARNET HOMES LIMITED,"98,584.71",04/04/2019
Commercial,HRA,Consultants Fees,60126876,PRIORITY ESTATES PROJECT LTD,"2,794.00",24/04/2019
Commercial,HRA,Consultants Fees,60127862,THE BARNETGROUP LIMITED,"9,032.30",11/04/2019
Commercial,HRA,Consultants Fees,60127943,THE BARNETGROUP LIMITED,685.50,11/04/2019
Commercial,HRA,Consultants Fees,60128318,THE BARNETGROUP LIMITED,"30,750.00",16/04/2019
Commercial,HRA,Consultants Fees,60128405,THE BARNETGROUP LIMITED,"4,351.32",17/04/2019
Commercial,HRA,Consultants Fees,60128259,TMP (UK) LTD,630.00,16/04/2019
Commercial,HRA,Consultants Fees,60128082,TROWERS & HAMLINS,"1,731.26",11/04/2019
Commercial,HRA,Consultants Fees,60128397,TROWERS & HAMLINS,"1,683.46",18/04/2019
Commercial,HRA,Consultants Fees,60128413,TROWERS & HAMLINS,"3,491.86",17/04/2019
Commercial,HRA,Other Services,60127459,THE BARNETGROUP LIMITED,"8,854.00",09/04/2019
Commercial,HRA,Other Services,60127786,THE BARNETGROUP LIMITED,"1,975.20",17/04/2019
Commercial,HRA,Other Services,60127835,THE BARNETGROUP LIMITED,"61,250.29",17/04/2019
Commercial,HRA,Other Services,60128307,THE BARNETGROUP LIMITED,"28,204.88",16/04/2019
Commercial,HRA,Other Services,60128468,THE BARNETGROUP LIMITED,"4,040,291.82",23/04/2019
Commercial,Parking & Infrastructure,Building Repairs & Maintenance,60127234,BARNET LOCK CENTRE LTD.,121.84,04/04/2019
Commercial,Parking & Infrastructure,Building Repairs & Maintenance,60117874,OAKRAY LIMITED,160.00,03/04/2019
Commercial,Parking & Infrastructure,Building Repairs & Maintenance,60126710,OAKRAY LIMITED,160.00,04/04/2019
Commercial,Parking & Infrastructure,Building Repairs & Maintenance,60127353,RM COUNTRYSIDE SERVICES LTD,535.00,04/04/2019
Commercial,Parking & Infrastructure,Building Repairs & Maintenance,10015148,SECOM PLC,7.20,29/04/2019
Commercial,Parking & Infrastructure,Building Repairs & Maintenance,60127502,SECOM PLC,826.00,05/04/2019
Commercial,Parking & Infrastructure,Electricity,10015098,BARNET LIGHTING SERVICES LTD,"828,945.63",02/04/2019
Commercial,Parking & Infrastructure,Electricity,10015122,BARNET LIGHTING SERVICES LTD,"23,000.00",11/04/2019
Commercial,Parking & Infrastructure,Electricity,60125374,KENT COUNTY COUNCIL (KCS),426.23,02/04/2019
Commercial,Parking & Infrastructure,Electricity,60125811,KENT COUNTY COUNCIL (KCS),"2,678.78",02/04/2019
Commercial,Parking & Infrastructure,Electricity,60126667,KENT COUNTY COUNCIL (KCS),38.68,03/04/2019
Commercial,Parking & Infrastructure,Electricity,60126672,KENT COUNTY COUNCIL (KCS),42.51,03/04/2019
Commercial,Parking & Infrastructure,Equipment and Materials Purcha,60128798,EXACTRAK LTD T/A AVERY WEIGH-TRONIX,605.00,29/04/2019
Commercial,Parking & Infrastructure,Equipment and Materials Purcha,60107135,GREENHAM TRADING LIMITED,-20.48,11/04/2019
Commercial,Parking & Infrastructure,Equipment and Materials Purcha,60126349,GREENHAM TRADING LIMITED,53.08,11/04/2019
Commercial,Parking & Infrastructure,Equipment and Materials Purcha,60128249,GREENHAM TRADING LIMITED,438.86,17/04/2019
Commercial,Parking & Infrastructure,Equipment and Materials Purcha,60128370,KB INDUSTRIES UK LTD,"8,250.00",17/04/2019
Commercial,Parking & Infrastructure,Equipment and Materials Purcha,60125864,LAFARGE TARMAC TRADING LIMITED,205.80,04/04/2019
Commercial,Parking & Infrastructure,Equipment and Materials Purcha,60126284,LAFARGE TARMAC TRADING LIMITED,272.91,11/04/2019
Commercial,Parking & Infrastructure,Equipment and Materials Purcha,60126904,LAFARGE TARMAC TRADING LIMITED,117.50,11/04/2019
Commercial,Parking & Infrastructure,Equipment and Materials Purcha,60126942,LAFARGE TARMAC TRADING LIMITED,125.27,11/04/2019
Commercial,Parking & Infrastructure,Equipment and Materials Purcha,60127696,LAFARGE TARMAC TRADING LIMITED,143.17,25/04/2019
Commercial,Parking & Infrastructure,Equipment and Materials Purcha,60127677,RENNICK UK LTD,570.52,25/04/2019
Commercial,Parking & Infrastructure,Equipment and Materials Purcha,60128220,W. FAYERS & SONS,747.04,16/04/2019
Commercial,Parking & Infrastructure,Equipment and Materials Purcha,60128476,W. FAYERS & SONS,481.60,23/04/2019
Commercial,Parking & Infrastructure,Fees and Charges,60128250,BARNET LIGHTING SERVICES LTD,730.91,23/04/2019
Commercial,Parking & Infrastructure,Gas,80025468,BRITISH GAS BUSINESS,7.09,29/04/2019
Commercial,Parking & Infrastructure,Gas,60124996,KENT COUNTY COUNCIL (KCS),528.46,02/04/2019
Commercial,Parking & Infrastructure,Gas,60126660,KENT COUNTY COUNCIL (KCS),43.89,02/04/2019
Commercial,Parking & Infrastructure,Gas,60126664,KENT COUNTY COUNCIL (KCS),245.58,02/04/2019
Commercial,Parking & Infrastructure,Gas,60126674,KENT COUNTY COUNCIL (KCS),39.20,02/04/2019
Commercial,Parking & Infrastructure,Gas,60126690,KENT COUNTY COUNCIL (KCS),258.23,02/04/2019
Commercial,Parking & Infrastructure,Gas,60126700,KENT COUNTY COUNCIL (KCS),532.90,02/04/2019
Commercial,Parking & Infrastructure,Gas,60126715,KENT COUNTY COUNCIL (KCS),515.44,02/04/2019
Commercial,Parking & Infrastructure,Grounds maintenance,60127642,ANGLIA SIGN CASTING LTD,80.08,08/04/2019
Commercial,Parking & Infrastructure,Grounds maintenance,60127843,BOURNE AMENITY LTD,"1,400.00",25/04/2019
Commercial,Parking & Infrastructure,Grounds maintenance,60128137,CANAL & RIVER TRUST,155.28,18/04/2019
Commercial,Parking & Infrastructure,Grounds maintenance,60128699,CASTLE WATER LTD,208.33,24/04/2019
Commercial,Parking & Infrastructure,Grounds maintenance,60126136,GLENDALE COUNTRYSIDE LTD,929.81,11/04/2019
Commercial,Parking & Infrastructure,Grounds maintenance,60126141,GLENDALE COUNTRYSIDE LTD,405.25,11/04/2019
Commercial,Parking & Infrastructure,Grounds maintenance,60126145,GLENDALE COUNTRYSIDE LTD,"1,061.43",11/04/2019
Commercial,Parking & Infrastructure,Grounds maintenance,60126161,GLENDALE COUNTRYSIDE LTD,"1,181.24",11/04/2019
Commercial,Parking & Infrastructure,Grounds maintenance,60126181,GLENDALE COUNTRYSIDE LTD,"5,546.61",11/04/2019
Commercial,Parking & Infrastructure,Grounds maintenance,60126212,GLENDALE COUNTRYSIDE LTD,"57,380.00",11/04/2019
Commercial,Parking & Infrastructure,Grounds maintenance,60126296,GLENDALE COUNTRYSIDE LTD,"1,006.27",11/04/2019
Commercial,Parking & Infrastructure,Grounds maintenance,60127649,GLENDALE COUNTRYSIDE LTD,"5,936.29",25/04/2019
Commercial,Parking & Infrastructure,Grounds maintenance,60127668,GLENDALE COUNTRYSIDE LTD,"8,584.06",25/04/2019
Commercial,Parking & Infrastructure,Grounds maintenance,60127673,GLENDALE COUNTRYSIDE LTD,"58,455.00",25/04/2019
Commercial,Parking & Infrastructure,Grounds maintenance,60127689,GLENDALE COUNTRYSIDE LTD,"6,236.71",25/04/2019
Commercial,Parking & Infrastructure,Grounds maintenance,60127698,GLENDALE COUNTRYSIDE LTD,"4,192.80",25/04/2019
Commercial,Parking & Infrastructure,Grounds maintenance,60127700,GLENDALE COUNTRYSIDE LTD,"2,898.34",25/04/2019
Commercial,Parking & Infrastructure,Grounds maintenance,60128253,GLENDALE COUNTRYSIDE LTD,155.65,25/04/2019
Commercial,Parking & Infrastructure,Grounds maintenance,60128282,GLENDALE COUNTRYSIDE LTD,365.15,25/04/2019
Commercial,Parking & Infrastructure,Grounds maintenance,60128389,GLENDALE COUNTRYSIDE LTD,"7,374.82",25/04/2019
Commercial,Parking & Infrastructure,Grounds maintenance,60128525,GLENDALE COUNTRYSIDE LTD,436.90,25/04/2019
Commercial,Parking & Infrastructure,Grounds maintenance,60126319,GRISTWOOD & TOM LTD,"2,082.00",11/04/2019
Commercial,Parking & Infrastructure,Grounds maintenance,60126352,GRISTWOOD & TOM LTD,"1,270.00",11/04/2019
Commercial,Parking & Infrastructure,Grounds maintenance,60126830,GRISTWOOD & TOM LTD,"4,880.00",18/04/2019
Commercial,Parking & Infrastructure,Grounds maintenance,60127285,GRISTWOOD & TOM LTD,"44,076.00",18/04/2019
Commercial,Parking & Infrastructure,Grounds maintenance,60127315,GRISTWOOD & TOM LTD,"28,793.00",18/04/2019
Commercial,Parking & Infrastructure,Grounds maintenance,60127446,GRISTWOOD & TOM LTD,"6,950.00",24/04/2019
Commercial,Parking & Infrastructure,Grounds maintenance,60127562,GRISTWOOD & TOM LTD,"26,725.70",18/04/2019
Commercial,Parking & Infrastructure,Grounds maintenance,60127682,GRISTWOOD & TOM LTD,"21,430.00",25/04/2019
Commercial,Parking & Infrastructure,Grounds maintenance,60127690,GRISTWOOD & TOM LTD,221.50,25/04/2019
Commercial,Parking & Infrastructure,Grounds maintenance,60127692,GRISTWOOD & TOM LTD,"24,542.00",25/04/2019
Commercial,Parking & Infrastructure,Other Services,60126986,BARNET LOCK CENTRE LTD.,102.11,01/04/2019
Commercial,Parking & Infrastructure,Other Services,60128620,COUNTRYSIDE CONTRACTS,"3,320.00",23/04/2019
Commercial,Parking & Infrastructure,Other Services,60125741,LONDON COUNCILS,"52,696.00",04/04/2019
Commercial,Parking & Infrastructure,Other Services,60128197,LONDON SURFACING CO LTD,"9,834.32",18/04/2019
Commercial,Parking & Infrastructure,Other Services,60127022,RM COUNTRYSIDE SERVICES LTD,"1,656.00",01/04/2019
Commercial,Parking & Infrastructure,Other Services,60127363,RM COUNTRYSIDE SERVICES LTD,330.75,04/04/2019
Commercial,Parking & Infrastructure,Other Services,60127386,RM COUNTRYSIDE SERVICES LTD,"1,205.00",04/04/2019
Commercial,Parking & Infrastructure,Other Services,60127812,RM COUNTRYSIDE SERVICES LTD,"1,680.00",16/04/2019
Commercial,Parking & Infrastructure,Professional Services,60126873,NSL LTD,"403,979.48",03/04/2019
Commercial,Parking & Infrastructure,Professional Services,60126908,NSL LTD,"388,508.79",03/04/2019
Commercial,Parking & Infrastructure,Professional Services,60126919,NSL LTD,"448,969.58",03/04/2019
Commercial,Parking & Infrastructure,Professional Services,60126929,NSL LTD,"390,959.13",03/04/2019
Commercial,Parking & Infrastructure,Water Services,60126692,AFFINITY WATER LIMITED,"1,264.38",15/04/2019
Commercial,Parking & Infrastructure,Water Services,60128516,AFFINITY WATER LIMITED,191.02,25/04/2019
Commercial,Parking & Infrastructure,Water Services,60128675,AFFINITY WATER LIMITED,397.60,24/04/2019
Commercial,Parking & Infrastructure,Water Services,60128681,AFFINITY WATER LIMITED,106.41,24/04/2019
Commercial,Parking & Infrastructure,Water Services,60129081,AFFINITY WATER LIMITED,989.75,30/04/2019
Commercial,Parking & Infrastructure,Water Services,60126696,CASTLE WATER LTD,17.63,15/04/2019
Commercial,Parking & Infrastructure,Water Services,60127049,CASTLE WATER LTD,517.44,15/04/2019
Commercial,Parking & Infrastructure,Water Services,60128155,CASTLE WATER LTD,83.19,15/04/2019
Commercial,Parking & Infrastructure,Water Services,60128292,CASTLE WATER LTD,705.21,17/04/2019
Commercial,Parking & Infrastructure,Water Services,60128315,CASTLE WATER LTD,9.26,17/04/2019
Commercial,Parking & Infrastructure,Water Services,60128333,CASTLE WATER LTD,175.54,17/04/2019
Commercial,Parking & Infrastructure,Water Services,60128337,CASTLE WATER LTD,175.76,16/04/2019
Commercial,Parking & Infrastructure,Water Services,60128359,CASTLE WATER LTD,19.78,17/04/2019
Commercial,Parking & Infrastructure,Water Services,60128431,CASTLE WATER LTD,5.83,23/04/2019
Commercial,Parking & Infrastructure,Water Services,60128436,CASTLE WATER LTD,44.77,23/04/2019
Commercial,Parking & Infrastructure,Water Services,60128590,CASTLE WATER LTD,164.38,24/04/2019
Commercial,Parking & Infrastructure,Water Services,60128627,CASTLE WATER LTD,89.41,24/04/2019
Commercial,Parking & Infrastructure,Water Services,60128634,CASTLE WATER LTD,29.59,24/04/2019
Commercial,Parking & Infrastructure,Water Services,60128696,CASTLE WATER LTD,6.96,24/04/2019
Commercial,Parking & Infrastructure,Water Services,60128708,CASTLE WATER LTD,77.87,24/04/2019
Commercial,Public Health,Food Costs,60126750,YINKA THOMAS TRAINING,"1,190.00",18/04/2019
Commercial,Public Health,Health authorities - Third Par,60127432,BARTS HEALTH NHS TRUST,"2,305.83",18/04/2019
Commercial,Public Health,Health authorities - Third Par,60127765,CENTRAL & NORTH WEST LONDON NHS FT,"150,363.73",16/04/2019
Commercial,Public Health,Health authorities - Third Par,60125977,CENTRAL LONDONCOMMUNITY HEALTHCARE,"101,220.00",01/04/2019
Commercial,Public Health,Health authorities - Third Par,60127219,CENTRAL LONDONCOMMUNITY HEALTHCARE,"60,000.00",02/04/2019
Commercial,Public Health,Health authorities - Third Par,60126770,CHELSEA & WESTMINSTER HOSPITAL NHS,32.74,02/04/2019
Commercial,Public Health,Health authorities - Third Par,60127006,COVENTRY & WARWICKSHIRE PARTNERSHIP,246.75,18/04/2019
Commercial,Public Health,Health authorities - Third Par,60127124,REDACTED - PERSONAL DATA,100.00,03/04/2019
Commercial,Public Health,Health authorities - Third Par,60127148,REDACTED - PERSONAL DATA,250.00,03/04/2019
Commercial,Public Health,Health authorities - Third Par,60127266,EAST FINCHLEY MEDICAL PRACTICE,25.00,05/04/2019
Commercial,Public Health,Health authorities - Third Par,60127300,EAST FINCHLEY MEDICAL PRACTICE,25.00,05/04/2019
Commercial,Public Health,Health authorities - Third Par,60125906,GUY'S AND ST THOMAS' NHS FT,"4,861.59",04/04/2019
Commercial,Public Health,Health authorities - Third Par,60126969,HOMERTON UNIVERSITY HOSPITAL NHS FOUNDAT,"3,971.82",18/04/2019
Commercial,Public Health,Health authorities - Third Par,60126994,HOMERTON UNIVERSITY HOSPITAL NHS FOUNDAT,540.38,01/04/2019
Commercial,Public Health,Health authorities - Third Par,60127000,HOMERTON UNIVERSITY HOSPITAL NHS FOUNDAT,"1,655.96",01/04/2019
Commercial,Public Health,Health authorities - Third Par,60127045,HOMERTON UNIVERSITY HOSPITAL NHS FOUNDAT,761.38,01/04/2019
Commercial,Public Health,Health authorities - Third Par,60127080,HOMERTON UNIVERSITY HOSPITAL NHS FOUNDAT,298.84,01/04/2019
Commercial,Public Health,Health authorities - Third Par,60127258,HOMERTON UNIVERSITY HOSPITAL NHS FOUNDAT,983.41,03/04/2019
Commercial,Public Health,Health authorities - Third Par,60127362,JAI MEDICAL CENTRE,225.00,30/04/2019
Commercial,Public Health,Health authorities - Third Par,60127587,JAI MEDICAL CENTRE,10.00,30/04/2019
Commercial,Public Health,Health authorities - Third Par,60126661,KING'S COLLEGE HOSPITAL NHS FOUNDATION T,743.12,18/04/2019
Commercial,Public Health,Health authorities - Third Par,60127966,LEWISHAM AND GREENWICH NHS TRUST,109.88,18/04/2019
Commercial,Public Health,Health authorities - Third Par,60127581,LICHFIELD GROVE SURGERY,570.00,30/04/2019
Commercial,Public Health,Health authorities - Third Par,60125829,LOCALA COMMUNITY PARTNERSHIPS C.I.C,131.00,04/04/2019
Commercial,Public Health,Health authorities - Third Par,10015145,MULBERRY MEDICAL PRACTICE,79.90,26/04/2019
Commercial,Public Health,Health authorities - Third Par,60126220,NORTHAMPTONSHIRE HEALTHCARE NHS,136.00,04/04/2019
Commercial,Public Health,Health authorities - Third Par,60127053,OXFORD UNIVERSITY HOSPITALS NHS FOUNDATI,337.00,01/04/2019
Commercial,Public Health,Health authorities - Third Par,60127075,OXFORD UNIVERSITY HOSPITALS NHS FOUNDATI,254.60,01/04/2019
Commercial,Public Health,Health authorities - Third Par,60127406,PARKVIEW SURGERY,325.00,04/04/2019
Commercial,Public Health,Health authorities - Third Par,60127565,PARKVIEW SURGERY,275.00,04/04/2019
Commercial,Public Health,Health authorities - Third Par,60127414,PENNINE DRIVE SURGERY,10.00,04/04/2019
Commercial,Public Health,Health authorities - Third Par,60127515,PENNINE DRIVE SURGERY,25.00,04/04/2019
Commercial,Public Health,Health authorities - Third Par,60127538,PENNINE DRIVE SURGERY,300.00,04/04/2019
Commercial,Public Health,Health authorities - Third Par,60126762,ROYAL BERKSHIRE NHS FOUNDATION TRUST,262.00,02/04/2019
Commercial,Public Health,Health authorities - Third Par,60127249,TORRINGTON PARK GROUP PRACTICE,290.00,03/04/2019
Commercial,Public Health,Health authorities - Third Par,60127265,TORRINGTON PARK GROUP PRACTICE,"1,175.00",05/04/2019
Commercial,Public Health,Health authorities - Third Par,60127505,WATLING MEDICAL CENTRE,525.00,04/04/2019
Commercial,Public Health,Health authorities - Third Par,60127516,WATLING MEDICAL CENTRE,80.00,04/04/2019
Commercial,Public Health,Health authorities - Third Par,60127595,WATLING MEDICAL CENTRE,225.00,04/04/2019
Commercial,Public Health,Health authorities - Third Par,60127051,WESTERN SUSSEX HOSPITALS NHS FT,30.54,24/04/2019
Commercial,Public Health,Health authorities - Third Par,60125579,WESTMINSTER DRUG PROJECT,"52,440.00",09/04/2019
Commercial,Public Health,Health authorities - Third Par,60125595,WESTMINSTER DRUG PROJECT,"684,405.20",09/04/2019
Commercial,Public Health,Other Establishments - Third P,60126593,GOOD IMPRESSIONS (LONDON) LIMITED,300.00,18/04/2019
Commercial,Public Health,Other Establishments - Third P,60127348,GOOD IMPRESSIONS (LONDON) LIMITED,120.00,25/04/2019
Commercial,Public Health,Other Establishments - Third P,60127370,MHFA ENGLAND,640.00,05/04/2019
Commercial,Public Health,Other Establishments - Third P,60127417,MHFA ENGLAND,227.63,05/04/2019
Commercial,Public Health,Other Establishments - Third P,60127478,MHFA ENGLAND,320.00,05/04/2019
Commercial,Public Health,Other Establishments - Third P,60129041,NHS BARNET CCG,"50,000.00",30/04/2019
Commercial,Public Health,Other Establishments - Third P,60127918,STEPJOCKEY LTD,"6,203.03",09/04/2019
Commercial,Public Health,Other Local Authorities - Thir,60127411,LEEDS CITY COUNCIL,268.00,04/04/2019
Commercial,Public Health,Other Transfer Payments to Soc,60127133,ATTAIN PRODUCTIONS LTD,"7,500.00",18/04/2019
Commercial,Public Health,Other Transfer Payments to Soc,60127369,RETHINK MENTAL ILLNESS,"8,749.00",17/04/2019
Commercial,Public Health,Other Transfer Payments to Soc,60127528,RETHINK MENTAL ILLNESS,"8,749.00",18/04/2019
Commercial,Public Health,Other Transfer Payments to Soc,60127204,TERAPIA,"6,140.00",03/04/2019
Commercial,Public Health,Professional Services,60128294,LONDON BOROUGH OF ISLINGTON,"12,000.00",16/04/2019
Commercial,Public Health,Subscriptions,60127468,PARENT ZONE,600.00,04/04/2019
Commercial,Public Health,Ttl IT & Comms,60127717,IDOX HEALTH LTD,"2,096.10",25/04/2019
Commercial,Regional Enterprise,Advertising,60126546,GOOD IMPRESSIONS (LONDON) LIMITED,180.00,18/04/2019
COMMERCIAL,REGIONAL ENTERPRISE,Advertising,60123696,TMP (UK) LTD,529.50,09/04/2019
Commercial,Regional Enterprise,Advertising,60124713,TMP (UK) LTD,350.00,12/04/2019
Commercial,Regional Enterprise,Advertising,60127262,TMP (UK) LTD,260.00,05/04/2019
Commercial,Regional Enterprise,Advertising,60127304,TMP (UK) LTD,260.00,05/04/2019
Commercial,Regional Enterprise,Advertising,60127310,TMP (UK) LTD,332.00,08/04/2019
Commercial,Regional Enterprise,Advertising,60127339,TMP (UK) LTD,260.00,05/04/2019
Commercial,Regional Enterprise,Advertising,60127376,TMP (UK) LTD,179.00,05/04/2019
Commercial,Regional Enterprise,Advertising,60127389,TMP (UK) LTD,170.00,08/04/2019
Commercial,Regional Enterprise,Advertising,60127394,TMP (UK) LTD,170.00,08/04/2019
Commercial,Regional Enterprise,Advertising,60127400,TMP (UK) LTD,179.00,08/04/2019
Commercial,Regional Enterprise,Advertising,60127402,TMP (UK) LTD,179.00,08/04/2019
Commercial,Regional Enterprise,Advertising,60127495,TMP (UK) LTD,170.00,08/04/2019
Commercial,Regional Enterprise,Advertising,60127500,TMP (UK) LTD,179.00,08/04/2019
Commercial,Regional Enterprise,Advertising,60127524,TMP (UK) LTD,170.00,08/04/2019
Commercial,Regional Enterprise,Advertising,60127550,TMP (UK) LTD,170.00,08/04/2019
Commercial,Regional Enterprise,Advertising,60127551,TMP (UK) LTD,170.00,08/04/2019
Commercial,Regional Enterprise,Advertising,60127644,TMP (UK) LTD,90.00,11/04/2019
Commercial,Regional Enterprise,Advertising,60127647,TMP (UK) LTD,99.00,26/04/2019
Commercial,Regional Enterprise,Advertising,60127705,TMP (UK) LTD,99.00,11/04/2019
Commercial,Regional Enterprise,Advertising,60127882,TMP (UK) LTD,840.00,09/04/2019
Commercial,Regional Enterprise,Advertising,60128256,TMP (UK) LTD,90.00,16/04/2019
Commercial,Regional Enterprise,Advertising,60128274,TMP (UK) LTD,179.00,16/04/2019
Commercial,Regional Enterprise,Advertising,60128308,TMP (UK) LTD,90.00,16/04/2019
Commercial,Regional Enterprise,Advertising,60128316,TMP (UK) LTD,90.00,16/04/2019
Commercial,Regional Enterprise,Advertising,60128317,TMP (UK) LTD,99.00,16/04/2019
Commercial,Regional Enterprise,Advertising,60128326,TMP (UK) LTD,179.00,16/04/2019
Commercial,Regional Enterprise,Advertising,60128335,TMP (UK) LTD,99.00,16/04/2019
Commercial,Regional Enterprise,Advertising,60128343,TMP (UK) LTD,90.00,16/04/2019
Commercial,Regional Enterprise,Advertising,60128361,TMP (UK) LTD,90.00,16/04/2019
Commercial,Regional Enterprise,Advertising,60128562,TMP (UK) LTD,99.00,24/04/2019
Commercial,Regional Enterprise,Advertising,60128566,TMP (UK) LTD,170.00,24/04/2019
Commercial,Regional Enterprise,Advertising,60128584,TMP (UK) LTD,99.00,24/04/2019
Commercial,Regional Enterprise,Advertising,60128586,TMP (UK) LTD,188.00,24/04/2019
Commercial,Regional Enterprise,Advertising,60129022,TMP (UK) LTD,188.00,30/04/2019
Commercial,Regional Enterprise,Advertising,60129028,TMP (UK) LTD,188.00,30/04/2019
Commercial,Regional Enterprise,Advertising,60129034,TMP (UK) LTD,90.00,30/04/2019
COMMERCIAL,REGIONAL ENTERPRISE,Building Repairs & Maintenance,60127408,BARTLETT TREE EXPERTS,"1,600.00",04/04/2019
COMMERCIAL,REGIONAL ENTERPRISE,Building Repairs & Maintenance,60126371,GUILD ARCHITECTURAL RESTORATION LTD,"26,850.00",08/04/2019
COMMERCIAL,REGIONAL ENTERPRISE,Building Repairs & Maintenance,60126798,GUILD ARCHITECTURAL RESTORATION LTD,"31,953.94",08/04/2019
COMMERCIAL,REGIONAL ENTERPRISE,Capital Construction and Works,60126373,CONWAY AECOM LTD,"6,872.68",11/04/2019
COMMERCIAL,REGIONAL ENTERPRISE,Capital Construction and Works,60127056,CONWAY AECOM LTD,"1,855.80",04/04/2019
COMMERCIAL,REGIONAL ENTERPRISE,Capital Construction and Works,60127087,CONWAY AECOM LTD,"7,075.03",01/04/2019
COMMERCIAL,REGIONAL ENTERPRISE,Capital Construction and Works,60128052,CONWAY AECOM LTD,"52,757.27",25/04/2019
COMMERCIAL,REGIONAL ENTERPRISE,Consultants Fees,10015113,CURRIE & BROWN UK LTD,"70,000.00",08/04/2019
Commercial,Regional Enterprise,Consultants Fees,60128883,GOWLING WLG,"5,313.64",29/04/2019
COMMERCIAL,REGIONAL ENTERPRISE,Consultants Fees,60128884,GOWLING WLG,"28,425.33",29/04/2019
COMMERCIAL,REGIONAL ENTERPRISE,Consultants Fees,60128889,GOWLING WLG,"31,603.75",29/04/2019
COMMERCIAL,REGIONAL ENTERPRISE,Consultants Fees,60128892,GOWLING WLG,"8,017.16",29/04/2019
Commercial,Regional Enterprise,Consultants Fees,60128893,GOWLING WLG,"32,999.70",29/04/2019
Commercial,Regional Enterprise,Consultants Fees,60128906,GOWLING WLG,"36,024.43",29/04/2019
COMMERCIAL,REGIONAL ENTERPRISE,Consultants Fees,60128908,GOWLING WLG,"1,074.19",29/04/2019
COMMERCIAL,REGIONAL ENTERPRISE,Consultants Fees,60128909,GOWLING WLG,"2,576.08",29/04/2019
COMMERCIAL,REGIONAL ENTERPRISE,Consultants Fees,60128920,GOWLING WLG,"1,085.42",29/04/2019
COMMERCIAL,REGIONAL ENTERPRISE,Consultants Fees,60128924,GOWLING WLG,"1,000.00",29/04/2019
Commercial,Regional Enterprise,Consultants Fees,60128932,GOWLING WLG,"4,479.66",29/04/2019
Commercial,Regional Enterprise,Consultants Fees,60128935,GOWLING WLG,"1,603.28",29/04/2019
COMMERCIAL,REGIONAL ENTERPRISE,Consultants Fees,60128936,GOWLING WLG,"8,926.48",29/04/2019
Commercial,Regional Enterprise,Consultants Fees,60128938,GOWLING WLG,"14,412.63",29/04/2019
Commercial,Regional Enterprise,Consultants Fees,60128943,GOWLING WLG,"47,631.20",29/04/2019
COMMERCIAL,REGIONAL ENTERPRISE,Consultants Fees,60128961,GOWLING WLG,"7,165.90",29/04/2019
Commercial,Regional Enterprise,Consultants Fees,60128962,GOWLING WLG,"5,041.36",29/04/2019
Commercial,Regional Enterprise,Consultants Fees,60128979,GOWLING WLG,"61,158.20",29/04/2019
COMMERCIAL,REGIONAL ENTERPRISE,Consultants Fees,60128987,GOWLING WLG,"29,885.65",29/04/2019
COMMERCIAL,REGIONAL ENTERPRISE,Consultants Fees,60128989,GOWLING WLG,"10,327.60",29/04/2019
Commercial,Regional Enterprise,Consultants Fees,60128997,GOWLING WLG,"30,511.51",29/04/2019
Commercial,Regional Enterprise,Consultants Fees,60129006,GOWLING WLG,"7,140.33",29/04/2019
Commercial,Regional Enterprise,Consultants Fees,60129010,GOWLING WLG,687.40,29/04/2019
Commercial,Regional Enterprise,Consultants Fees,60129012,GOWLING WLG,"4,549.68",29/04/2019
COMMERCIAL,REGIONAL ENTERPRISE,Consultants Fees,60129013,GOWLING WLG,432.31,29/04/2019
COMMERCIAL,REGIONAL ENTERPRISE,Consultants Fees,60129017,GOWLING WLG,391.00,29/04/2019
Commercial,Regional Enterprise,Consultants Fees,60129020,GOWLING WLG,"1,072.26",29/04/2019
COMMERCIAL,REGIONAL ENTERPRISE,Consultants Fees,60129025,GOWLING WLG,"1,021.20",29/04/2019
Commercial,Regional Enterprise,Consultants Fees,60129032,GOWLING WLG,"23,315.14",29/04/2019
Commercial,Regional Enterprise,Consultants Fees,60129036,GOWLING WLG,"2,401.11",29/04/2019
COMMERCIAL,REGIONAL ENTERPRISE,Consultants Fees,60129145,GOWLING WLG,"1,191.40",30/04/2019
COMMERCIAL,REGIONAL ENTERPRISE,Consultants Fees,60128490,JOHN GRAHAM CONSTRUCTION LTD,"90,295.01",18/04/2019
Commercial,Regional Enterprise,Consultants Fees,60125088,RE (REGIONAL ENTERPRISE) LIMITED,"11,540.11",12/04/2019
Commercial,Regional Enterprise,Consultants Fees,60101267,VALUATION OFFICE AGENCY,"2,922.10",08/04/2019
COMMERCIAL,REGIONAL ENTERPRISE,Equipment and Materials Purcha,60126382,CONWAY AECOM LTD,"14,471.91",11/04/2019
COMMERCIAL,REGIONAL ENTERPRISE,Equipment and Materials Purcha,60126389,CONWAY AECOM LTD,"31,280.81",11/04/2019
COMMERCIAL,REGIONAL ENTERPRISE,Equipment and Materials Purcha,60126429,CONWAY AECOM LTD,"13,813.36",11/04/2019
COMMERCIAL,REGIONAL ENTERPRISE,Equipment and Materials Purcha,60126465,CONWAY AECOM LTD,"15,391.99",11/04/2019
COMMERCIAL,REGIONAL ENTERPRISE,Equipment and Materials Purcha,60127680,CONWAY AECOM LTD,"42,910.64",25/04/2019
COMMERCIAL,REGIONAL ENTERPRISE,Equipment and Materials Purcha,60127508,JOHN GRAHAM CONSTRUCTION LTD,"73,496.66",09/04/2019
COMMERCIAL,REGIONAL ENTERPRISE,Equipment and Materials Purcha,60127737,JOHN GRAHAM CONSTRUCTION LTD,"108,400.57",11/04/2019
COMMERCIAL,REGIONAL ENTERPRISE,Equipment and Materials Purcha,60128520,JOHN GRAHAM CONSTRUCTION LTD,"415,801.53",23/04/2019
COMMERCIAL,REGIONAL ENTERPRISE,Equipment and Materials Purcha,60127934,RM COUNTRYSIDE SERVICES LTD,"15,690.00",09/04/2019
Commercial,Regional Enterprise,Fees and Charges,80024478,REDACTED - PERSONAL DATA,"3,723.74",11/04/2019
Commercial,Regional Enterprise,Fees and Charges,80025092,REDACTED - PERSONAL DATA,104.00,12/04/2019
Commercial,Regional Enterprise,General Sales,80024039,A D BLY CONSTRUCTION LTD,500.00,03/04/2019
Commercial,Regional Enterprise,Grant Payments,80024823,AMWELL CONSTRUCTION LTD,402.00,02/04/2019
Commercial,Regional Enterprise,Grant Payments,80024825,AMWELL CONSTRUCTION LTD,218.40,05/04/2019
Commercial,Regional Enterprise,Grant Payments,80024826,AMWELL CONSTRUCTION LTD,408.00,09/04/2019
Commercial,Regional Enterprise,Grant Payments,80024831,AMWELL CONSTRUCTION LTD,348.00,02/04/2019
COMMERCIAL,REGIONAL ENTERPRISE,Grant Payments,80025015,ARTHUR J. FERRYMAN ASSOCIATES,480.00,10/04/2019
COMMERCIAL,REGIONAL ENTERPRISE,Grant Payments,80025106,ARTHUR J. FERRYMAN ASSOCIATES,868.80,11/04/2019
COMMERCIAL,REGIONAL ENTERPRISE,Grant Payments,80025107,ARTHUR J. FERRYMAN ASSOCIATES,"1,952.76",11/04/2019
COMMERCIAL,REGIONAL ENTERPRISE,Grant Payments,80025215,ARTHUR J. FERRYMAN ASSOCIATES,480.00,23/04/2019
COMMERCIAL,REGIONAL ENTERPRISE,Grant Payments,80025126,DP BUILDERS DISABLED ADAPTATIONS,"6,435.00",18/04/2019
COMMERCIAL,REGIONAL ENTERPRISE,Grant Payments,80025362,DP BUILDERS DISABLED ADAPTATIONS,"5,312.00",25/04/2019
Commercial,Regional Enterprise,Grant Payments,80025374,DP BUILDERS DISABLED ADAPTATIONS,"1,895.00",25/04/2019
COMMERCIAL,REGIONAL ENTERPRISE,Grant Payments,80025276,EMS STAIRLIFTS,"7,240.00",29/04/2019
COMMERCIAL,REGIONAL ENTERPRISE,Grant Payments,80025242,G J PULHAM,"1,414.00",23/04/2019
COMMERCIAL,REGIONAL ENTERPRISE,Grant Payments,80025262,G J PULHAM,"6,068.52",23/04/2019
COMMERCIAL,REGIONAL ENTERPRISE,Grant Payments,80025131,H D PROPERTY SERVICES LTD,"3,226.00",11/04/2019
COMMERCIAL,REGIONAL ENTERPRISE,Grant Payments,80025194,H D PROPERTY SERVICES LTD,985.00,23/04/2019
Commercial,Regional Enterprise,Grant Payments,80024827,REDACTED - PERSONAL DATA,380.00,02/04/2019
COMMERCIAL,REGIONAL ENTERPRISE,Grant Payments,80025094,REDACTED - PERSONAL DATA,"17,268.00",10/04/2019
COMMERCIAL,REGIONAL ENTERPRISE,Grant Payments,80023358,SOUTH HERTFORDSHIRE,"7,823.00",29/04/2019
COMMERCIAL,REGIONAL ENTERPRISE,Grant Payments,80023903,SOUTH HERTFORDSHIRE,"7,467.18",24/04/2019
COMMERCIAL,REGIONAL ENTERPRISE,Grant Payments,80025251,SOUTH HERTFORDSHIRE,"6,432.00",23/04/2019
COMMERCIAL,REGIONAL ENTERPRISE,Grant Payments,80025337,SOUTH HERTFORDSHIRE,"7,120.00",24/04/2019
COMMERCIAL,REGIONAL ENTERPRISE,Grant Payments,80025088,STANNAH STAIRLIFTS LTD,"3,142.00",10/04/2019
COMMERCIAL,REGIONAL ENTERPRISE,Grant Payments,80025339,STANNAH STAIRLIFTS LTD,"13,225.00",24/04/2019
COMMERCIAL,REGIONAL ENTERPRISE,Miscellaneous Expenses,60126468,GUILD ARCHITECTURAL RESTORATION LTD,"4,209.40",08/04/2019
COMMERCIAL,REGIONAL ENTERPRISE,Other Services,60125673,B3 CREATIVE LTD,"8,181.95",04/04/2019
COMMERCIAL,REGIONAL ENTERPRISE,Other Services,60128173,BARNET HOMES LIMITED,"20,564.00",12/04/2019
COMMERCIAL,REGIONAL ENTERPRISE,Other Services,60117184,BARNET LIGHTING SERVICES LTD,"-4,959.83",02/04/2019
COMMERCIAL,REGIONAL ENTERPRISE,Other Services,60128204,BEIS CHINUCH PRIMARY SCHOOL,"1,300.00",17/04/2019
COMMERCIAL,REGIONAL ENTERPRISE,Other Services,60128053,BEIS SOROH SCHNEIRER,"1,300.00",12/04/2019
COMMERCIAL,REGIONAL ENTERPRISE,Other Services,60127054,BIG WHEEL THEATRE IN EDUCATION,"19,998.00",18/04/2019
COMMERCIAL,REGIONAL ENTERPRISE,Other Services,60127088,BOUYGUES E&S INFRASTRUCTURE UK LTD,"10,808.36",11/04/2019
COMMERCIAL,REGIONAL ENTERPRISE,Other Services,60126168,BRISTOL OILSKIN & OVERALL CO. LTD,85.40,04/04/2019
COMMERCIAL,REGIONAL ENTERPRISE,Other Services,60127871,BRITISH TELECOMMUNICATIONS PLC,145.98,09/04/2019
Commercial,Regional Enterprise,Other Services,60126999,CASTLE WATER LTD,32.33,01/04/2019
Commercial,Regional Enterprise,Other Services,60127007,CASTLE WATER LTD,19.27,01/04/2019
Commercial,Regional Enterprise,Other Services,60127031,CASTLE WATER LTD,20.45,01/04/2019
Commercial,Regional Enterprise,Other Services,60127033,CASTLE WATER LTD,8.22,01/04/2019
Commercial,Regional Enterprise,Other Services,60127040,CASTLE WATER LTD,13.87,01/04/2019
Commercial,Regional Enterprise,Other Services,60127067,CASTLE WATER LTD,15.51,01/04/2019
Commercial,Regional Enterprise,Other Services,10015093,CONWAY AECOM LTD,118.78,01/04/2019
COMMERCIAL,REGIONAL ENTERPRISE,Other Services,60008093,CONWAY AECOM LTD,"-18,163.53",11/04/2019
COMMERCIAL,REGIONAL ENTERPRISE,Other Services,60125766,CONWAY AECOM LTD,"5,715.14",04/04/2019
COMMERCIAL,REGIONAL ENTERPRISE,Other Services,60125771,CONWAY AECOM LTD,"8,833.61",04/04/2019
COMMERCIAL,REGIONAL ENTERPRISE,Other Services,60125774,CONWAY AECOM LTD,"8,094.79",04/04/2019
COMMERCIAL,REGIONAL ENTERPRISE,Other Services,60125781,CONWAY AECOM LTD,14.55,04/04/2019
COMMERCIAL,REGIONAL ENTERPRISE,Other Services,60125782,CONWAY AECOM LTD,"3,293.92",04/04/2019
COMMERCIAL,REGIONAL ENTERPRISE,Other Services,60126043,CONWAY AECOM LTD,"76,924.21",24/04/2019
COMMERCIAL,REGIONAL ENTERPRISE,Other Services,60126407,CONWAY AECOM LTD,"9,396.24",11/04/2019
COMMERCIAL,REGIONAL ENTERPRISE,Other Services,60126417,CONWAY AECOM LTD,"2,685.12",11/04/2019
COMMERCIAL,REGIONAL ENTERPRISE,Other Services,60126418,CONWAY AECOM LTD,376.81,04/04/2019
COMMERCIAL,REGIONAL ENTERPRISE,Other Services,60126423,CONWAY AECOM LTD,"6,894.99",11/04/2019
COMMERCIAL,REGIONAL ENTERPRISE,Other Services,60126426,CONWAY AECOM LTD,"26,223.58",11/04/2019
COMMERCIAL,REGIONAL ENTERPRISE,Other Services,60126431,CONWAY AECOM LTD,"5,567.40",11/04/2019
COMMERCIAL,REGIONAL ENTERPRISE,Other Services,60126442,CONWAY AECOM LTD,803.05,04/04/2019
COMMERCIAL,REGIONAL ENTERPRISE,Other Services,60126444,CONWAY AECOM LTD,"6,780.45",11/04/2019
COMMERCIAL,REGIONAL ENTERPRISE,Other Services,60126446,CONWAY AECOM LTD,"1,752.26",04/04/2019
COMMERCIAL,REGIONAL ENTERPRISE,Other Services,60126451,CONWAY AECOM LTD,"2,853.96",11/04/2019
COMMERCIAL,REGIONAL ENTERPRISE,Other Services,60126456,CONWAY AECOM LTD,"17,859.22",11/04/2019
COMMERCIAL,REGIONAL ENTERPRISE,Other Services,60126462,CONWAY AECOM LTD,"3,605.56",11/04/2019
COMMERCIAL,REGIONAL ENTERPRISE,Other Services,60126466,CONWAY AECOM LTD,"31,551.49",11/04/2019
COMMERCIAL,REGIONAL ENTERPRISE,Other Services,60126472,CONWAY AECOM LTD,14.55,04/04/2019
Commercial,Regional Enterprise,Other Services,60126506,CONWAY AECOM LTD,139.61,11/04/2019
Commercial,Regional Enterprise,Other Services,60126537,CONWAY AECOM LTD,269.26,11/04/2019
COMMERCIAL,REGIONAL ENTERPRISE,Other Services,60126898,CONWAY AECOM LTD,"4,692.91",16/04/2019
COMMERCIAL,REGIONAL ENTERPRISE,Other Services,60126987,CONWAY AECOM LTD,"1,344.86",11/04/2019
COMMERCIAL,REGIONAL ENTERPRISE,Other Services,60126991,CONWAY AECOM LTD,"3,843.53",01/04/2019
COMMERCIAL,REGIONAL ENTERPRISE,Other Services,60127004,CONWAY AECOM LTD,"12,367.31",11/04/2019
COMMERCIAL,REGIONAL ENTERPRISE,Other Services,60127010,CONWAY AECOM LTD,"1,342.79",01/04/2019
COMMERCIAL,REGIONAL ENTERPRISE,Other Services,60127017,CONWAY AECOM LTD,"2,157.17",01/04/2019
COMMERCIAL,REGIONAL ENTERPRISE,Other Services,60127018,CONWAY AECOM LTD,736.83,01/04/2019
COMMERCIAL,REGIONAL ENTERPRISE,Other Services,60127024,CONWAY AECOM LTD,"1,639.85",11/04/2019
Commercial,Regional Enterprise,Other Services,60127029,CONWAY AECOM LTD,"14,243.10",11/04/2019
COMMERCIAL,REGIONAL ENTERPRISE,Other Services,60127041,CONWAY AECOM LTD,"1,546.94",11/04/2019
COMMERCIAL,REGIONAL ENTERPRISE,Other Services,60127050,CONWAY AECOM LTD,"10,486.71",01/04/2019
Commercial,Regional Enterprise,Other Services,60127059,CONWAY AECOM LTD,"11,253.60",11/04/2019
COMMERCIAL,REGIONAL ENTERPRISE,Other Services,60127061,CONWAY AECOM LTD,"5,038.09",01/04/2019
Commercial,Regional Enterprise,Other Services,60127065,CONWAY AECOM LTD,"6,425.42",11/04/2019
COMMERCIAL,REGIONAL ENTERPRISE,Other Services,60127068,CONWAY AECOM LTD,"1,486.83",11/04/2019
COMMERCIAL,REGIONAL ENTERPRISE,Other Services,60127069,CONWAY AECOM LTD,"5,569.40",01/04/2019
COMMERCIAL,REGIONAL ENTERPRISE,Other Services,60127077,CONWAY AECOM LTD,"16,336.04",11/04/2019
COMMERCIAL,REGIONAL ENTERPRISE,Other Services,60127099,CONWAY AECOM LTD,83.91,18/04/2019
COMMERCIAL,REGIONAL ENTERPRISE,Other Services,60127103,CONWAY AECOM LTD,34.13,17/04/2019
COMMERCIAL,REGIONAL ENTERPRISE,Other Services,60127105,CONWAY AECOM LTD,12.30,18/04/2019
COMMERCIAL,REGIONAL ENTERPRISE,Other Services,60127107,CONWAY AECOM LTD,83.91,18/04/2019
COMMERCIAL,REGIONAL ENTERPRISE,Other Services,60127113,CONWAY AECOM LTD,177.48,18/04/2019
Commercial,Regional Enterprise,Other Services,60127127,CONWAY AECOM LTD,696.24,02/04/2019
Commercial,Regional Enterprise,Other Services,60127129,CONWAY AECOM LTD,283.50,02/04/2019
COMMERCIAL,REGIONAL ENTERPRISE,Other Services,60127136,CONWAY AECOM LTD,"2,159.13",02/04/2019
COMMERCIAL,REGIONAL ENTERPRISE,Other Services,60127142,CONWAY AECOM LTD,95.10,17/04/2019
COMMERCIAL,REGIONAL ENTERPRISE,Other Services,60127151,CONWAY AECOM LTD,"6,015.39",11/04/2019
COMMERCIAL,REGIONAL ENTERPRISE,Other Services,60127153,CONWAY AECOM LTD,164.06,17/04/2019
COMMERCIAL,REGIONAL ENTERPRISE,Other Services,60127160,CONWAY AECOM LTD,177.48,17/04/2019
COMMERCIAL,REGIONAL ENTERPRISE,Other Services,60127163,CONWAY AECOM LTD,12.30,18/04/2019
COMMERCIAL,REGIONAL ENTERPRISE,Other Services,60127168,CONWAY AECOM LTD,83.91,18/04/2019
COMMERCIAL,REGIONAL ENTERPRISE,Other Services,60127170,CONWAY AECOM LTD,164.06,17/04/2019
COMMERCIAL,REGIONAL ENTERPRISE,Other Services,60127171,CONWAY AECOM LTD,177.48,17/04/2019
COMMERCIAL,REGIONAL ENTERPRISE,Other Services,60127175,CONWAY AECOM LTD,14.55,18/04/2019
COMMERCIAL,REGIONAL ENTERPRISE,Other Services,60127178,CONWAY AECOM LTD,12.30,18/04/2019
COMMERCIAL,REGIONAL ENTERPRISE,Other Services,60127187,CONWAY AECOM LTD,34.13,17/04/2019
COMMERCIAL,REGIONAL ENTERPRISE,Other Services,60127188,CONWAY AECOM LTD,"2,144.47",17/04/2019
COMMERCIAL,REGIONAL ENTERPRISE,Other Services,60127195,CONWAY AECOM LTD,95.10,17/04/2019
COMMERCIAL,REGIONAL ENTERPRISE,Other Services,60127198,CONWAY AECOM LTD,95.10,17/04/2019
COMMERCIAL,REGIONAL ENTERPRISE,Other Services,60127207,CONWAY AECOM LTD,95.10,17/04/2019
COMMERCIAL,REGIONAL ENTERPRISE,Other Services,60127209,CONWAY AECOM LTD,164.06,17/04/2019
COMMERCIAL,REGIONAL ENTERPRISE,Other Services,60127218,CONWAY AECOM LTD,"1,045.83",17/04/2019
COMMERCIAL,REGIONAL ENTERPRISE,Other Services,60127221,CONWAY AECOM LTD,40.00,17/04/2019
COMMERCIAL,REGIONAL ENTERPRISE,Other Services,60127352,CONWAY AECOM LTD,"60,136.73",25/04/2019
COMMERCIAL,REGIONAL ENTERPRISE,Other Services,60127425,CONWAY AECOM LTD,"5,588.27",25/04/2019
COMMERCIAL,REGIONAL ENTERPRISE,Other Services,60127448,CONWAY AECOM LTD,"7,866.05",04/04/2019
COMMERCIAL,REGIONAL ENTERPRISE,Other Services,60127464,CONWAY AECOM LTD,"31,314.20",11/04/2019
COMMERCIAL,REGIONAL ENTERPRISE,Other Services,60127475,CONWAY AECOM LTD,400.80,11/04/2019
COMMERCIAL,REGIONAL ENTERPRISE,Other Services,60127476,CONWAY AECOM LTD,"1,283.25",11/04/2019
COMMERCIAL,REGIONAL ENTERPRISE,Other Services,60127501,CONWAY AECOM LTD,"4,281.23",25/04/2019
COMMERCIAL,REGIONAL ENTERPRISE,Other Services,60127509,CONWAY AECOM LTD,"1,062.80",25/04/2019
COMMERCIAL,REGIONAL ENTERPRISE,Other Services,60127512,CONWAY AECOM LTD,"3,166.15",11/04/2019
COMMERCIAL,REGIONAL ENTERPRISE,Other Services,60127513,CONWAY AECOM LTD,"1,852.39",11/04/2019
COMMERCIAL,REGIONAL ENTERPRISE,Other Services,60127526,CONWAY AECOM LTD,"8,130.00",25/04/2019
Commercial,Regional Enterprise,Other Services,60127529,CONWAY AECOM LTD,"21,165.24",25/04/2019
COMMERCIAL,REGIONAL ENTERPRISE,Other Services,60127543,CONWAY AECOM LTD,547.44,25/04/2019
COMMERCIAL,REGIONAL ENTERPRISE,Other Services,60127564,CONWAY AECOM LTD,"1,653.67",25/04/2019
COMMERCIAL,REGIONAL ENTERPRISE,Other Services,60127570,CONWAY AECOM LTD,"3,459.08",25/04/2019
COMMERCIAL,REGIONAL ENTERPRISE,Other Services,60127596,CONWAY AECOM LTD,570.00,25/04/2019
COMMERCIAL,REGIONAL ENTERPRISE,Other Services,60127597,CONWAY AECOM LTD,816.00,25/04/2019
COMMERCIAL,REGIONAL ENTERPRISE,Other Services,60127613,CONWAY AECOM LTD,576.00,25/04/2019
COMMERCIAL,REGIONAL ENTERPRISE,Other Services,60127661,CONWAY AECOM LTD,830.16,25/04/2019
COMMERCIAL,REGIONAL ENTERPRISE,Other Services,60127667,CONWAY AECOM LTD,833.71,25/04/2019
COMMERCIAL,REGIONAL ENTERPRISE,Other Services,60128047,CONWAY AECOM LTD,"22,141.72",25/04/2019
Commercial,Regional Enterprise,Other Services,60128072,CONWAY AECOM LTD,793.80,24/04/2019
COMMERCIAL,REGIONAL ENTERPRISE,Other Services,60128098,CONWAY AECOM LTD,"13,273.03",11/04/2019
COMMERCIAL,REGIONAL ENTERPRISE,Other Services,60128108,CONWAY AECOM LTD,258.21,12/04/2019
COMMERCIAL,REGIONAL ENTERPRISE,Other Services,60128110,CONWAY AECOM LTD,"6,625.51",12/04/2019
COMMERCIAL,REGIONAL ENTERPRISE,Other Services,60128113,CONWAY AECOM LTD,153.17,25/04/2019
COMMERCIAL,REGIONAL ENTERPRISE,Other Services,60128123,CONWAY AECOM LTD,"91,876.48",25/04/2019
COMMERCIAL,REGIONAL ENTERPRISE,Other Services,60128124,CONWAY AECOM LTD,"1,996.91",25/04/2019
COMMERCIAL,REGIONAL ENTERPRISE,Other Services,60128125,CONWAY AECOM LTD,"45,818.39",12/04/2019
Commercial,Regional Enterprise,Other Services,60128126,CONWAY AECOM LTD,907.20,12/04/2019
COMMERCIAL,REGIONAL ENTERPRISE,Other Services,60128127,CONWAY AECOM LTD,"4,880.41",12/04/2019
COMMERCIAL,REGIONAL ENTERPRISE,Other Services,60128129,CONWAY AECOM LTD,"1,087.96",12/04/2019
COMMERCIAL,REGIONAL ENTERPRISE,Other Services,60128131,CONWAY AECOM LTD,926.16,12/04/2019
COMMERCIAL,REGIONAL ENTERPRISE,Other Services,60128132,CONWAY AECOM LTD,"2,966.21",12/04/2019
COMMERCIAL,REGIONAL ENTERPRISE,Other Services,60128133,CONWAY AECOM LTD,"4,960.34",25/04/2019
COMMERCIAL,REGIONAL ENTERPRISE,Other Services,60128136,CONWAY AECOM LTD,"30,889.17",25/04/2019
COMMERCIAL,REGIONAL ENTERPRISE,Other Services,60128138,CONWAY AECOM LTD,520.11,12/04/2019
COMMERCIAL,REGIONAL ENTERPRISE,Other Services,60128139,CONWAY AECOM LTD,634.38,12/04/2019
COMMERCIAL,REGIONAL ENTERPRISE,Other Services,60128142,CONWAY AECOM LTD,"5,483.57",12/04/2019
COMMERCIAL,REGIONAL ENTERPRISE,Other Services,60128143,CONWAY AECOM LTD,"2,376.67",12/04/2019
COMMERCIAL,REGIONAL ENTERPRISE,Other Services,60128149,CONWAY AECOM LTD,"1,853.78",12/04/2019
COMMERCIAL,REGIONAL ENTERPRISE,Other Services,60128152,CONWAY AECOM LTD,"1,104.40",12/04/2019
COMMERCIAL,REGIONAL ENTERPRISE,Other Services,60128153,CONWAY AECOM LTD,358.91,25/04/2019
COMMERCIAL,REGIONAL ENTERPRISE,Other Services,60128156,CONWAY AECOM LTD,"25,115.80",12/04/2019
COMMERCIAL,REGIONAL ENTERPRISE,Other Services,60128163,CONWAY AECOM LTD,528.02,12/04/2019
COMMERCIAL,REGIONAL ENTERPRISE,Other Services,60128165,CONWAY AECOM LTD,82.40,25/04/2019
COMMERCIAL,REGIONAL ENTERPRISE,Other Services,60128167,CONWAY AECOM LTD,"9,949.33",12/04/2019
COMMERCIAL,REGIONAL ENTERPRISE,Other Services,60128203,CONWAY AECOM LTD,"2,774.69",25/04/2019
COMMERCIAL,REGIONAL ENTERPRISE,Other Services,60128225,CONWAY AECOM LTD,"25,000.00",25/04/2019
Commercial,Regional Enterprise,Other Services,60128229,CONWAY AECOM LTD,724.50,24/04/2019
COMMERCIAL,REGIONAL ENTERPRISE,Other Services,60128232,CONWAY AECOM LTD,778.59,16/04/2019
Commercial,Regional Enterprise,Other Services,60128260,CONWAY AECOM LTD,923.30,24/04/2019
Commercial,Regional Enterprise,Other Services,60128290,CONWAY AECOM LTD,50.87,29/04/2019
COMMERCIAL,REGIONAL ENTERPRISE,Other Services,60128324,CONWAY AECOM LTD,"156,534.14",16/04/2019
Commercial,Regional Enterprise,Other Services,60128341,CONWAY AECOM LTD,151.36,29/04/2019
Commercial,Regional Enterprise,Other Services,60128376,CONWAY AECOM LTD,160.61,24/04/2019
Commercial,Regional Enterprise,Other Services,60128381,CONWAY AECOM LTD,269.74,29/04/2019
Commercial,Regional Enterprise,Other Services,60128388,CONWAY AECOM LTD,60.70,25/04/2019
Commercial,Regional Enterprise,Other Services,60128403,CONWAY AECOM LTD,151.36,29/04/2019
Commercial,Regional Enterprise,Other Services,60128406,CONWAY AECOM LTD,124.91,29/04/2019
Commercial,Regional Enterprise,Other Services,60128409,CONWAY AECOM LTD,373.49,29/04/2019
Commercial,Regional Enterprise,Other Services,60128412,CONWAY AECOM LTD,46.11,29/04/2019
Commercial,Regional Enterprise,Other Services,60128418,CONWAY AECOM LTD,381.37,29/04/2019
Commercial,Regional Enterprise,Other Services,60128426,CONWAY AECOM LTD,86.93,29/04/2019
Commercial,Regional Enterprise,Other Services,60128432,CONWAY AECOM LTD,56.21,29/04/2019
Commercial,Regional Enterprise,Other Services,60128434,CONWAY AECOM LTD,290.26,29/04/2019
Commercial,Regional Enterprise,Other Services,60128437,CONWAY AECOM LTD,417.96,18/04/2019
Commercial,Regional Enterprise,Other Services,60128441,CONWAY AECOM LTD,100.91,29/04/2019
Commercial,Regional Enterprise,Other Services,60128446,CONWAY AECOM LTD,96.11,18/04/2019
Commercial,Regional Enterprise,Other Services,60128457,CONWAY AECOM LTD,195.72,18/04/2019
Commercial,Regional Enterprise,Other Services,60128462,CONWAY AECOM LTD,159.71,18/04/2019
Commercial,Regional Enterprise,Other Services,60128463,CONWAY AECOM LTD,117.79,29/04/2019
Commercial,Regional Enterprise,Other Services,60128469,CONWAY AECOM LTD,50.87,29/04/2019
Commercial,Regional Enterprise,Other Services,60128488,CONWAY AECOM LTD,127.30,29/04/2019
Commercial,Regional Enterprise,Other Services,60128494,CONWAY AECOM LTD,64.23,29/04/2019
Commercial,Regional Enterprise,Other Services,60128496,CONWAY AECOM LTD,46.11,29/04/2019
Commercial,Regional Enterprise,Other Services,60128501,CONWAY AECOM LTD,863.82,29/04/2019
Commercial,Regional Enterprise,Other Services,60128506,CONWAY AECOM LTD,50.52,29/04/2019
Commercial,Regional Enterprise,Other Services,60128507,CONWAY AECOM LTD,532.67,24/04/2019
Commercial,Regional Enterprise,Other Services,60128531,CONWAY AECOM LTD,100.12,29/04/2019
Commercial,Regional Enterprise,Other Services,60128532,CONWAY AECOM LTD,50.60,29/04/2019
Commercial,Regional Enterprise,Other Services,60128535,CONWAY AECOM LTD,66.13,29/04/2019
Commercial,Regional Enterprise,Other Services,60128536,CONWAY AECOM LTD,529.25,18/04/2019
Commercial,Regional Enterprise,Other Services,60128537,CONWAY AECOM LTD,55.91,29/04/2019
Commercial,Regional Enterprise,Other Services,60128540,CONWAY AECOM LTD,64.79,24/04/2019
Commercial,Regional Enterprise,Other Services,60128544,CONWAY AECOM LTD,41.08,24/04/2019
Commercial,Regional Enterprise,Other Services,60128547,CONWAY AECOM LTD,182.79,24/04/2019
Commercial,Regional Enterprise,Other Services,60128557,CONWAY AECOM LTD,131.18,24/04/2019
Commercial,Regional Enterprise,Other Services,60128558,CONWAY AECOM LTD,218.05,24/04/2019
Commercial,Regional Enterprise,Other Services,60128564,CONWAY AECOM LTD,75.40,24/04/2019
Commercial,Regional Enterprise,Other Services,60128576,CONWAY AECOM LTD,327.95,24/04/2019
Commercial,Regional Enterprise,Other Services,60128599,CONWAY AECOM LTD,131.18,24/04/2019
Commercial,Regional Enterprise,Other Services,60128605,CONWAY AECOM LTD,212.60,24/04/2019
Commercial,Regional Enterprise,Other Services,60128623,CONWAY AECOM LTD,202.24,24/04/2019
Commercial,Regional Enterprise,Other Services,60128626,CONWAY AECOM LTD,114.88,29/04/2019
Commercial,Regional Enterprise,Other Services,60128628,CONWAY AECOM LTD,111.50,29/04/2019
Commercial,Regional Enterprise,Other Services,60128632,CONWAY AECOM LTD,100.91,29/04/2019
Commercial,Regional Enterprise,Other Services,60128633,CONWAY AECOM LTD,412.09,29/04/2019
Commercial,Regional Enterprise,Other Services,60128639,CONWAY AECOM LTD,71.41,24/04/2019
Commercial,Regional Enterprise,Other Services,60128640,CONWAY AECOM LTD,100.91,29/04/2019
Commercial,Regional Enterprise,Other Services,60128643,CONWAY AECOM LTD,66.13,24/04/2019
Commercial,Regional Enterprise,Other Services,60128644,CONWAY AECOM LTD,50.87,29/04/2019
Commercial,Regional Enterprise,Other Services,60128645,CONWAY AECOM LTD,313.69,29/04/2019
Commercial,Regional Enterprise,Other Services,60128649,CONWAY AECOM LTD,485.49,24/04/2019
Commercial,Regional Enterprise,Other Services,60128655,CONWAY AECOM LTD,50.87,29/04/2019
Commercial,Regional Enterprise,Other Services,60128656,CONWAY AECOM LTD,98.03,29/04/2019
Commercial,Regional Enterprise,Other Services,60128658,CONWAY AECOM LTD,50.87,29/04/2019
Commercial,Regional Enterprise,Other Services,60128666,CONWAY AECOM LTD,106.06,29/04/2019
Commercial,Regional Enterprise,Other Services,60128668,CONWAY AECOM LTD,358.07,24/04/2019
Commercial,Regional Enterprise,Other Services,60128669,CONWAY AECOM LTD,262.36,24/04/2019
Commercial,Regional Enterprise,Other Services,60128670,CONWAY AECOM LTD,480.23,24/04/2019
Commercial,Regional Enterprise,Other Services,60128677,CONWAY AECOM LTD,100.91,29/04/2019
Commercial,Regional Enterprise,Other Services,60128679,CONWAY AECOM LTD,46.11,29/04/2019
Commercial,Regional Enterprise,Other Services,60128684,CONWAY AECOM LTD,272.56,24/04/2019
Commercial,Regional Enterprise,Other Services,60128685,CONWAY AECOM LTD,131.18,24/04/2019
Commercial,Regional Enterprise,Other Services,60128688,CONWAY AECOM LTD,38.07,29/04/2019
Commercial,Regional Enterprise,Other Services,60128692,CONWAY AECOM LTD,196.36,24/04/2019
Commercial,Regional Enterprise,Other Services,60128694,CONWAY AECOM LTD,202.59,29/04/2019
Commercial,Regional Enterprise,Other Services,60128703,CONWAY AECOM LTD,141.73,24/04/2019
Commercial,Regional Enterprise,Other Services,60128710,CONWAY AECOM LTD,109.02,24/04/2019
Commercial,Regional Enterprise,Other Services,60128711,CONWAY AECOM LTD,115.43,29/04/2019
Commercial,Regional Enterprise,Other Services,60128712,CONWAY AECOM LTD,485.81,24/04/2019
Commercial,Regional Enterprise,Other Services,60128717,CONWAY AECOM LTD,137.54,29/04/2019
Commercial,Regional Enterprise,Other Services,60128720,CONWAY AECOM LTD,536.47,29/04/2019
Commercial,Regional Enterprise,Other Services,60128722,CONWAY AECOM LTD,163.54,26/04/2019
Commercial,Regional Enterprise,Other Services,60128723,CONWAY AECOM LTD,60.70,26/04/2019
Commercial,Regional Enterprise,Other Services,60128736,CONWAY AECOM LTD,58.44,29/04/2019
Commercial,Regional Enterprise,Other Services,60128737,CONWAY AECOM LTD,807.89,26/04/2019
Commercial,Regional Enterprise,Other Services,60128741,CONWAY AECOM LTD,163.54,26/04/2019
Commercial,Regional Enterprise,Other Services,60128752,CONWAY AECOM LTD,207.86,29/04/2019
Commercial,Regional Enterprise,Other Services,60128754,CONWAY AECOM LTD,100.91,29/04/2019
Commercial,Regional Enterprise,Other Services,60128757,CONWAY AECOM LTD,763.01,26/04/2019
Commercial,Regional Enterprise,Other Services,60128758,CONWAY AECOM LTD,50.87,29/04/2019
Commercial,Regional Enterprise,Other Services,60128761,CONWAY AECOM LTD,131.18,29/04/2019
Commercial,Regional Enterprise,Other Services,60128766,CONWAY AECOM LTD,277.30,29/04/2019
Commercial,Regional Enterprise,Other Services,60128767,CONWAY AECOM LTD,343.78,29/04/2019
Commercial,Regional Enterprise,Other Services,60128781,CONWAY AECOM LTD,73.46,29/04/2019
Commercial,Regional Enterprise,Other Services,60128786,CONWAY AECOM LTD,281.74,29/04/2019
Commercial,Regional Enterprise,Other Services,60128788,CONWAY AECOM LTD,29.04,29/04/2019
Commercial,Regional Enterprise,Other Services,60128789,CONWAY AECOM LTD,391.44,29/04/2019
Commercial,Regional Enterprise,Other Services,60128792,CONWAY AECOM LTD,44.05,29/04/2019
Commercial,Regional Enterprise,Other Services,60128804,CONWAY AECOM LTD,163.54,29/04/2019
Commercial,Regional Enterprise,Other Services,60128816,CONWAY AECOM LTD,75.53,29/04/2019
Commercial,Regional Enterprise,Other Services,60128820,CONWAY AECOM LTD,281.74,29/04/2019
Commercial,Regional Enterprise,Other Services,60128824,CONWAY AECOM LTD,91.35,29/04/2019
Commercial,Regional Enterprise,Other Services,60128833,CONWAY AECOM LTD,216.73,29/04/2019
Commercial,Regional Enterprise,Other Services,60128839,CONWAY AECOM LTD,36.03,29/04/2019
Commercial,Regional Enterprise,Other Services,60128840,CONWAY AECOM LTD,34.64,29/04/2019
Commercial,Regional Enterprise,Other Services,60128842,CONWAY AECOM LTD,45.72,29/04/2019
Commercial,Regional Enterprise,Other Services,60128848,CONWAY AECOM LTD,267.32,29/04/2019
Commercial,Regional Enterprise,Other Services,60128851,CONWAY AECOM LTD,130.48,29/04/2019
Commercial,Regional Enterprise,Other Services,60128855,CONWAY AECOM LTD,64.23,29/04/2019
Commercial,Regional Enterprise,Other Services,60128859,CONWAY AECOM LTD,36.03,29/04/2019
Commercial,Regional Enterprise,Other Services,60128868,CONWAY AECOM LTD,163.54,29/04/2019
Commercial,Regional Enterprise,Other Services,60128869,CONWAY AECOM LTD,119.74,29/04/2019
Commercial,Regional Enterprise,Other Services,60128879,CONWAY AECOM LTD,144.78,29/04/2019
Commercial,Regional Enterprise,Other Services,60128880,CONWAY AECOM LTD,36.41,29/04/2019
Commercial,Regional Enterprise,Other Services,60128882,CONWAY AECOM LTD,108.73,29/04/2019
Commercial,Regional Enterprise,Other Services,60128887,CONWAY AECOM LTD,100.91,30/04/2019
Commercial,Regional Enterprise,Other Services,60128891,CONWAY AECOM LTD,34.92,30/04/2019
Commercial,Regional Enterprise,Other Services,60128901,CONWAY AECOM LTD,571.28,29/04/2019
Commercial,Regional Enterprise,Other Services,60128915,CONWAY AECOM LTD,353.18,30/04/2019
Commercial,Regional Enterprise,Other Services,60128921,CONWAY AECOM LTD,457.84,30/04/2019
Commercial,Regional Enterprise,Other Services,60128923,CONWAY AECOM LTD,91.39,30/04/2019
Commercial,Regional Enterprise,Other Services,60128926,CONWAY AECOM LTD,133.92,30/04/2019
Commercial,Regional Enterprise,Other Services,60128953,CONWAY AECOM LTD,238.71,30/04/2019
Commercial,Regional Enterprise,Other Services,60128954,CONWAY AECOM LTD,50.96,30/04/2019
Commercial,Regional Enterprise,Other Services,60128957,CONWAY AECOM LTD,124.50,30/04/2019
Commercial,Regional Enterprise,Other Services,60128959,CONWAY AECOM LTD,536.45,30/04/2019
Commercial,Regional Enterprise,Other Services,60128964,CONWAY AECOM LTD,532.67,29/04/2019
Commercial,Regional Enterprise,Other Services,60128966,CONWAY AECOM LTD,377.94,29/04/2019
Commercial,Regional Enterprise,Other Services,60128968,CONWAY AECOM LTD,46.11,30/04/2019
Commercial,Regional Enterprise,Other Services,60128970,CONWAY AECOM LTD,481.89,30/04/2019
Commercial,Regional Enterprise,Other Services,60128971,CONWAY AECOM LTD,443.89,29/04/2019
Commercial,Regional Enterprise,Other Services,60128972,CONWAY AECOM LTD,466.26,30/04/2019
Commercial,Regional Enterprise,Other Services,60128975,CONWAY AECOM LTD,130.93,29/04/2019
Commercial,Regional Enterprise,Other Services,60128994,CONWAY AECOM LTD,258.29,30/04/2019
Commercial,Regional Enterprise,Other Services,60129009,CONWAY AECOM LTD,186.36,29/04/2019
Commercial,Regional Enterprise,Other Services,60129018,CONWAY AECOM LTD,163.54,29/04/2019
Commercial,Regional Enterprise,Other Services,60129038,CONWAY AECOM LTD,436.10,30/04/2019
Commercial,Regional Enterprise,Other Services,60129044,CONWAY AECOM LTD,278.73,30/04/2019
Commercial,Regional Enterprise,Other Services,60129074,CONWAY AECOM LTD,218.05,30/04/2019
Commercial,Regional Enterprise,Other Services,60129092,CONWAY AECOM LTD,490.61,30/04/2019
Commercial,Regional Enterprise,Other Services,60129095,CONWAY AECOM LTD,598.47,30/04/2019
Commercial,Regional Enterprise,Other Services,60129108,CONWAY AECOM LTD,203.47,30/04/2019
Commercial,Regional Enterprise,Other Services,60129114,CONWAY AECOM LTD,782.46,30/04/2019
Commercial,Regional Enterprise,Other Services,60129139,CONWAY AECOM LTD,109.02,30/04/2019
Commercial,Regional Enterprise,Other Services,60129152,CONWAY AECOM LTD,268.92,30/04/2019
Commercial,Regional Enterprise,Other Services,60129164,CONWAY AECOM LTD,163.54,30/04/2019
Commercial,Regional Enterprise,Other Services,60129170,CONWAY AECOM LTD,109.02,30/04/2019
COMMERCIAL,REGIONAL ENTERPRISE,Other Services,10015050,CYCLE CONFIDENT LTD,"4,754.00",03/04/2019
COMMERCIAL,REGIONAL ENTERPRISE,Other Services,60126226,CYCLE CONFIDENT LTD,"2,000.00",11/04/2019
COMMERCIAL,REGIONAL ENTERPRISE,Other Services,60125327,ETZ CHAIM JEWISH PRIMARY SCHOOL,"1,200.00",24/04/2019
COMMERCIAL,REGIONAL ENTERPRISE,Other Services,60126795,GRISTWOOD & TOM LTD,"1,400.00",18/04/2019
COMMERCIAL,REGIONAL ENTERPRISE,Other Services,60127272,GRISTWOOD & TOM LTD,"20,035.00",18/04/2019
COMMERCIAL,REGIONAL ENTERPRISE,Other Services,60127275,GRISTWOOD & TOM LTD,"70,541.00",18/04/2019
Commercial,Regional Enterprise,Other Services,60124913,KENT COUNTY COUNCIL (KCS),35.28,02/04/2019
Commercial,Regional Enterprise,Other Services,60124919,KENT COUNTY COUNCIL (KCS),-41.16,02/04/2019
Commercial,Regional Enterprise,Other Services,60125049,KENT COUNTY COUNCIL (KCS),-47.42,02/04/2019
COMMERCIAL,REGIONAL ENTERPRISE,Other Services,60125413,LIVING STREETS SERVICES LTD,"5,000.00",04/04/2019
COMMERCIAL,REGIONAL ENTERPRISE,Other Services,60126945,LONDON BUSES SERVICES LIMITED,"4,560.78",01/04/2019
COMMERCIAL,REGIONAL ENTERPRISE,Other Services,60127748,MODESHIFT,399.00,09/04/2019
COMMERCIAL,REGIONAL ENTERPRISE,Other Services,60127797,PARKFIELD ACADEMY,"1,500.00",09/04/2019
COMMERCIAL,REGIONAL ENTERPRISE,Other Services,60126966,PCC TRAFFIC INFORMATION CONSULTANCY LIMI,"3,825.00",17/04/2019
Commercial,Regional Enterprise,Other Services,60127058,RM COUNTRYSIDE SERVICES LTD,553.00,01/04/2019
COMMERCIAL,REGIONAL ENTERPRISE,Other Services,60127620,SUSTRANS LTD,"30,870.00",25/04/2019
COMMERCIAL,REGIONAL ENTERPRISE,Other Services,60127760,THE PARDES HOUSE GRAMMAR SCHOOL,"1,000.00",09/04/2019
COMMERCIAL,REGIONAL ENTERPRISE,Other Services,80025079,TRANSPORT FOR LONDON,"500,000.00",24/04/2019
COMMERCIAL,REGIONAL ENTERPRISE,Other Services,60127008,TREVOR ILES LTD,"5,838.00",18/04/2019
COMMERCIAL,REGIONAL ENTERPRISE,Professional Services,60127598,AECOM INFRASTRUCTURE & ENVIRONMENT UK LT,"15,733.00",25/04/2019
COMMERCIAL,REGIONAL ENTERPRISE,Professional Services,10015123,APPLEYARD & TREW LLP,"4,292.06",11/04/2019
COMMERCIAL,REGIONAL ENTERPRISE,Professional Services,60127227,BLAKEDOWN LANDSCAPE (SE) LTD,"268,541.09",04/04/2019
COMMERCIAL,REGIONAL ENTERPRISE,Professional Services,60127589,BOUYGUES E&S INFRASTRUCTURE UK LTD,"31,814.91",18/04/2019
COMMERCIAL,REGIONAL ENTERPRISE,Professional Services,10015127,EMERGENT VERNACULAR ARCHITECTURE LTD,"10,570.56",15/04/2019
Commercial,Regional Enterprise,Professional Services,60127354,LONDON BOROUGH OF HARINGEY,100.00,04/04/2019
Commercial,Regional Enterprise,Professional Services,60127398,LONDON BOROUGH OF HARINGEY,100.00,04/04/2019
Commercial,Regional Enterprise,Professional Services,60127403,LONDON BOROUGH OF HARINGEY,100.00,04/04/2019
Commercial,Regional Enterprise,Professional Services,60127420,LONDON BOROUGH OF HARINGEY,100.00,04/04/2019
Commercial,Regional Enterprise,Professional Services,60127422,LONDON BOROUGH OF HARINGEY,100.00,04/04/2019
Commercial,Regional Enterprise,Professional Services,60127450,LONDON BOROUGH OF HARINGEY,100.00,04/04/2019
Commercial,Regional Enterprise,Professional Services,60127488,LONDON BOROUGH OF HARINGEY,100.00,04/04/2019
Commercial,Regional Enterprise,Professional Services,60127489,LONDON BOROUGH OF HARINGEY,100.00,04/04/2019
Commercial,Regional Enterprise,Professional Services,60127499,LONDON BOROUGH OF HARINGEY,100.00,04/04/2019
Commercial,Regional Enterprise,Professional Services,60127507,LONDON BOROUGH OF HARINGEY,100.00,04/04/2019
Commercial,Regional Enterprise,Professional Services,60127527,LONDON BOROUGH OF HARINGEY,100.00,04/04/2019
Commercial,Regional Enterprise,Professional Services,60127535,LONDON BOROUGH OF HARINGEY,100.00,04/04/2019
Commercial,Regional Enterprise,Professional Services,60127536,LONDON BOROUGH OF HARINGEY,100.00,04/04/2019
Commercial,Regional Enterprise,Professional Services,60118806,RE (REGIONAL ENTERPRISE) LIMITED,"-105,709.00",12/04/2019
Commercial,Regional Enterprise,Professional Services,60118810,RE (REGIONAL ENTERPRISE) LIMITED,"-71,061.38",12/04/2019
Commercial,Regional Enterprise,Professional Services,60118811,RE (REGIONAL ENTERPRISE) LIMITED,"-95,071.29",12/04/2019
COMMERCIAL,REGIONAL ENTERPRISE,Professional Services,60118817,RE (REGIONAL ENTERPRISE) LIMITED,"-616,128.68",12/04/2019
COMMERCIAL,REGIONAL ENTERPRISE,Professional Services,60118819,RE (REGIONAL ENTERPRISE) LIMITED,"-442,710.58",12/04/2019
Commercial,Regional Enterprise,Professional Services,60118851,RE (REGIONAL ENTERPRISE) LIMITED,"-54,919.99",12/04/2019
COMMERCIAL,REGIONAL ENTERPRISE,Professional Services,60119039,RE (REGIONAL ENTERPRISE) LIMITED,"-233,535.82",12/04/2019
Commercial,Regional Enterprise,Professional Services,60121253,RE (REGIONAL ENTERPRISE) LIMITED,457.26,12/04/2019
Commercial,Regional Enterprise,Professional Services,60124491,RE (REGIONAL ENTERPRISE) LIMITED,"233,750.00",12/04/2019
COMMERCIAL,REGIONAL ENTERPRISE,Professional Services,60124976,RE (REGIONAL ENTERPRISE) LIMITED,"91,302.30",12/04/2019
Commercial,Regional Enterprise,Professional Services,60125014,RE (REGIONAL ENTERPRISE) LIMITED,"48,500.87",12/04/2019
COMMERCIAL,REGIONAL ENTERPRISE,Professional Services,60125076,RE (REGIONAL ENTERPRISE) LIMITED,"127,474.90",12/04/2019
Commercial,Regional Enterprise,Professional Services,60125099,RE (REGIONAL ENTERPRISE) LIMITED,"39,888.75",12/04/2019
COMMERCIAL,REGIONAL ENTERPRISE,Professional Services,60125105,RE (REGIONAL ENTERPRISE) LIMITED,"176,472.12",12/04/2019
COMMERCIAL,REGIONAL ENTERPRISE,Professional Services,60125112,RE (REGIONAL ENTERPRISE) LIMITED,"54,634.46",12/04/2019
Commercial,Regional Enterprise,Professional Services,60126867,RE (REGIONAL ENTERPRISE) LIMITED,175.28,12/04/2019
Commercial,Regional Enterprise,Professional Services,60126925,RE (REGIONAL ENTERPRISE) LIMITED,491.60,12/04/2019
Commercial,Regional Enterprise,Professional Services,60126934,RE (REGIONAL ENTERPRISE) LIMITED,"1,351.90",12/04/2019
Commercial,Regional Enterprise,Professional Services,60126955,RE (REGIONAL ENTERPRISE) LIMITED,"11,176.57",12/04/2019
Commercial,Regional Enterprise,Professional Services,60126980,RE (REGIONAL ENTERPRISE) LIMITED,"1,653.35",12/04/2019
Commercial,Regional Enterprise,Professional Services,60127455,RE (REGIONAL ENTERPRISE) LIMITED,"11,475.21",12/04/2019
Commercial,Regional Enterprise,Professional Services,60127555,RE (REGIONAL ENTERPRISE) LIMITED,126.72,12/04/2019
Commercial,Regional Enterprise,Professional Services,60127593,RE (REGIONAL ENTERPRISE) LIMITED,"4,977.45",16/04/2019
Commercial,Regional Enterprise,Professional Services,60127874,RE (REGIONAL ENTERPRISE) LIMITED,"70,421.08",12/04/2019
COMMERCIAL,REGIONAL ENTERPRISE,Professional Services,60127883,RE (REGIONAL ENTERPRISE) LIMITED,"74,425.42",12/04/2019
COMMERCIAL,REGIONAL ENTERPRISE,Professional Services,60127905,RE (REGIONAL ENTERPRISE) LIMITED,"463,315.69",12/04/2019
Commercial,Regional Enterprise,Professional Services,60127927,RE (REGIONAL ENTERPRISE) LIMITED,"17,729.35",12/04/2019
Commercial,Regional Enterprise,Professional Services,60127932,RE (REGIONAL ENTERPRISE) LIMITED,"76,923.75",12/04/2019
Commercial,Regional Enterprise,Professional Services,60127946,RE (REGIONAL ENTERPRISE) LIMITED,"3,441.73",16/04/2019
Commercial,Regional Enterprise,Professional Services,60128048,RE (REGIONAL ENTERPRISE) LIMITED,"98,342.21",12/04/2019
Commercial,Regional Enterprise,Professional Services,60128075,RE (REGIONAL ENTERPRISE) LIMITED,"185,911.62",12/04/2019
Commercial,Regional Enterprise,Professional Services,60128116,RE (REGIONAL ENTERPRISE) LIMITED,"55,172.07",12/04/2019
Commercial,Regional Enterprise,Professional Services,60128174,RE (REGIONAL ENTERPRISE) LIMITED,"407,250.00",16/04/2019
COMMERCIAL,REGIONAL ENTERPRISE,Professional Services,60127381,TRANSPORT FOR LONDON,144.00,04/04/2019
COMMERCIAL,REGIONAL ENTERPRISE,Professional Services,60128730,TRANSPORT FOR LONDON,80.00,26/04/2019
Commercial,Regional Enterprise,Professional Services,60126897,WATES LIVING SPACE,96.11,04/04/2019
Commercial,Regional Enterprise,Professional Services,60127621,WATES LIVING SPACE,"1,303.54",08/04/2019
Commercial,Regional Enterprise,Professional Services,60127757,WATES LIVING SPACE,96.11,08/04/2019
Commercial,Regional Enterprise,Professional Services,60128103,WATES LIVING SPACE,267.48,24/04/2019
Commercial,Regional Enterprise,Professional Services,60128164,WATES LIVING SPACE,25.47,24/04/2019
Commercial,Regional Enterprise,Professional Services,60128176,WATES LIVING SPACE,25.47,24/04/2019
Commercial,Regional Enterprise,Professional Services,60128215,WATES LIVING SPACE,127.37,25/04/2019
Commercial,Regional Enterprise,Professional Services,60128231,WATES LIVING SPACE,86.81,25/04/2019
Commercial,Regional Enterprise,Professional Services,60128956,WATES LIVING SPACE,141.02,29/04/2019
Commercial,Regional Enterprise,Professional Services,60129030,WATES LIVING SPACE,96.11,29/04/2019
COMMERCIAL,REGIONAL ENTERPRISE,Publications,60118930,REDACTED - PERSONAL DATA,100.00,11/04/2019
Commercial,Regional Enterprise,RE Services Contract Payment,60107071,RE (REGIONAL ENTERPRISE) LIMITED,"-25,740.20",12/04/2019
Commercial,Regional Enterprise,RE Services Contract Payment,60107091,RE (REGIONAL ENTERPRISE) LIMITED,"-28,139.58",12/04/2019
Commercial,Regional Enterprise,RE Services Contract Payment,60107208,RE (REGIONAL ENTERPRISE) LIMITED,"-21,648.59",12/04/2019
Commercial,Regional Enterprise,RE Services Contract Payment,60126167,RE (REGIONAL ENTERPRISE) LIMITED,"271,553.00",12/04/2019
Commissioning,Commissioning,Agency/Interim Hays,60127463,MATRIX SCM LTD,"248,769.44",04/04/2019
Commissioning,Commissioning,Agency/Interim Hays,60128035,MATRIX SCM LTD,"283,611.46",10/04/2019
Commissioning,Commissioning,Agency/Interim Hays,60128366,MATRIX SCM LTD,"251,959.17",16/04/2019
Commissioning,Commissioning,Agency/Interim Hays,60128541,MATRIX SCM LTD,"230,566.39",24/04/2019
Commissioning,Commissioning,Clothing - Uniforms,10015091,NEXT BUSINESS TO BUSINESS,"1,755.00",05/04/2019
Commissioning,Commissioning,Consultants Fees,60128631,MANCHESTER CITY COUNCIL,"1,275.00",26/04/2019
Commissioning,Commissioning,Consultants Fees,60127144,OPINION RESEARCH SERVICES,"9,456.50",24/04/2019
Commissioning,Commissioning,Consultants Fees,60128583,POLICY IN PRACTICE,"3,500.00",24/04/2019
Commissioning,Commissioning,Consultants Fees,60128587,POLICY IN PRACTICE,"3,500.00",24/04/2019
Commissioning,Commissioning,Consultants Fees,60128043,RE (REGIONAL ENTERPRISE) LIMITED,"93,000.00",24/04/2019
Commissioning,Commissioning,Consultants Fees,60128262,TMP (UK) LTD,112.00,18/04/2019
Commissioning,Commissioning,CSG Services Contract Payment,60128578,THE BARNETGROUP LIMITED,900.02,23/04/2019
Commissioning,Commissioning,Equipment and Materials Purcha,60127453,BARNET MENCAP,"3,000.00",04/04/2019
Commissioning,Commissioning,Equipment and Materials Purcha,60127490,BARNET MENCAP,"1,000.00",04/04/2019
Commissioning,Commissioning,Equipment and Materials Purcha,60127586,BARNET MENCAP,"1,000.00",04/04/2019
Commissioning,Commissioning,Equipment and Materials Purcha,60128773,OCS GROUP UK LIMITED,"47,269.00",30/04/2019
Commissioning,Commissioning,Miscellaneous Expenses,60126617,BOUYGUES E&S INFRASTRUCTURE UK LTD,399.00,11/04/2019
Commissioning,Commissioning,Other Agencies - Third Party P,80025086,FAMILY FUND TRADING (CRISIS FUND),"50,000.00",24/04/2019
Commissioning,Commissioning,Other Services,60126491,FMG CONSULTING LTD,"3,000.00",18/04/2019
Commissioning,Commissioning,Other Services,60125828,RAINCHARM COMMUNICATIONS LTD,640.00,03/04/2019
Commissioning,Commissioning,Other Services,60126398,REDACTED - PERSONAL DATA,150.00,11/04/2019
Commissioning,Commissioning,Other Services,60126402,REDACTED - PERSONAL DATA,112.50,11/04/2019
Commissioning,Commissioning,Other Services,60127177,STOR-A FILE LTD,"6,634.48",02/04/2019
Commissioning,Commissioning,Other Transfer Payments to Soc,60125701,HA9 CONSULTANCY LTD,"7,875.00",04/04/2019
Commissioning,Commissioning,Other Transfer Payments to Soc,60128602,WAGSTAFF INTERIORS GROUP,20.00,24/04/2019
Commissioning,Commissioning,Private Contractors - Third Pa,60127599,HESTIA,"14,270.00",08/04/2019
Commissioning,Commissioning,Private Contractors - Third Pa,60124739,IC2 CCTV & SECURITY SPECIALISTS (UK) LTD,"1,500.00",01/04/2019
Commissioning,Commissioning,Private Contractors - Third Pa,60123377,SOLACE WOMEN'S AID,"51,571.25",08/04/2019
Commissioning,Commissioning,Private Contractors - Third Pa,60123434,SOLACE WOMEN'S AID,"74,552.50",08/04/2019
Commissioning,Commissioning,Private Contractors - Third Pa,60127635,SOLACE WOMEN'S AID,"74,552.50",08/04/2019
Commissioning,Commissioning,Private Contractors - Third Pa,60127685,SOLACE WOMEN'S AID,"51,571.25",08/04/2019
Commissioning,Commissioning,Professional Services,10015115,ANDREW PRITCHARD LIMITED,"12,000.00",09/04/2019
Commissioning,Commissioning,Professional Services,60127442,CAPITA BUSINESS SERVICES LTD,"6,695.06",09/04/2019
Commissioning,Commissioning,Professional Services,60125345,GROUNDWORK LONDON,"15,000.00",02/04/2019
Commissioning,Commissioning,Professional Services,60125446,GROUNDWORK LONDON,"5,000.00",02/04/2019
Commissioning,Commissioning,Professional Services,60127664,HESTIA,"2,414.94",24/04/2019
Commissioning,Commissioning,Professional Services,60127034,LONDON BOROUGH OF EALING,"4,450.00",05/04/2019
Commissioning,Commissioning,Professional Services,60125346,PENNA PLC,"11,245.50",03/04/2019
Commissioning,Commissioning,Professional Services,60125487,PENNA PLC,"2,808.00",03/04/2019
Commissioning,Commissioning,Professional Services,60125836,RE (REGIONAL ENTERPRISE) LIMITED,"5,732.07",12/04/2019
Commissioning,Commissioning,Professional Services,60128387,RE (REGIONAL ENTERPRISE) LIMITED,"4,000.00",17/04/2019
Commissioning,Commissioning,Professional Services,60125905,STEER DAVIES & GLEAVE LTD,"28,300.00",10/04/2019
Commissioning,Commissioning,Professional Services,60125929,THE BARNETGROUP LIMITED,"49,055.51",11/04/2019
Commissioning,Commissioning,Professional Services,60127796,THE BARNETGROUP LIMITED,"14,926.00",08/04/2019
Commissioning,Commissioning,Professional Services,60127848,THE BARNETGROUP LIMITED,"11,461.00",08/04/2019
Commissioning,Commissioning,Professional Services,60127334,WSP UK LIMITED,"1,860.00",03/04/2019
Commissioning,Commissioning,Professional Services,60127344,WSP UK LIMITED,"3,540.00",03/04/2019
Commissioning,Commissioning,Publications,60126543,GOOD IMPRESSIONS (LONDON) LIMITED,210.00,18/04/2019
Commissioning,Commissioning,Publications,60126570,GOOD IMPRESSIONS (LONDON) LIMITED,"2,400.00",18/04/2019
Commissioning,Commissioning,Publications,60126579,GOOD IMPRESSIONS (LONDON) LIMITED,720.00,18/04/2019
Commissioning,Commissioning,Publications,60126623,GOOD IMPRESSIONS (LONDON) LIMITED,360.00,18/04/2019
Commissioning,Commissioning,Publications,60126629,GOOD IMPRESSIONS (LONDON) LIMITED,360.00,18/04/2019
Commissioning,Commissioning,Publications,60126635,GOOD IMPRESSIONS (LONDON) LIMITED,180.00,18/04/2019
Commissioning,Commissioning,Publications,60127111,GOOD IMPRESSIONS (LONDON) LIMITED,360.00,24/04/2019
Commissioning,Commissioning,Publications,60127767,LETTERBOX DISTRIBUTION.COM,"10,237.50",09/04/2019
Commissioning,Commissioning,Settlement of WOM Costs,60127043,NORTH LONDON AQUATICS,"30,000.00",11/04/2019
Commissioning,Commissioning,Subscriptions,60127533,CIPFA BUSINESS LIMITED,"4,735.00",24/04/2019
Commissioning,Commissioning,Subscriptions,60128978,PDP TRAINING,552.50,29/04/2019
Commissioning,Commissioning,Subscriptions,80024919,THE INFORMATION COMMISSIONER,"2,900.00",02/04/2019
Commissioning,Commissioning,Training,60126947,CIPFA BUSINESS LIMITED,375.00,02/04/2019
Commissioning,Commissioning,Training,60125680,DOD'S PARLIAMENTARY,735.00,04/04/2019
Commissioning,Commissioning,Training,60127082,LONDON COUNCILS,"3,000.00",18/04/2019
Commissioning,Commissioning,Training,60127439,RESOLVEX PEOPLE SOLUTIONS LIMITED,549.10,25/04/2019
Commissioning,Commissioning,Training,60127553,ROYAL AIR FORCE MUSEUM,97.50,25/04/2019
Commissioning,Commissioning,Training,60124012,SHA'ARE TSEDEK NORTH LONDON REFORM SYNAG,450.00,04/04/2019
COMMISSIONING,COMMISSIONING GROUP,Advertising,60122592,TMP (UK) LTD,323.00,01/04/2019
COMMISSIONING,COMMISSIONING GROUP,Advertising,60127296,TMP (UK) LTD,278.00,03/04/2019
COMMISSIONING,COMMISSIONING GROUP,Building Repairs & Maintenance,60127978,AJS LTD,262.98,12/04/2019
COMMISSIONING,COMMISSIONING GROUP,Building Repairs & Maintenance,60128702,JOHN GRAHAM CONSTRUCTION LTD,"4,105.22",30/04/2019
COMMISSIONING,COMMISSIONING GROUP,Building Repairs & Maintenance,60126711,OAKRAY LIMITED,392.08,09/04/2019
COMMISSIONING,COMMISSIONING GROUP,Building Repairs & Maintenance,60128435,USKIP HIRE,160.00,24/04/2019
COMMISSIONING,COMMISSIONING GROUP,Building Repairs & Maintenance,60128459,USKIP HIRE,160.00,24/04/2019
COMMISSIONING,COMMISSIONING GROUP,Building Repairs & Maintenance,60126207,WATES LIVING SPACE,"2,555.30",02/04/2019
COMMISSIONING,COMMISSIONING GROUP,Capital Construction and Works,60127582,BARNET HOMES LIMITED,"97,144.48",04/04/2019
COMMISSIONING,COMMISSIONING GROUP,Capital Construction and Works,60128179,CONWAY AECOM LTD,8.00,25/04/2019
COMMISSIONING,COMMISSIONING GROUP,Capital Construction and Works,60128233,CONWAY AECOM LTD,"1,265.16",16/04/2019
COMMISSIONING,COMMISSIONING GROUP,Capital Construction and Works,60127293,WILLMOTT DIXON CONSTRUCTION LTD,"1,832.40",03/04/2019
COMMISSIONING,COMMISSIONING GROUP,Consultants Fees,60127416,WRITTLE FOREST LTD,600.00,25/04/2019
COMMISSIONING,COMMISSIONING GROUP,Electricity,60127378,KENT COUNTY COUNCIL (KCS),"1,471.92",04/04/2019
COMMISSIONING,COMMISSIONING GROUP,Electricity,60127466,KENT COUNTY COUNCIL (KCS),"2,243.17",04/04/2019
COMMISSIONING,COMMISSIONING GROUP,Electricity,60127541,KENT COUNTY COUNCIL (KCS),376.04,04/04/2019
COMMISSIONING,COMMISSIONING GROUP,Equipment and Materials Purcha,60127915,BOUYGUES E&S INFRASTRUCTURE UK LTD,"2,401.04",25/04/2019
COMMISSIONING,COMMISSIONING GROUP,Equipment and Materials Purcha,60127964,BOUYGUES E&S INFRASTRUCTURE UK LTD,"4,990.00",25/04/2019
COMMISSIONING,COMMISSIONING GROUP,Equipment and Materials Purcha,60127919,BUSH WHEELER SERVICES LIMITED,"2,800.00",25/04/2019
COMMISSIONING,COMMISSIONING GROUP,Equipment and Materials Purcha,60128087,CONWAY AECOM LTD,59.91,25/04/2019
COMMISSIONING,COMMISSIONING GROUP,Equipment and Materials Purcha,60128170,CONWAY AECOM LTD,193.11,25/04/2019
COMMISSIONING,COMMISSIONING GROUP,Equipment and Materials Purcha,60128320,JAYDEE LIVING LTD,"6,076.50",16/04/2019
COMMISSIONING,COMMISSIONING GROUP,Other Services,60127869,BOUYGUES E&S INFRASTRUCTURE UK LTD,838.98,25/04/2019
COMMISSIONING,COMMISSIONING GROUP,Other Services,60128159,CONWAY AECOM LTD,"5,038.32",25/04/2019
COMMISSIONING,COMMISSIONING GROUP,Other Services,60128210,CONWAY AECOM LTD,137.93,25/04/2019
COMMISSIONING,COMMISSIONING GROUP,Other Services,10015082,E-CAR CLUB,65.00,01/04/2019
COMMISSIONING,COMMISSIONING GROUP,Other Services,10015083,E-CAR CLUB,"2,850.62",01/04/2019
COMMISSIONING,COMMISSIONING GROUP,Other Services,60126548,E-CAR CLUB,50.00,01/04/2019
COMMISSIONING,COMMISSIONING GROUP,Other Services,60126564,E-CAR CLUB,65.00,01/04/2019
COMMISSIONING,COMMISSIONING GROUP,Other Services,60126576,E-CAR CLUB,"2,996.08",01/04/2019
COMMISSIONING,COMMISSIONING GROUP,Other Services,60126599,E-CAR CLUB,60.00,01/04/2019
COMMISSIONING,COMMISSIONING GROUP,Other Services,60126615,E-CAR CLUB,110.00,01/04/2019
COMMISSIONING,COMMISSIONING GROUP,Other Services,60128095,LONDON CARETAKERS,490.00,29/04/2019
COMMISSIONING,COMMISSIONING GROUP,Other Services,60128050,RE (REGIONAL ENTERPRISE) LIMITED,"2,826.05",12/04/2019
COMMISSIONING,COMMISSIONING GROUP,Other Services,60127066,SUN HILL SURVEYS,900.00,01/04/2019
COMMISSIONING,COMMISSIONING GROUP,Other Services,60127108,SUN HILL SURVEYS,"1,800.00",16/04/2019
COMMISSIONING,COMMISSIONING GROUP,Other Services,60127630,TRAFFIC SURVEY PARTNERS (TSP) LTD,570.00,08/04/2019
COMMISSIONING,COMMISSIONING GROUP,Professional Services,60128450,WRITTLE FOREST LTD,"2,350.00",18/04/2019
COMMISSIONING,COMMISSIONING GROUP,Training,60126654,GOOD IMPRESSIONS (LONDON) LIMITED,210.00,18/04/2019
COMMISSIONING,COMMISSIONING GROUP,Ttl IT & Comms,60127114,BOUYGUES E&S INFRASTRUCTURE UK LTD,"2,271.25",18/04/2019
COMMISSIONING,COMMISSIONING GROUP,Ttl IT & Comms,60127445,MISL LTD,687.01,18/04/2019
COMMISSIONING,COMMISSIONING GROUP,Ttl IT & Comms,60127479,MISL LTD,57.76,18/04/2019
COMMISSIONING,COMMISSIONING GROUP,Ttl IT & Comms,60127537,MISL LTD,"2,694.83",18/04/2019
COMMISSIONING,COMMISSIONING GROUP,Ttl IT & Comms,60128510,MISL LTD,688.54,29/04/2019
COMMISSIONING,COMMISSIONING GROUP,Ttl IT & Comms,60128519,MISL LTD,"1,772.36",29/04/2019
COMMISSIONING,COMMISSIONING GROUP,Ttl IT & Comms,60128676,MISL LTD,"3,146.58",25/04/2019
Corporate Accounting,Corporate Accounting,Grant Payments,80025115,NATIONAL RESOURCE CENTRE FOR SUPPLEMENT,"2,498.00",23/04/2019
Corporate Accounting,Corporate Accounting,Grant Payments,80025098,THE GOLF TRUST,"2,500.00",23/04/2019
Corporate Accounting,Corporate Accounting,Other Agencies - Third Party P,60128430,THE BARNETGROUP LIMITED,"183,333.33",23/04/2019
Corporate Accounting,Corporate Accounting,Other Transfer Payments to Soc,80025169,WIRECARD (FS INSTANT 2040880892973),"6,024.44",15/04/2019
Corporate Accounting,Corporate Accounting,Other Transfer Payments to Soc,80025170,WIRECARD (FS ONGOING 2040881670310,"12,653.60",15/04/2019
Delivery Units,Adults and Communities,CSG Services Contract Payment,60127312,XEROX FINANCE LTD,20.19,03/04/2019
Delivery Units,Adults and Communities,Direct Transfer Payments to So,90141849,REDACTED - PERSONAL DATA,651.44,03/04/2019
Delivery Units,Adults and Communities,Direct Transfer Payments to So,90141858,REDACTED - PERSONAL DATA,-660.76,03/04/2019
Delivery Units,Adults and Communities,Direct Transfer Payments to So,90149077,REDACTED - PERSONAL DATA,"2,811.34",03/04/2019
Delivery Units,Adults and Communities,Direct Transfer Payments to So,90149080,REDACTED - PERSONAL DATA,"-1,680.00",03/04/2019
Delivery Units,Adults and Communities,Direct Transfer Payments to So,90149081,REDACTED - PERSONAL DATA,"-2,811.34",03/04/2019
Delivery Units,Adults and Communities,Direct Transfer Payments to So,90149086,REDACTED - PERSONAL DATA,"-1,440.00",16/04/2019
Delivery Units,Adults and Communities,Direct Transfer Payments to So,90151336,REDACTED - PERSONAL DATA,"1,191.36",29/04/2019
Delivery Units,Adults and Communities,Direct Transfer Payments to So,90151347,REDACTED - PERSONAL DATA,"1,417.14",16/04/2019
Delivery Units,Adults and Communities,Direct Transfer Payments to So,90152537,REDACTED - PERSONAL DATA,-43.20,03/04/2019
Delivery Units,Adults and Communities,Direct Transfer Payments to So,90153302,REDACTED - PERSONAL DATA,250.00,03/04/2019
Delivery Units,Adults and Communities,Direct Transfer Payments to So,90153306,REDACTED - PERSONAL DATA,600.00,03/04/2019
Delivery Units,Adults and Communities,Direct Transfer Payments to So,90153308,REDACTED - PERSONAL DATA,244.74,03/04/2019
Delivery Units,Adults and Communities,Direct Transfer Payments to So,90153309,REDACTED - PERSONAL DATA,844.74,03/04/2019
Delivery Units,Adults and Communities,Direct Transfer Payments to So,90153311,REDACTED - PERSONAL DATA,672.12,03/04/2019
Delivery Units,Adults and Communities,Direct Transfer Payments to So,90153312,REDACTED - PERSONAL DATA,"2,977.24",16/04/2019
Delivery Units,Adults and Communities,Direct Transfer Payments to So,90153316,REDACTED - PERSONAL DATA,485.84,03/04/2019
Delivery Units,Adults and Communities,Direct Transfer Payments to So,90153317,REDACTED - PERSONAL DATA,"1,161.92",03/04/2019
Delivery Units,Adults and Communities,Direct Transfer Payments to So,90153322,REDACTED - PERSONAL DATA,"1,541.08",03/04/2019
Delivery Units,Adults and Communities,Direct Transfer Payments to So,90153323,REDACTED - PERSONAL DATA,"3,100.16",03/04/2019
Delivery Units,Adults and Communities,Direct Transfer Payments to So,90153325,REDACTED - PERSONAL DATA,851.08,03/04/2019
Delivery Units,Adults and Communities,Direct Transfer Payments to So,90153326,REDACTED - PERSONAL DATA,"1,342.48",03/04/2019
Delivery Units,Adults and Communities,Direct Transfer Payments to So,90153327,REDACTED - PERSONAL DATA,672.00,03/04/2019
Delivery Units,Adults and Communities,Direct Transfer Payments to So,90153329,REDACTED - PERSONAL DATA,502.40,03/04/2019
Delivery Units,Adults and Communities,Direct Transfer Payments to So,90153333,REDACTED - PERSONAL DATA,"2,208.44",03/04/2019
Delivery Units,Adults and Communities,Direct Transfer Payments to So,90153334,REDACTED - PERSONAL DATA,192.32,03/04/2019
Delivery Units,Adults and Communities,Direct Transfer Payments to So,90153339,REDACTED - PERSONAL DATA,"2,088.00",03/04/2019
Delivery Units,Adults and Communities,Direct Transfer Payments to So,90153342,REDACTED - PERSONAL DATA,"4,800.00",03/04/2019
Delivery Units,Adults and Communities,Direct Transfer Payments to So,90153343,REDACTED - PERSONAL DATA,"1,545.48",03/04/2019
Delivery Units,Adults and Communities,Direct Transfer Payments to So,90153344,REDACTED - PERSONAL DATA,"2,048.44",03/04/2019
Delivery Units,Adults and Communities,Direct Transfer Payments to So,90153348,REDACTED - PERSONAL DATA,"1,183.32",03/04/2019
Delivery Units,Adults and Communities,Direct Transfer Payments to So,90153357,REDACTED - PERSONAL DATA,700.00,03/04/2019
Delivery Units,Adults and Communities,Direct Transfer Payments to So,90153359,REDACTED - PERSONAL DATA,171.24,03/04/2019
Delivery Units,Adults and Communities,Direct Transfer Payments to So,90153360,REDACTED - PERSONAL DATA,200.56,03/04/2019
Delivery Units,Adults and Communities,Direct Transfer Payments to So,90153361,REDACTED - PERSONAL DATA,410.96,03/04/2019
Delivery Units,Adults and Communities,Direct Transfer Payments to So,90153363,REDACTED - PERSONAL DATA,456.52,03/04/2019
Delivery Units,Adults and Communities,Direct Transfer Payments to So,90153364,REDACTED - PERSONAL DATA,395.32,03/04/2019
Delivery Units,Adults and Communities,Direct Transfer Payments to So,90153369,REDACTED - PERSONAL DATA,"1,092.00",03/04/2019
Delivery Units,Adults and Communities,Direct Transfer Payments to So,90153370,REDACTED - PERSONAL DATA,"3,474.40",03/04/2019
Delivery Units,Adults and Communities,Direct Transfer Payments to So,90153372,REDACTED - PERSONAL DATA,478.48,03/04/2019
Delivery Units,Adults and Communities,Direct Transfer Payments to So,90153375,REDACTED - PERSONAL DATA,"1,924.00",03/04/2019
Delivery Units,Adults and Communities,Direct Transfer Payments to So,90153380,REDACTED - PERSONAL DATA,601.00,03/04/2019
Delivery Units,Adults and Communities,Direct Transfer Payments to So,90153388,REDACTED - PERSONAL DATA,193.60,03/04/2019
Delivery Units,Adults and Communities,Direct Transfer Payments to So,90153391,REDACTED - PERSONAL DATA,649.08,03/04/2019
Delivery Units,Adults and Communities,Direct Transfer Payments to So,90153397,REDACTED - PERSONAL DATA,"2,240.00",03/04/2019
Delivery Units,Adults and Communities,Direct Transfer Payments to So,90153400,REDACTED - PERSONAL DATA,218.24,03/04/2019
Delivery Units,Adults and Communities,Direct Transfer Payments to So,90153402,REDACTED - PERSONAL DATA,392.00,29/04/2019
Delivery Units,Adults and Communities,Direct Transfer Payments to So,90153403,REDACTED - PERSONAL DATA,889.48,03/04/2019
Delivery Units,Adults and Communities,Direct Transfer Payments to So,90153404,REDACTED - PERSONAL DATA,"1,359.20",03/04/2019
Delivery Units,Adults and Communities,Direct Transfer Payments to So,90153411,REDACTED - PERSONAL DATA,589.00,03/04/2019
Delivery Units,Adults and Communities,Direct Transfer Payments to So,90153413,REDACTED - PERSONAL DATA,"3,713.28",03/04/2019
Delivery Units,Adults and Communities,Direct Transfer Payments to So,90153414,REDACTED - PERSONAL DATA,"1,400.00",03/04/2019
Delivery Units,Adults and Communities,Direct Transfer Payments to So,90153415,REDACTED - PERSONAL DATA,"1,845.36",03/04/2019
Delivery Units,Adults and Communities,Direct Transfer Payments to So,90153423,REDACTED - PERSONAL DATA,351.52,03/04/2019
Delivery Units,Adults and Communities,Direct Transfer Payments to So,90153428,REDACTED - PERSONAL DATA,679.60,03/04/2019
Delivery Units,Adults and Communities,Direct Transfer Payments to So,90153429,REDACTED - PERSONAL DATA,432.00,03/04/2019
Delivery Units,Adults and Communities,Direct Transfer Payments to So,90153432,REDACTED - PERSONAL DATA,202.00,03/04/2019
Delivery Units,Adults and Communities,Direct Transfer Payments to So,90153436,REDACTED - PERSONAL DATA,560.00,03/04/2019
Delivery Units,Adults and Communities,Direct Transfer Payments to So,90153440,REDACTED - PERSONAL DATA,426.96,03/04/2019
Delivery Units,Adults and Communities,Direct Transfer Payments to So,90153441,REDACTED - PERSONAL DATA,728.00,03/04/2019
Delivery Units,Adults and Communities,Direct Transfer Payments to So,90153442,REDACTED - PERSONAL DATA,"1,092.00",03/04/2019
Delivery Units,Adults and Communities,Direct Transfer Payments to So,90153443,REDACTED - PERSONAL DATA,928.00,03/04/2019
Delivery Units,Adults and Communities,Direct Transfer Payments to So,90153446,REDACTED - PERSONAL DATA,231.40,03/04/2019
Delivery Units,Adults and Communities,Direct Transfer Payments to So,90153450,REDACTED - PERSONAL DATA,966.84,03/04/2019
Delivery Units,Adults and Communities,Direct Transfer Payments to So,90153457,REDACTED - PERSONAL DATA,"2,316.96",03/04/2019
Delivery Units,Adults and Communities,Direct Transfer Payments to So,90153461,REDACTED - PERSONAL DATA,903.92,03/04/2019
Delivery Units,Adults and Communities,Direct Transfer Payments to So,90153466,REDACTED - PERSONAL DATA,"1,440.00",03/04/2019
Delivery Units,Adults and Communities,Direct Transfer Payments to So,90153467,REDACTED - PERSONAL DATA,"1,872.00",03/04/2019
Delivery Units,Adults and Communities,Direct Transfer Payments to So,90153469,REDACTED - PERSONAL DATA,"1,560.72",03/04/2019
Delivery Units,Adults and Communities,Direct Transfer Payments to So,90153471,REDACTED - PERSONAL DATA,321.80,03/04/2019
Delivery Units,Adults and Communities,Direct Transfer Payments to So,90153472,REDACTED - PERSONAL DATA,136.00,03/04/2019
Delivery Units,Adults and Communities,Direct Transfer Payments to So,90153473,REDACTED - PERSONAL DATA,528.88,03/04/2019
Delivery Units,Adults and Communities,Direct Transfer Payments to So,90153480,REDACTED - PERSONAL DATA,382.20,03/04/2019
Delivery Units,Adults and Communities,Direct Transfer Payments to So,90153482,REDACTED - PERSONAL DATA,"2,296.60",03/04/2019
Delivery Units,Adults and Communities,Direct Transfer Payments to So,90153486,REDACTED - PERSONAL DATA,"1,524.64",03/04/2019
Delivery Units,Adults and Communities,Direct Transfer Payments to So,90153487,REDACTED - PERSONAL DATA,"2,688.00",03/04/2019
Delivery Units,Adults and Communities,Direct Transfer Payments to So,90153488,REDACTED - PERSONAL DATA,"2,349.16",03/04/2019
Delivery Units,Adults and Communities,Direct Transfer Payments to So,90153492,REDACTED - PERSONAL DATA,720.00,03/04/2019
Delivery Units,Adults and Communities,Direct Transfer Payments to So,90153496,REDACTED - PERSONAL DATA,"1,312.48",03/04/2019
Delivery Units,Adults and Communities,Direct Transfer Payments to So,90153498,REDACTED - PERSONAL DATA,384.00,03/04/2019
Delivery Units,Adults and Communities,Direct Transfer Payments to So,90153499,REDACTED - PERSONAL DATA,"1,431.96",03/04/2019
Delivery Units,Adults and Communities,Direct Transfer Payments to So,90153500,REDACTED - PERSONAL DATA,960.00,03/04/2019
Delivery Units,Adults and Communities,Direct Transfer Payments to So,90153502,REDACTED - PERSONAL DATA,96.00,03/04/2019
Delivery Units,Adults and Communities,Direct Transfer Payments to So,90153505,REDACTED - PERSONAL DATA,"1,164.24",03/04/2019
Delivery Units,Adults and Communities,Direct Transfer Payments to So,90153521,REDACTED - PERSONAL DATA,816.04,03/04/2019
Delivery Units,Adults and Communities,Direct Transfer Payments to So,90153523,REDACTED - PERSONAL DATA,"1,260.00",03/04/2019
Delivery Units,Adults and Communities,Direct Transfer Payments to So,90153524,REDACTED - PERSONAL DATA,456.76,03/04/2019
Delivery Units,Adults and Communities,Direct Transfer Payments to So,90153526,REDACTED - PERSONAL DATA,"1,238.92",03/04/2019
Delivery Units,Adults and Communities,Direct Transfer Payments to So,90153528,REDACTED - PERSONAL DATA,"1,582.00",03/04/2019
Delivery Units,Adults and Communities,Direct Transfer Payments to So,90153529,REDACTED - PERSONAL DATA,"4,608.04",03/04/2019
Delivery Units,Adults and Communities,Direct Transfer Payments to So,90153532,REDACTED - PERSONAL DATA,779.44,03/04/2019
Delivery Units,Adults and Communities,Direct Transfer Payments to So,90153533,REDACTED - PERSONAL DATA,"2,520.00",03/04/2019
Delivery Units,Adults and Communities,Direct Transfer Payments to So,90153540,REDACTED - PERSONAL DATA,482.72,03/04/2019
Delivery Units,Adults and Communities,Direct Transfer Payments to So,90153542,REDACTED - PERSONAL DATA,312.52,03/04/2019
Delivery Units,Adults and Communities,Direct Transfer Payments to So,90153543,REDACTED - PERSONAL DATA,490.04,03/04/2019
Delivery Units,Adults and Communities,Direct Transfer Payments to So,90153546,REDACTED - PERSONAL DATA,451.92,03/04/2019
Delivery Units,Adults and Communities,Direct Transfer Payments to So,90153547,REDACTED - PERSONAL DATA,"4,093.84",03/04/2019
Delivery Units,Adults and Communities,Direct Transfer Payments to So,90153549,REDACTED - PERSONAL DATA,347.20,03/04/2019
Delivery Units,Adults and Communities,Direct Transfer Payments to So,90153550,REDACTED - PERSONAL DATA,144.24,03/04/2019
Delivery Units,Adults and Communities,Direct Transfer Payments to So,90153551,REDACTED - PERSONAL DATA,347.20,03/04/2019
Delivery Units,Adults and Communities,Direct Transfer Payments to So,90153554,REDACTED - PERSONAL DATA,840.00,03/04/2019
Delivery Units,Adults and Communities,Direct Transfer Payments to So,90153556,REDACTED - PERSONAL DATA,825.44,03/04/2019
Delivery Units,Adults and Communities,Direct Transfer Payments to So,90153562,REDACTED - PERSONAL DATA,"1,351.56",03/04/2019
Delivery Units,Adults and Communities,Direct Transfer Payments to So,90153564,REDACTED - PERSONAL DATA,"1,353.04",03/04/2019
Delivery Units,Adults and Communities,Direct Transfer Payments to So,90153577,REDACTED - PERSONAL DATA,547.08,03/04/2019
Delivery Units,Adults and Communities,Direct Transfer Payments to So,90153578,REDACTED - PERSONAL DATA,"2,048.32",03/04/2019
Delivery Units,Adults and Communities,Direct Transfer Payments to So,90153583,REDACTED - PERSONAL DATA,"1,335.00",03/04/2019
Delivery Units,Adults and Communities,Direct Transfer Payments to So,90153585,REDACTED - PERSONAL DATA,"3,260.00",03/04/2019
Delivery Units,Adults and Communities,Direct Transfer Payments to So,90153586,REDACTED - PERSONAL DATA,"1,350.72",03/04/2019
Delivery Units,Adults and Communities,Direct Transfer Payments to So,90153595,REDACTED - PERSONAL DATA,904.80,03/04/2019
Delivery Units,Adults and Communities,Direct Transfer Payments to So,90153605,REDACTED - PERSONAL DATA,"1,370.28",03/04/2019
Delivery Units,Adults and Communities,Direct Transfer Payments to So,90153609,REDACTED - PERSONAL DATA,228.00,03/04/2019
Delivery Units,Adults and Communities,Direct Transfer Payments to So,90153615,REDACTED - PERSONAL DATA,"1,490.48",02/04/2019
Delivery Units,Adults and Communities,Direct Transfer Payments to So,90153616,REDACTED - PERSONAL DATA,604.40,03/04/2019
Delivery Units,Adults and Communities,Direct Transfer Payments to So,90153624,REDACTED - PERSONAL DATA,368.00,03/04/2019
Delivery Units,Adults and Communities,Direct Transfer Payments to So,90153625,REDACTED - PERSONAL DATA,997.76,03/04/2019
Delivery Units,Adults and Communities,Direct Transfer Payments to So,90153628,REDACTED - PERSONAL DATA,667.56,03/04/2019
Delivery Units,Adults and Communities,Direct Transfer Payments to So,90153631,REDACTED - PERSONAL DATA,"3,654.08",03/04/2019
Delivery Units,Adults and Communities,Direct Transfer Payments to So,90153634,REDACTED - PERSONAL DATA,851.20,03/04/2019
Delivery Units,Adults and Communities,Direct Transfer Payments to So,90153636,REDACTED - PERSONAL DATA,"1,440.00",03/04/2019
Delivery Units,Adults and Communities,Direct Transfer Payments to So,90153639,REDACTED - PERSONAL DATA,142.12,03/04/2019
Delivery Units,Adults and Communities,Direct Transfer Payments to So,90153640,REDACTED - PERSONAL DATA,625.28,03/04/2019
Delivery Units,Adults and Communities,Direct Transfer Payments to So,90153641,REDACTED - PERSONAL DATA,"1,360.00",03/04/2019
Delivery Units,Adults and Communities,Direct Transfer Payments to So,90153642,REDACTED - PERSONAL DATA,"6,572.64",03/04/2019
Delivery Units,Adults and Communities,Direct Transfer Payments to So,90153646,REDACTED - PERSONAL DATA,288.48,03/04/2019
Delivery Units,Adults and Communities,Direct Transfer Payments to So,90153651,REDACTED - PERSONAL DATA,"3,051.36",03/04/2019
Delivery Units,Adults and Communities,Direct Transfer Payments to So,90153655,REDACTED - PERSONAL DATA,"2,847.00",03/04/2019
Delivery Units,Adults and Communities,Direct Transfer Payments to So,90153660,REDACTED - PERSONAL DATA,384.64,03/04/2019
Delivery Units,Adults and Communities,Direct Transfer Payments to So,90153666,REDACTED - PERSONAL DATA,859.56,03/04/2019
Delivery Units,Adults and Communities,Direct Transfer Payments to So,90153667,REDACTED - PERSONAL DATA,"1,514.52",03/04/2019
Delivery Units,Adults and Communities,Direct Transfer Payments to So,90153671,REDACTED - PERSONAL DATA,"1,104.00",03/04/2019
Delivery Units,Adults and Communities,Direct Transfer Payments to So,90153673,REDACTED - PERSONAL DATA,"1,580.00",03/04/2019
Delivery Units,Adults and Communities,Direct Transfer Payments to So,90153676,REDACTED - PERSONAL DATA,"1,015.00",03/04/2019
Delivery Units,Adults and Communities,Direct Transfer Payments to So,90153677,REDACTED - PERSONAL DATA,"2,066.00",03/04/2019
Delivery Units,Adults and Communities,Direct Transfer Payments to So,90153683,REDACTED - PERSONAL DATA,572.36,03/04/2019
Delivery Units,Adults and Communities,Direct Transfer Payments to So,90153686,REDACTED - PERSONAL DATA,"2,931.20",03/04/2019
Delivery Units,Adults and Communities,Direct Transfer Payments to So,90153687,REDACTED - PERSONAL DATA,816.68,03/04/2019
Delivery Units,Adults and Communities,Direct Transfer Payments to So,90153688,REDACTED - PERSONAL DATA,732.72,03/04/2019
Delivery Units,Adults and Communities,Direct Transfer Payments to So,90153691,REDACTED - PERSONAL DATA,448.00,03/04/2019
Delivery Units,Adults and Communities,Direct Transfer Payments to So,90153692,REDACTED - PERSONAL DATA,"5,423.00",03/04/2019
Delivery Units,Adults and Communities,Direct Transfer Payments to So,90153695,REDACTED - PERSONAL DATA,"3,964.00",03/04/2019
Delivery Units,Adults and Communities,Direct Transfer Payments to So,90153698,REDACTED - PERSONAL DATA,282.80,03/04/2019
Delivery Units,Adults and Communities,Direct Transfer Payments to So,90153700,REDACTED - PERSONAL DATA,781.32,03/04/2019
Delivery Units,Adults and Communities,Direct Transfer Payments to So,90153701,REDACTED - PERSONAL DATA,424.40,03/04/2019
Delivery Units,Adults and Communities,Direct Transfer Payments to So,90153702,REDACTED - PERSONAL DATA,"3,834.44",03/04/2019
Delivery Units,Adults and Communities,Direct Transfer Payments to So,90153707,REDACTED - PERSONAL DATA,"2,304.00",03/04/2019
Delivery Units,Adults and Communities,Direct Transfer Payments to So,90153714,REDACTED - PERSONAL DATA,416.00,03/04/2019
Delivery Units,Adults and Communities,Direct Transfer Payments to So,90153716,REDACTED - PERSONAL DATA,368.00,03/04/2019
Delivery Units,Adults and Communities,Direct Transfer Payments to So,90153718,REDACTED - PERSONAL DATA,409.08,03/04/2019
Delivery Units,Adults and Communities,Direct Transfer Payments to So,90153725,REDACTED - PERSONAL DATA,"2,548.00",03/04/2019
Delivery Units,Adults and Communities,Direct Transfer Payments to So,90153726,REDACTED - PERSONAL DATA,730.48,03/04/2019
Delivery Units,Adults and Communities,Direct Transfer Payments to So,90153727,REDACTED - PERSONAL DATA,792.88,03/04/2019
Delivery Units,Adults and Communities,Direct Transfer Payments to So,90153728,REDACTED - PERSONAL DATA,"10,584.00",03/04/2019
Delivery Units,Adults and Communities,Direct Transfer Payments to So,90153729,REDACTED - PERSONAL DATA,70.00,03/04/2019
Delivery Units,Adults and Communities,Direct Transfer Payments to So,90153734,REDACTED - PERSONAL DATA,531.80,03/04/2019
Delivery Units,Adults and Communities,Direct Transfer Payments to So,90153735,REDACTED - PERSONAL DATA,230.40,03/04/2019
Delivery Units,Adults and Communities,Direct Transfer Payments to So,90153740,REDACTED - PERSONAL DATA,144.24,03/04/2019
Delivery Units,Adults and Communities,Direct Transfer Payments to So,90153741,REDACTED - PERSONAL DATA,26.20,03/04/2019
Delivery Units,Adults and Communities,Direct Transfer Payments to So,90153743,REDACTED - PERSONAL DATA,"2,813.00",03/04/2019
Delivery Units,Adults and Communities,Direct Transfer Payments to So,90153745,REDACTED - PERSONAL DATA,"1,249.52",03/04/2019
Delivery Units,Adults and Communities,Direct Transfer Payments to So,90153748,REDACTED - PERSONAL DATA,397.40,03/04/2019
Delivery Units,Adults and Communities,Direct Transfer Payments to So,90153755,REDACTED - PERSONAL DATA,913.20,03/04/2019
Delivery Units,Adults and Communities,Direct Transfer Payments to So,90153761,REDACTED - PERSONAL DATA,384.00,03/04/2019
Delivery Units,Adults and Communities,Direct Transfer Payments to So,90153762,REDACTED - PERSONAL DATA,588.96,03/04/2019
Delivery Units,Adults and Communities,Direct Transfer Payments to So,90153763,REDACTED - PERSONAL DATA,"3,727.68",03/04/2019
Delivery Units,Adults and Communities,Direct Transfer Payments to So,90153769,REDACTED - PERSONAL DATA,218.64,03/04/2019
Delivery Units,Adults and Communities,Direct Transfer Payments to So,90153770,REDACTED - PERSONAL DATA,92.32,03/04/2019
Delivery Units,Adults and Communities,Direct Transfer Payments to So,90153774,REDACTED - PERSONAL DATA,480.76,03/04/2019
Delivery Units,Adults and Communities,Direct Transfer Payments to So,90153775,REDACTED - PERSONAL DATA,408.00,03/04/2019
Delivery Units,Adults and Communities,Direct Transfer Payments to So,90153779,REDACTED - PERSONAL DATA,"8,746.84",03/04/2019
Delivery Units,Adults and Communities,Direct Transfer Payments to So,90153783,REDACTED - PERSONAL DATA,"1,905.28",03/04/2019
Delivery Units,Adults and Communities,Direct Transfer Payments to So,90153786,REDACTED - PERSONAL DATA,"4,133.60",03/04/2019
Delivery Units,Adults and Communities,Direct Transfer Payments to So,90153788,REDACTED - PERSONAL DATA,"6,721.20",03/04/2019
Delivery Units,Adults and Communities,Direct Transfer Payments to So,90153790,REDACTED - PERSONAL DATA,"1,105.84",03/04/2019
Delivery Units,Adults and Communities,Direct Transfer Payments to So,90153794,REDACTED - PERSONAL DATA,699.64,03/04/2019
Delivery Units,Adults and Communities,Direct Transfer Payments to So,90153795,REDACTED - PERSONAL DATA,899.36,03/04/2019
Delivery Units,Adults and Communities,Direct Transfer Payments to So,90153796,REDACTED - PERSONAL DATA,"3,451.44",03/04/2019
Delivery Units,Adults and Communities,Direct Transfer Payments to So,90153799,REDACTED - PERSONAL DATA,913.52,03/04/2019
Delivery Units,Adults and Communities,Direct Transfer Payments to So,90153802,REDACTED - PERSONAL DATA,628.00,03/04/2019
Delivery Units,Adults and Communities,Direct Transfer Payments to So,90153805,REDACTED - PERSONAL DATA,"1,638.16",03/04/2019
Delivery Units,Adults and Communities,Direct Transfer Payments to So,90153815,REDACTED - PERSONAL DATA,295.68,03/04/2019
Delivery Units,Adults and Communities,Direct Transfer Payments to So,90153816,REDACTED - PERSONAL DATA,"1,352.00",03/04/2019
Delivery Units,Adults and Communities,Direct Transfer Payments to So,90153817,REDACTED - PERSONAL DATA,288.48,03/04/2019
Delivery Units,Adults and Communities,Direct Transfer Payments to So,90153819,REDACTED - PERSONAL DATA,"2,869.48",03/04/2019
Delivery Units,Adults and Communities,Direct Transfer Payments to So,90153821,REDACTED - PERSONAL DATA,"2,040.00",03/04/2019
Delivery Units,Adults and Communities,Direct Transfer Payments to So,90153823,REDACTED - PERSONAL DATA,"1,202.00",03/04/2019
Delivery Units,Adults and Communities,Direct Transfer Payments to So,90153825,REDACTED - PERSONAL DATA,"1,183.32",03/04/2019
Delivery Units,Adults and Communities,Direct Transfer Payments to So,90153826,REDACTED - PERSONAL DATA,152.16,03/04/2019
Delivery Units,Adults and Communities,Direct Transfer Payments to So,90153838,REDACTED - PERSONAL DATA,"1,208.08",03/04/2019
Delivery Units,Adults and Communities,Direct Transfer Payments to So,90153841,REDACTED - PERSONAL DATA,360.00,03/04/2019
Delivery Units,Adults and Communities,Direct Transfer Payments to So,90153843,REDACTED - PERSONAL DATA,"1,524.80",03/04/2019
Delivery Units,Adults and Communities,Direct Transfer Payments to So,90153847,REDACTED - PERSONAL DATA,"2,933.80",03/04/2019
Delivery Units,Adults and Communities,Direct Transfer Payments to So,90153848,REDACTED - PERSONAL DATA,552.00,03/04/2019
Delivery Units,Adults and Communities,Direct Transfer Payments to So,90153849,REDACTED - PERSONAL DATA,"1,029.76",03/04/2019
Delivery Units,Adults and Communities,Direct Transfer Payments to So,90153850,REDACTED - PERSONAL DATA,"1,472.32",03/04/2019
Delivery Units,Adults and Communities,Direct Transfer Payments to So,90153853,REDACTED - PERSONAL DATA,480.80,03/04/2019
Delivery Units,Adults and Communities,Direct Transfer Payments to So,90153854,REDACTED - PERSONAL DATA,184.60,03/04/2019
Delivery Units,Adults and Communities,Direct Transfer Payments to So,90153857,REDACTED - PERSONAL DATA,770.40,03/04/2019
Delivery Units,Adults and Communities,Direct Transfer Payments to So,90153863,REDACTED - PERSONAL DATA,"2,684.48",03/04/2019
Delivery Units,Adults and Communities,Direct Transfer Payments to So,90153866,REDACTED - PERSONAL DATA,670.00,03/04/2019
Delivery Units,Adults and Communities,Direct Transfer Payments to So,90153872,REDACTED - PERSONAL DATA,302.08,03/04/2019
Delivery Units,Adults and Communities,Direct Transfer Payments to So,90153874,REDACTED - PERSONAL DATA,"2,778.80",03/04/2019
Delivery Units,Adults and Communities,Direct Transfer Payments to So,90153876,REDACTED - PERSONAL DATA,138.48,03/04/2019
Delivery Units,Adults and Communities,Direct Transfer Payments to So,90153879,REDACTED - PERSONAL DATA,66.88,03/04/2019
Delivery Units,Adults and Communities,Direct Transfer Payments to So,90153881,REDACTED - PERSONAL DATA,"2,808.08",03/04/2019
Delivery Units,Adults and Communities,Direct Transfer Payments to So,90153883,REDACTED - PERSONAL DATA,384.64,03/04/2019
Delivery Units,Adults and Communities,Direct Transfer Payments to So,90153884,REDACTED - PERSONAL DATA,186.48,03/04/2019
Delivery Units,Adults and Communities,Direct Transfer Payments to So,90153885,REDACTED - PERSONAL DATA,192.00,03/04/2019
Delivery Units,Adults and Communities,Direct Transfer Payments to So,90153891,REDACTED - PERSONAL DATA,340.00,03/04/2019
Delivery Units,Adults and Communities,Direct Transfer Payments to So,90153894,REDACTED - PERSONAL DATA,961.60,03/04/2019
Delivery Units,Adults and Communities,Direct Transfer Payments to So,90153895,REDACTED - PERSONAL DATA,"1,544.64",03/04/2019
Delivery Units,Adults and Communities,Direct Transfer Payments to So,90153897,REDACTED - PERSONAL DATA,640.00,03/04/2019
Delivery Units,Adults and Communities,Direct Transfer Payments to So,90153900,REDACTED - PERSONAL DATA,769.28,03/04/2019
Delivery Units,Adults and Communities,Direct Transfer Payments to So,90153906,REDACTED - PERSONAL DATA,780.92,03/04/2019
Delivery Units,Adults and Communities,Direct Transfer Payments to So,90153910,REDACTED - PERSONAL DATA,"1,407.44",03/04/2019
Delivery Units,Adults and Communities,Direct Transfer Payments to So,90153912,REDACTED - PERSONAL DATA,"1,000.00",03/04/2019
Delivery Units,Adults and Communities,Direct Transfer Payments to So,90153919,REDACTED - PERSONAL DATA,817.36,03/04/2019
Delivery Units,Adults and Communities,Direct Transfer Payments to So,90153922,REDACTED - PERSONAL DATA,740.00,03/04/2019
Delivery Units,Adults and Communities,Direct Transfer Payments to So,90153928,REDACTED - PERSONAL DATA,"2,005.04",03/04/2019
Delivery Units,Adults and Communities,Direct Transfer Payments to So,90153933,REDACTED - PERSONAL DATA,478.64,03/04/2019
Delivery Units,Adults and Communities,Direct Transfer Payments to So,90153937,REDACTED - PERSONAL DATA,"1,900.00",03/04/2019
Delivery Units,Adults and Communities,Direct Transfer Payments to So,90153939,REDACTED - PERSONAL DATA,"2,400.00",03/04/2019
Delivery Units,Adults and Communities,Direct Transfer Payments to So,90153941,REDACTED - PERSONAL DATA,"1,396.72",03/04/2019
Delivery Units,Adults and Communities,Direct Transfer Payments to So,90153942,REDACTED - PERSONAL DATA,"2,536.20",03/04/2019
Delivery Units,Adults and Communities,Direct Transfer Payments to So,90153944,REDACTED - PERSONAL DATA,"1,185.32",03/04/2019
Delivery Units,Adults and Communities,Direct Transfer Payments to So,90153946,REDACTED - PERSONAL DATA,"1,089.12",03/04/2019
Delivery Units,Adults and Communities,Direct Transfer Payments to So,90153952,REDACTED - PERSONAL DATA,568.16,03/04/2019
Delivery Units,Adults and Communities,Direct Transfer Payments to So,90153957,REDACTED - PERSONAL DATA,418.40,03/04/2019
Delivery Units,Adults and Communities,Direct Transfer Payments to So,90153962,REDACTED - PERSONAL DATA,305.44,03/04/2019
Delivery Units,Adults and Communities,Direct Transfer Payments to So,90153964,REDACTED - PERSONAL DATA,"1,525.44",03/04/2019
Delivery Units,Adults and Communities,Direct Transfer Payments to So,90153971,REDACTED - PERSONAL DATA,380.12,03/04/2019
Delivery Units,Adults and Communities,Direct Transfer Payments to So,90153972,REDACTED - PERSONAL DATA,840.00,03/04/2019
Delivery Units,Adults and Communities,Direct Transfer Payments to So,90153974,REDACTED - PERSONAL DATA,360.60,03/04/2019
Delivery Units,Adults and Communities,Direct Transfer Payments to So,90153976,REDACTED - PERSONAL DATA,728.00,03/04/2019
Delivery Units,Adults and Communities,Direct Transfer Payments to So,90153977,REDACTED - PERSONAL DATA,728.00,03/04/2019
Delivery Units,Adults and Communities,Direct Transfer Payments to So,90153978,REDACTED - PERSONAL DATA,348.48,03/04/2019
Delivery Units,Adults and Communities,Direct Transfer Payments to So,90153979,REDACTED - PERSONAL DATA,601.00,03/04/2019
Delivery Units,Adults and Communities,Direct Transfer Payments to So,90153980,REDACTED - PERSONAL DATA,528.88,03/04/2019
Delivery Units,Adults and Communities,Direct Transfer Payments to So,90153981,REDACTED - PERSONAL DATA,480.80,03/04/2019
Delivery Units,Adults and Communities,Direct Transfer Payments to So,90153986,REDACTED - PERSONAL DATA,769.28,03/04/2019
Delivery Units,Adults and Communities,Direct Transfer Payments to So,90153988,REDACTED - PERSONAL DATA,"1,126.32",03/04/2019
Delivery Units,Adults and Communities,Direct Transfer Payments to So,90153989,REDACTED - PERSONAL DATA,"1,351.56",03/04/2019
Delivery Units,Adults and Communities,Direct Transfer Payments to So,90153990,REDACTED - PERSONAL DATA,190.00,03/04/2019
Delivery Units,Adults and Communities,Direct Transfer Payments to So,90153991,REDACTED - PERSONAL DATA,"2,304.96",03/04/2019
Delivery Units,Adults and Communities,Direct Transfer Payments to So,90153992,REDACTED - PERSONAL DATA,170.04,03/04/2019
Delivery Units,Adults and Communities,Direct Transfer Payments to So,90154002,REDACTED - PERSONAL DATA,"1,766.96",03/04/2019
Delivery Units,Adults and Communities,Direct Transfer Payments to So,90154011,REDACTED - PERSONAL DATA,521.40,03/04/2019
Delivery Units,Adults and Communities,Direct Transfer Payments to So,90154012,REDACTED - PERSONAL DATA,338.64,03/04/2019
Delivery Units,Adults and Communities,Direct Transfer Payments to So,90154014,REDACTED - PERSONAL DATA,354.24,03/04/2019
Delivery Units,Adults and Communities,Direct Transfer Payments to So,90154017,REDACTED - PERSONAL DATA,"1,130.00",03/04/2019
Delivery Units,Adults and Communities,Direct Transfer Payments to So,90154019,REDACTED - PERSONAL DATA,"3,444.00",03/04/2019
Delivery Units,Adults and Communities,Direct Transfer Payments to So,90154021,REDACTED - PERSONAL DATA,"2,200.00",03/04/2019
Delivery Units,Adults and Communities,Direct Transfer Payments to So,90154025,REDACTED - PERSONAL DATA,350.84,03/04/2019
Delivery Units,Adults and Communities,Direct Transfer Payments to So,90154026,REDACTED - PERSONAL DATA,640.56,03/04/2019
Delivery Units,Adults and Communities,Direct Transfer Payments to So,90154029,REDACTED - PERSONAL DATA,"1,300.00",03/04/2019
Delivery Units,Adults and Communities,Direct Transfer Payments to So,90154031,REDACTED - PERSONAL DATA,950.60,03/04/2019
Delivery Units,Adults and Communities,Direct Transfer Payments to So,90154034,REDACTED - PERSONAL DATA,390.00,03/04/2019
Delivery Units,Adults and Communities,Direct Transfer Payments to So,90154040,REDACTED - PERSONAL DATA,"2,518.48",03/04/2019
Delivery Units,Adults and Communities,Direct Transfer Payments to So,90154044,REDACTED - PERSONAL DATA,"1,185.00",03/04/2019
Delivery Units,Adults and Communities,Direct Transfer Payments to So,90154045,REDACTED - PERSONAL DATA,621.60,03/04/2019
Delivery Units,Adults and Communities,Direct Transfer Payments to So,90154046,REDACTED - PERSONAL DATA,"1,143.16",03/04/2019
Delivery Units,Adults and Communities,Direct Transfer Payments to So,90154049,REDACTED - PERSONAL DATA,975.36,03/04/2019
Delivery Units,Adults and Communities,Direct Transfer Payments to So,90154053,REDACTED - PERSONAL DATA,348.00,03/04/2019
Delivery Units,Adults and Communities,Direct Transfer Payments to So,90154060,REDACTED - PERSONAL DATA,"3,266.48",03/04/2019
Delivery Units,Adults and Communities,Direct Transfer Payments to So,90154061,REDACTED - PERSONAL DATA,800.00,03/04/2019
Delivery Units,Adults and Communities,Direct Transfer Payments to So,90154062,REDACTED - PERSONAL DATA,24.60,03/04/2019
Delivery Units,Adults and Communities,Direct Transfer Payments to So,90154064,REDACTED - PERSONAL DATA,"1,113.44",03/04/2019
Delivery Units,Adults and Communities,Direct Transfer Payments to So,90154065,REDACTED - PERSONAL DATA,"1,094.12",03/04/2019
Delivery Units,Adults and Communities,Direct Transfer Payments to So,90154069,REDACTED - PERSONAL DATA,264.44,03/04/2019
Delivery Units,Adults and Communities,Direct Transfer Payments to So,90154075,REDACTED - PERSONAL DATA,"3,917.76",03/04/2019
Delivery Units,Adults and Communities,Direct Transfer Payments to So,90154076,REDACTED - PERSONAL DATA,160.00,03/04/2019
Delivery Units,Adults and Communities,Direct Transfer Payments to So,90154080,REDACTED - PERSONAL DATA,"1,660.80",03/04/2019
Delivery Units,Adults and Communities,Direct Transfer Payments to So,90154082,REDACTED - PERSONAL DATA,"1,708.00",03/04/2019
Delivery Units,Adults and Communities,Direct Transfer Payments to So,90154084,REDACTED - PERSONAL DATA,800.00,03/04/2019
Delivery Units,Adults and Communities,Direct Transfer Payments to So,90154093,REDACTED - PERSONAL DATA,"1,730.88",03/04/2019
Delivery Units,Adults and Communities,Direct Transfer Payments to So,90154095,REDACTED - PERSONAL DATA,488.44,03/04/2019
Delivery Units,Adults and Communities,Direct Transfer Payments to So,90154100,REDACTED - PERSONAL DATA,349.12,03/04/2019
Delivery Units,Adults and Communities,Direct Transfer Payments to So,90154102,REDACTED - PERSONAL DATA,"1,081.80",03/04/2019
Delivery Units,Adults and Communities,Direct Transfer Payments to So,90154104,REDACTED - PERSONAL DATA,933.24,03/04/2019
Delivery Units,Adults and Communities,Direct Transfer Payments to So,90154106,REDACTED - PERSONAL DATA,187.00,03/04/2019
Delivery Units,Adults and Communities,Direct Transfer Payments to So,90154108,REDACTED - PERSONAL DATA,785.12,03/04/2019
Delivery Units,Adults and Communities,Direct Transfer Payments to So,90154109,REDACTED - PERSONAL DATA,673.12,03/04/2019
Delivery Units,Adults and Communities,Direct Transfer Payments to So,90154111,REDACTED - PERSONAL DATA,560.00,03/04/2019
Delivery Units,Adults and Communities,Direct Transfer Payments to So,90154112,REDACTED - PERSONAL DATA,999.28,03/04/2019
Delivery Units,Adults and Communities,Direct Transfer Payments to So,90154119,REDACTED - PERSONAL DATA,"2,400.00",03/04/2019
Delivery Units,Adults and Communities,Direct Transfer Payments to So,90154124,REDACTED - PERSONAL DATA,975.28,03/04/2019
Delivery Units,Adults and Communities,Direct Transfer Payments to So,90154125,REDACTED - PERSONAL DATA,240.00,03/04/2019
Delivery Units,Adults and Communities,Direct Transfer Payments to So,90154127,REDACTED - PERSONAL DATA,"2,606.04",03/04/2019
Delivery Units,Adults and Communities,Direct Transfer Payments to So,90154129,REDACTED - PERSONAL DATA,"1,238.92",03/04/2019
Delivery Units,Adults and Communities,Direct Transfer Payments to So,90154131,REDACTED - PERSONAL DATA,373.96,03/04/2019
Delivery Units,Adults and Communities,Direct Transfer Payments to So,90154132,REDACTED - PERSONAL DATA,"1,009.68",03/04/2019
Delivery Units,Adults and Communities,Direct Transfer Payments to So,90154139,REDACTED - PERSONAL DATA,480.80,03/04/2019
Delivery Units,Adults and Communities,Direct Transfer Payments to So,90154145,REDACTED - PERSONAL DATA,480.80,03/04/2019
Delivery Units,Adults and Communities,Direct Transfer Payments to So,90154146,REDACTED - PERSONAL DATA,"1,222.84",03/04/2019
Delivery Units,Adults and Communities,Direct Transfer Payments to So,90154152,REDACTED - PERSONAL DATA,"1,695.00",03/04/2019
Delivery Units,Adults and Communities,Direct Transfer Payments to So,90154154,REDACTED - PERSONAL DATA,560.00,03/04/2019
Delivery Units,Adults and Communities,Direct Transfer Payments to So,90154162,REDACTED - PERSONAL DATA,144.24,03/04/2019
Delivery Units,Adults and Communities,Direct Transfer Payments to So,90154163,REDACTED - PERSONAL DATA,933.88,03/04/2019
Delivery Units,Adults and Communities,Direct Transfer Payments to So,90154165,REDACTED - PERSONAL DATA,"3,054.40",03/04/2019
Delivery Units,Adults and Communities,Direct Transfer Payments to So,90154166,REDACTED - PERSONAL DATA,800.00,03/04/2019
Delivery Units,Adults and Communities,Direct Transfer Payments to So,90154170,REDACTED - PERSONAL DATA,257.44,03/04/2019
Delivery Units,Adults and Communities,Direct Transfer Payments to So,90154171,REDACTED - PERSONAL DATA,580.36,03/04/2019
Delivery Units,Adults and Communities,Direct Transfer Payments to So,90154173,REDACTED - PERSONAL DATA,333.84,03/04/2019
Delivery Units,Adults and Communities,Direct Transfer Payments to So,90154174,REDACTED - PERSONAL DATA,280.00,03/04/2019
Delivery Units,Adults and Communities,Direct Transfer Payments to So,90154176,REDACTED - PERSONAL DATA,"1,520.00",03/04/2019
Delivery Units,Adults and Communities,Direct Transfer Payments to So,90154180,REDACTED - PERSONAL DATA,450.52,03/04/2019
Delivery Units,Adults and Communities,Direct Transfer Payments to So,90154181,REDACTED - PERSONAL DATA,384.00,03/04/2019
Delivery Units,Adults and Communities,Direct Transfer Payments to So,90154183,REDACTED - PERSONAL DATA,"1,243.00",03/04/2019
Delivery Units,Adults and Communities,Direct Transfer Payments to So,90154185,REDACTED - PERSONAL DATA,140.00,03/04/2019
Delivery Units,Adults and Communities,Direct Transfer Payments to So,90154186,REDACTED - PERSONAL DATA,200.00,03/04/2019
Delivery Units,Adults and Communities,Direct Transfer Payments to So,90154188,REDACTED - PERSONAL DATA,"2,156.08",03/04/2019
Delivery Units,Adults and Communities,Direct Transfer Payments to So,90154195,REDACTED - PERSONAL DATA,"1,013.68",03/04/2019
Delivery Units,Adults and Communities,Direct Transfer Payments to So,90154202,REDACTED - PERSONAL DATA,585.24,03/04/2019
Delivery Units,Adults and Communities,Direct Transfer Payments to So,90154203,REDACTED - PERSONAL DATA,"1,113.44",03/04/2019
Delivery Units,Adults and Communities,Direct Transfer Payments to So,90154204,REDACTED - PERSONAL DATA,486.20,03/04/2019
Delivery Units,Adults and Communities,Direct Transfer Payments to So,90154205,REDACTED - PERSONAL DATA,"1,680.00",03/04/2019
Delivery Units,Adults and Communities,Direct Transfer Payments to So,90154207,REDACTED - PERSONAL DATA,730.92,03/04/2019
Delivery Units,Adults and Communities,Direct Transfer Payments to So,90154208,REDACTED - PERSONAL DATA,"17,695.68",03/04/2019
Delivery Units,Adults and Communities,Direct Transfer Payments to So,90154209,REDACTED - PERSONAL DATA,"1,346.12",03/04/2019
Delivery Units,Adults and Communities,Direct Transfer Payments to So,90154217,REDACTED - PERSONAL DATA,589.68,03/04/2019
Delivery Units,Adults and Communities,Direct Transfer Payments to So,90154219,REDACTED - PERSONAL DATA,700.00,03/04/2019
Delivery Units,Adults and Communities,Direct Transfer Payments to So,90154227,REDACTED - PERSONAL DATA,"2,092.96",03/04/2019
Delivery Units,Adults and Communities,Direct Transfer Payments to So,90154229,REDACTED - PERSONAL DATA,"1,344.00",03/04/2019
Delivery Units,Adults and Communities,Direct Transfer Payments to So,90154235,REDACTED - PERSONAL DATA,772.32,03/04/2019
Delivery Units,Adults and Communities,Direct Transfer Payments to So,90154238,REDACTED - PERSONAL DATA,788.40,03/04/2019
Delivery Units,Adults and Communities,Direct Transfer Payments to So,90154241,REDACTED - PERSONAL DATA,"5,556.00",03/04/2019
Delivery Units,Adults and Communities,Direct Transfer Payments to So,90154245,REDACTED - PERSONAL DATA,"3,279.20",03/04/2019
Delivery Units,Adults and Communities,Direct Transfer Payments to So,90154246,REDACTED - PERSONAL DATA,"2,027.36",24/04/2019
Delivery Units,Adults and Communities,Direct Transfer Payments to So,90154248,REDACTED - PERSONAL DATA,128.00,03/04/2019
Delivery Units,Adults and Communities,Direct Transfer Payments to So,90154251,REDACTED - PERSONAL DATA,"3,000.00",03/04/2019
Delivery Units,Adults and Communities,Direct Transfer Payments to So,90154252,REDACTED - PERSONAL DATA,674.24,03/04/2019
Delivery Units,Adults and Communities,Direct Transfer Payments to So,90154253,REDACTED - PERSONAL DATA,125.68,03/04/2019
Delivery Units,Adults and Communities,Direct Transfer Payments to So,90154258,REDACTED - PERSONAL DATA,"1,060.00",03/04/2019
Delivery Units,Adults and Communities,Direct Transfer Payments to So,90154263,REDACTED - PERSONAL DATA,100.00,03/04/2019
Delivery Units,Adults and Communities,Direct Transfer Payments to So,90154268,REDACTED - PERSONAL DATA,448.00,03/04/2019
Delivery Units,Adults and Communities,Direct Transfer Payments to So,90154270,REDACTED - PERSONAL DATA,250.00,03/04/2019
Delivery Units,Adults and Communities,Direct Transfer Payments to So,90154271,REDACTED - PERSONAL DATA,144.24,03/04/2019
Delivery Units,Adults and Communities,Direct Transfer Payments to So,90154272,REDACTED - PERSONAL DATA,144.24,03/04/2019
Delivery Units,Adults and Communities,Direct Transfer Payments to So,90154273,REDACTED - PERSONAL DATA,228.36,03/04/2019
Delivery Units,Adults and Communities,Direct Transfer Payments to So,90154274,REDACTED - PERSONAL DATA,"3,942.56",03/04/2019
Delivery Units,Adults and Communities,Direct Transfer Payments to So,90155159,REDACTED - PERSONAL DATA,918.06,09/04/2019
Delivery Units,Adults and Communities,Direct Transfer Payments to So,90155162,REDACTED - PERSONAL DATA,-153.80,29/04/2019
Delivery Units,Adults and Communities,Direct Transfer Payments to So,90156336,REDACTED - PERSONAL DATA,100.00,16/04/2019
Delivery Units,Adults and Communities,Direct Transfer Payments to So,90156337,REDACTED - PERSONAL DATA,463.60,16/04/2019
Delivery Units,Adults and Communities,Direct Transfer Payments to So,90156347,REDACTED - PERSONAL DATA,"2,971.51",16/04/2019
Delivery Units,Adults and Communities,Direct Transfer Payments to So,90156349,REDACTED - PERSONAL DATA,"3,195.00",16/04/2019
Delivery Units,Adults and Communities,Direct Transfer Payments to So,90156351,REDACTED - PERSONAL DATA,784.64,16/04/2019
Delivery Units,Adults and Communities,Direct Transfer Payments to So,90156352,REDACTED - PERSONAL DATA,-277.72,29/04/2019
Delivery Units,Adults and Communities,Direct Transfer Payments to So,90156353,REDACTED - PERSONAL DATA,"1,669.16",16/04/2019
Delivery Units,Adults and Communities,Direct Transfer Payments to So,90156354,REDACTED - PERSONAL DATA,"-2,760.00",16/04/2019
Delivery Units,Adults and Communities,Direct Transfer Payments to So,90157257,REDACTED - PERSONAL DATA,150.05,24/04/2019
Delivery Units,Adults and Communities,Direct Transfer Payments to So,90157519,REDACTED - PERSONAL DATA,713.33,24/04/2019
Delivery Units,Adults and Communities,Direct Transfer Payments to So,90157521,REDACTED - PERSONAL DATA,997.92,29/04/2019
Delivery Units,Adults and Communities,Direct Transfer Payments to So,90157531,REDACTED - PERSONAL DATA,295.68,29/04/2019
Delivery Units,Adults and Communities,Direct Transfer Payments to So,90157532,REDACTED - PERSONAL DATA,"1,352.00",29/04/2019
Delivery Units,Adults and Communities,Direct Transfer Payments to So,90157533,REDACTED - PERSONAL DATA,288.48,29/04/2019
Delivery Units,Adults and Communities,Direct Transfer Payments to So,90157537,REDACTED - PERSONAL DATA,"2,040.00",29/04/2019
Delivery Units,Adults and Communities,Direct Transfer Payments to So,90157540,REDACTED - PERSONAL DATA,"1,183.32",29/04/2019
Delivery Units,Adults and Communities,Direct Transfer Payments to So,90157541,REDACTED - PERSONAL DATA,152.16,29/04/2019
Delivery Units,Adults and Communities,Direct Transfer Payments to So,90157549,REDACTED - PERSONAL DATA,"1,370.28",29/04/2019
Delivery Units,Adults and Communities,Direct Transfer Payments to So,90157553,REDACTED - PERSONAL DATA,228.00,29/04/2019
Delivery Units,Adults and Communities,Direct Transfer Payments to So,90157559,REDACTED - PERSONAL DATA,"1,490.48",26/04/2019
Delivery Units,Adults and Communities,Direct Transfer Payments to So,90157560,REDACTED - PERSONAL DATA,604.40,29/04/2019
Delivery Units,Adults and Communities,Direct Transfer Payments to So,90157568,REDACTED - PERSONAL DATA,368.00,29/04/2019
Delivery Units,Adults and Communities,Direct Transfer Payments to So,90157569,REDACTED - PERSONAL DATA,"5,423.00",29/04/2019
Delivery Units,Adults and Communities,Direct Transfer Payments to So,90157571,REDACTED - PERSONAL DATA,"3,964.00",29/04/2019
Delivery Units,Adults and Communities,Direct Transfer Payments to So,90157576,REDACTED - PERSONAL DATA,781.32,29/04/2019
Delivery Units,Adults and Communities,Direct Transfer Payments to So,90157577,REDACTED - PERSONAL DATA,424.40,29/04/2019
Delivery Units,Adults and Communities,Direct Transfer Payments to So,90157578,REDACTED - PERSONAL DATA,"3,834.44",29/04/2019
Delivery Units,Adults and Communities,Direct Transfer Payments to So,90157583,REDACTED - PERSONAL DATA,"2,304.00",29/04/2019
Delivery Units,Adults and Communities,Direct Transfer Payments to So,90157591,REDACTED - PERSONAL DATA,997.76,29/04/2019
Delivery Units,Adults and Communities,Direct Transfer Payments to So,90157594,REDACTED - PERSONAL DATA,667.56,29/04/2019
Delivery Units,Adults and Communities,Direct Transfer Payments to So,90157597,REDACTED - PERSONAL DATA,"3,654.08",29/04/2019
Delivery Units,Adults and Communities,Direct Transfer Payments to So,90157600,REDACTED - PERSONAL DATA,851.20,29/04/2019
Delivery Units,Adults and Communities,Direct Transfer Payments to So,90157602,REDACTED - PERSONAL DATA,"1,440.00",29/04/2019
Delivery Units,Adults and Communities,Direct Transfer Payments to So,90157605,REDACTED - PERSONAL DATA,142.12,29/04/2019
Delivery Units,Adults and Communities,Direct Transfer Payments to So,90157606,REDACTED - PERSONAL DATA,625.28,29/04/2019
Delivery Units,Adults and Communities,Direct Transfer Payments to So,90157607,REDACTED - PERSONAL DATA,"1,360.00",29/04/2019
Delivery Units,Adults and Communities,Direct Transfer Payments to So,90157608,REDACTED - PERSONAL DATA,"6,572.64",29/04/2019
Delivery Units,Adults and Communities,Direct Transfer Payments to So,90157611,REDACTED - PERSONAL DATA,859.56,29/04/2019
Delivery Units,Adults and Communities,Direct Transfer Payments to So,90157615,REDACTED - PERSONAL DATA,"1,104.00",29/04/2019
Delivery Units,Adults and Communities,Direct Transfer Payments to So,90157617,REDACTED - PERSONAL DATA,"1,580.00",29/04/2019
Delivery Units,Adults and Communities,Direct Transfer Payments to So,90157620,REDACTED - PERSONAL DATA,"2,066.00",29/04/2019
Delivery Units,Adults and Communities,Direct Transfer Payments to So,90157623,REDACTED - PERSONAL DATA,770.40,29/04/2019
Delivery Units,Adults and Communities,Direct Transfer Payments to So,90157628,REDACTED - PERSONAL DATA,"2,684.48",29/04/2019
Delivery Units,Adults and Communities,Direct Transfer Payments to So,90157633,REDACTED - PERSONAL DATA,508.00,29/04/2019
Delivery Units,Adults and Communities,Direct Transfer Payments to So,90157640,REDACTED - PERSONAL DATA,384.64,29/04/2019
Delivery Units,Adults and Communities,Direct Transfer Payments to So,90157641,REDACTED - PERSONAL DATA,186.48,29/04/2019
Delivery Units,Adults and Communities,Direct Transfer Payments to So,90157642,REDACTED - PERSONAL DATA,192.00,29/04/2019
Delivery Units,Adults and Communities,Direct Transfer Payments to So,90157645,REDACTED - PERSONAL DATA,"1,143.16",29/04/2019
Delivery Units,Adults and Communities,Direct Transfer Payments to So,90157649,REDACTED - PERSONAL DATA,913.20,29/04/2019
Delivery Units,Adults and Communities,Direct Transfer Payments to So,90157654,REDACTED - PERSONAL DATA,384.00,29/04/2019
Delivery Units,Adults and Communities,Direct Transfer Payments to So,90157656,REDACTED - PERSONAL DATA,"3,727.68",29/04/2019
Delivery Units,Adults and Communities,Direct Transfer Payments to So,90157664,REDACTED - PERSONAL DATA,288.48,29/04/2019
Delivery Units,Adults and Communities,Direct Transfer Payments to So,90157669,REDACTED - PERSONAL DATA,"3,051.36",29/04/2019
Delivery Units,Adults and Communities,Direct Transfer Payments to So,90157673,REDACTED - PERSONAL DATA,"2,847.00",29/04/2019
Delivery Units,Adults and Communities,Direct Transfer Payments to So,90157678,REDACTED - PERSONAL DATA,384.64,29/04/2019
Delivery Units,Adults and Communities,Direct Transfer Payments to So,90157685,REDACTED - PERSONAL DATA,572.36,29/04/2019
Delivery Units,Adults and Communities,Direct Transfer Payments to So,90157688,REDACTED - PERSONAL DATA,"2,931.20",29/04/2019
Delivery Units,Adults and Communities,Direct Transfer Payments to So,90157689,REDACTED - PERSONAL DATA,816.68,29/04/2019
Delivery Units,Adults and Communities,Direct Transfer Payments to So,90157690,REDACTED - PERSONAL DATA,"1,351.56",29/04/2019
Delivery Units,Adults and Communities,Direct Transfer Payments to So,90157693,REDACTED - PERSONAL DATA,448.00,29/04/2019
Delivery Units,Adults and Communities,Direct Transfer Payments to So,90157696,REDACTED - PERSONAL DATA,144.24,29/04/2019
Delivery Units,Adults and Communities,Direct Transfer Payments to So,90157697,REDACTED - PERSONAL DATA,26.20,29/04/2019
Delivery Units,Adults and Communities,Direct Transfer Payments to So,90157703,REDACTED - PERSONAL DATA,397.40,29/04/2019
Delivery Units,Adults and Communities,Direct Transfer Payments to So,90157704,REDACTED - PERSONAL DATA,"3,856.00",29/04/2019
Delivery Units,Adults and Communities,Direct Transfer Payments to So,90157712,REDACTED - PERSONAL DATA,"1,208.08",29/04/2019
Delivery Units,Adults and Communities,Direct Transfer Payments to So,90157715,REDACTED - PERSONAL DATA,"1,905.28",29/04/2019
Delivery Units,Adults and Communities,Direct Transfer Payments to So,90157718,REDACTED - PERSONAL DATA,"4,133.60",29/04/2019
Delivery Units,Adults and Communities,Direct Transfer Payments to So,90157720,REDACTED - PERSONAL DATA,"6,721.20",29/04/2019
Delivery Units,Adults and Communities,Direct Transfer Payments to So,90157722,REDACTED - PERSONAL DATA,"1,105.84",29/04/2019
Delivery Units,Adults and Communities,Direct Transfer Payments to So,90157726,REDACTED - PERSONAL DATA,699.64,29/04/2019
Delivery Units,Adults and Communities,Direct Transfer Payments to So,90157727,REDACTED - PERSONAL DATA,899.36,29/04/2019
Delivery Units,Adults and Communities,Direct Transfer Payments to So,90157728,REDACTED - PERSONAL DATA,"3,451.44",29/04/2019
Delivery Units,Adults and Communities,Direct Transfer Payments to So,90157731,REDACTED - PERSONAL DATA,913.52,29/04/2019
Delivery Units,Adults and Communities,Direct Transfer Payments to So,90157734,REDACTED - PERSONAL DATA,504.96,29/04/2019
Delivery Units,Adults and Communities,Direct Transfer Payments to So,90157737,REDACTED - PERSONAL DATA,"1,638.16",29/04/2019
Delivery Units,Adults and Communities,Direct Transfer Payments to So,90157742,REDACTED - PERSONAL DATA,531.80,29/04/2019
Delivery Units,Adults and Communities,Direct Transfer Payments to So,90157743,REDACTED - PERSONAL DATA,230.40,29/04/2019
Delivery Units,Adults and Communities,Direct Transfer Payments to So,90157748,REDACTED - PERSONAL DATA,360.00,29/04/2019
Delivery Units,Adults and Communities,Direct Transfer Payments to So,90157750,REDACTED - PERSONAL DATA,"1,524.80",29/04/2019
Delivery Units,Adults and Communities,Direct Transfer Payments to So,90157754,REDACTED - PERSONAL DATA,"2,933.80",29/04/2019
Delivery Units,Adults and Communities,Direct Transfer Payments to So,90157755,REDACTED - PERSONAL DATA,552.00,29/04/2019
Delivery Units,Adults and Communities,Direct Transfer Payments to So,90157756,REDACTED - PERSONAL DATA,"1,029.76",29/04/2019
Delivery Units,Adults and Communities,Direct Transfer Payments to So,90157758,REDACTED - PERSONAL DATA,184.60,29/04/2019
Delivery Units,Adults and Communities,Direct Transfer Payments to So,90157761,REDACTED - PERSONAL DATA,"2,778.80",29/04/2019
Delivery Units,Adults and Communities,Direct Transfer Payments to So,90157763,REDACTED - PERSONAL DATA,138.48,29/04/2019
Delivery Units,Adults and Communities,Direct Transfer Payments to So,90157768,REDACTED - PERSONAL DATA,"2,808.08",29/04/2019
Delivery Units,Adults and Communities,Direct Transfer Payments to So,90157770,REDACTED - PERSONAL DATA,368.00,29/04/2019
Delivery Units,Adults and Communities,Direct Transfer Payments to So,90157772,REDACTED - PERSONAL DATA,409.08,29/04/2019
Delivery Units,Adults and Communities,Direct Transfer Payments to So,90157778,REDACTED - PERSONAL DATA,"2,548.00",29/04/2019
Delivery Units,Adults and Communities,Direct Transfer Payments to So,90157779,REDACTED - PERSONAL DATA,730.48,29/04/2019
Delivery Units,Adults and Communities,Direct Transfer Payments to So,90157780,REDACTED - PERSONAL DATA,792.88,29/04/2019
Delivery Units,Adults and Communities,Direct Transfer Payments to So,90157781,REDACTED - PERSONAL DATA,"10,584.00",29/04/2019
Delivery Units,Adults and Communities,Direct Transfer Payments to So,90157782,REDACTED - PERSONAL DATA,70.00,29/04/2019
Delivery Units,Adults and Communities,Direct Transfer Payments to So,90157783,REDACTED - PERSONAL DATA,218.64,29/04/2019
Delivery Units,Adults and Communities,Direct Transfer Payments to So,90157784,REDACTED - PERSONAL DATA,92.32,29/04/2019
Delivery Units,Adults and Communities,Direct Transfer Payments to So,90157787,REDACTED - PERSONAL DATA,480.76,29/04/2019
Delivery Units,Adults and Communities,Direct Transfer Payments to So,90157788,REDACTED - PERSONAL DATA,408.00,29/04/2019
Delivery Units,Adults and Communities,Direct Transfer Payments to So,90157792,REDACTED - PERSONAL DATA,"8,746.84",29/04/2019
Delivery Units,Adults and Communities,Direct Transfer Payments to So,90157794,REDACTED - PERSONAL DATA,200.00,29/04/2019
Delivery Units,Adults and Communities,Direct Transfer Payments to So,90157797,REDACTED - PERSONAL DATA,772.32,29/04/2019
Delivery Units,Adults and Communities,Direct Transfer Payments to So,90157807,REDACTED - PERSONAL DATA,100.00,29/04/2019
Delivery Units,Adults and Communities,Direct Transfer Payments to So,90157811,REDACTED - PERSONAL DATA,"2,156.08",29/04/2019
Delivery Units,Adults and Communities,Direct Transfer Payments to So,90157817,REDACTED - PERSONAL DATA,"1,013.68",29/04/2019
Delivery Units,Adults and Communities,Direct Transfer Payments to So,90157827,REDACTED - PERSONAL DATA,589.68,29/04/2019
Delivery Units,Adults and Communities,Direct Transfer Payments to So,90157828,REDACTED - PERSONAL DATA,700.00,29/04/2019
Delivery Units,Adults and Communities,Direct Transfer Payments to So,90157838,REDACTED - PERSONAL DATA,"1,520.00",29/04/2019
Delivery Units,Adults and Communities,Direct Transfer Payments to So,90157842,REDACTED - PERSONAL DATA,"1,243.00",29/04/2019
Delivery Units,Adults and Communities,Direct Transfer Payments to So,90157844,REDACTED - PERSONAL DATA,"2,092.96",29/04/2019
Delivery Units,Adults and Communities,Direct Transfer Payments to So,90157846,REDACTED - PERSONAL DATA,788.40,29/04/2019
Delivery Units,Adults and Communities,Direct Transfer Payments to So,90157848,REDACTED - PERSONAL DATA,"5,556.00",29/04/2019
Delivery Units,Adults and Communities,Direct Transfer Payments to So,90157852,REDACTED - PERSONAL DATA,"3,279.20",29/04/2019
Delivery Units,Adults and Communities,Direct Transfer Payments to So,90157855,REDACTED - PERSONAL DATA,128.00,29/04/2019
Delivery Units,Adults and Communities,Direct Transfer Payments to So,90157858,REDACTED - PERSONAL DATA,"3,000.00",29/04/2019
Delivery Units,Adults and Communities,Direct Transfer Payments to So,90157859,REDACTED - PERSONAL DATA,674.24,29/04/2019
Delivery Units,Adults and Communities,Direct Transfer Payments to So,90157860,REDACTED - PERSONAL DATA,125.68,29/04/2019
Delivery Units,Adults and Communities,Direct Transfer Payments to So,90157861,REDACTED - PERSONAL DATA,333.84,29/04/2019
Delivery Units,Adults and Communities,Direct Transfer Payments to So,90157862,REDACTED - PERSONAL DATA,585.24,29/04/2019
Delivery Units,Adults and Communities,Direct Transfer Payments to So,90157863,REDACTED - PERSONAL DATA,"1,113.44",29/04/2019
Delivery Units,Adults and Communities,Direct Transfer Payments to So,90157864,REDACTED - PERSONAL DATA,486.20,29/04/2019
Delivery Units,Adults and Communities,Direct Transfer Payments to So,90157867,REDACTED - PERSONAL DATA,730.92,29/04/2019
Delivery Units,Adults and Communities,Direct Transfer Payments to So,90157868,REDACTED - PERSONAL DATA,"17,695.68",29/04/2019
Delivery Units,Adults and Communities,Direct Transfer Payments to So,90157872,REDACTED - PERSONAL DATA,"2,638.76",29/04/2019
Delivery Units,Adults and Communities,Direct Transfer Payments to So,90157874,REDACTED - PERSONAL DATA,488.44,29/04/2019
Delivery Units,Adults and Communities,Direct Transfer Payments to So,90157878,REDACTED - PERSONAL DATA,349.12,29/04/2019
Delivery Units,Adults and Communities,Direct Transfer Payments to So,90157881,REDACTED - PERSONAL DATA,933.24,29/04/2019
Delivery Units,Adults and Communities,Direct Transfer Payments to So,90157883,REDACTED - PERSONAL DATA,187.00,29/04/2019
Delivery Units,Adults and Communities,Direct Transfer Payments to So,90157885,REDACTED - PERSONAL DATA,785.12,29/04/2019
Delivery Units,Adults and Communities,Direct Transfer Payments to So,90157886,REDACTED - PERSONAL DATA,673.12,29/04/2019
Delivery Units,Adults and Communities,Direct Transfer Payments to So,90157888,REDACTED - PERSONAL DATA,560.00,29/04/2019
Delivery Units,Adults and Communities,Direct Transfer Payments to So,90157889,REDACTED - PERSONAL DATA,999.28,29/04/2019
Delivery Units,Adults and Communities,Direct Transfer Payments to So,90157899,REDACTED - PERSONAL DATA,340.00,29/04/2019
Delivery Units,Adults and Communities,Direct Transfer Payments to So,90157902,REDACTED - PERSONAL DATA,961.60,29/04/2019
Delivery Units,Adults and Communities,Direct Transfer Payments to So,90157908,REDACTED - PERSONAL DATA,769.28,29/04/2019
Delivery Units,Adults and Communities,Direct Transfer Payments to So,90157913,REDACTED - PERSONAL DATA,780.92,29/04/2019
Delivery Units,Adults and Communities,Direct Transfer Payments to So,90157917,REDACTED - PERSONAL DATA,"1,407.44",29/04/2019
Delivery Units,Adults and Communities,Direct Transfer Payments to So,90157919,REDACTED - PERSONAL DATA,"1,000.00",29/04/2019
Delivery Units,Adults and Communities,Direct Transfer Payments to So,90157931,REDACTED - PERSONAL DATA,"11,242.56",29/04/2019
Delivery Units,Adults and Communities,Direct Transfer Payments to So,90157932,REDACTED - PERSONAL DATA,589.00,29/04/2019
Delivery Units,Adults and Communities,Direct Transfer Payments to So,90157934,REDACTED - PERSONAL DATA,"1,766.96",29/04/2019
Delivery Units,Adults and Communities,Direct Transfer Payments to So,90157944,REDACTED - PERSONAL DATA,521.40,29/04/2019
Delivery Units,Adults and Communities,Direct Transfer Payments to So,90157948,REDACTED - PERSONAL DATA,817.36,29/04/2019
Delivery Units,Adults and Communities,Direct Transfer Payments to So,90157951,REDACTED - PERSONAL DATA,740.00,29/04/2019
Delivery Units,Adults and Communities,Direct Transfer Payments to So,90157957,REDACTED - PERSONAL DATA,"2,005.04",29/04/2019
Delivery Units,Adults and Communities,Direct Transfer Payments to So,90157961,REDACTED - PERSONAL DATA,478.64,29/04/2019
Delivery Units,Adults and Communities,Direct Transfer Payments to So,90157967,REDACTED - PERSONAL DATA,"2,400.00",29/04/2019
Delivery Units,Adults and Communities,Direct Transfer Payments to So,90157969,REDACTED - PERSONAL DATA,"1,396.72",29/04/2019
Delivery Units,Adults and Communities,Direct Transfer Payments to So,90157974,REDACTED - PERSONAL DATA,380.12,29/04/2019
Delivery Units,Adults and Communities,Direct Transfer Payments to So,90157977,REDACTED - PERSONAL DATA,360.60,29/04/2019
Delivery Units,Adults and Communities,Direct Transfer Payments to So,90157979,REDACTED - PERSONAL DATA,728.00,29/04/2019
Delivery Units,Adults and Communities,Direct Transfer Payments to So,90157980,REDACTED - PERSONAL DATA,728.00,29/04/2019
Delivery Units,Adults and Communities,Direct Transfer Payments to So,90157984,REDACTED - PERSONAL DATA,"1,695.00",29/04/2019
Delivery Units,Adults and Communities,Direct Transfer Payments to So,90157986,REDACTED - PERSONAL DATA,560.00,29/04/2019
Delivery Units,Adults and Communities,Direct Transfer Payments to So,90157992,REDACTED - PERSONAL DATA,975.36,29/04/2019
Delivery Units,Adults and Communities,Direct Transfer Payments to So,90157993,REDACTED - PERSONAL DATA,"2,688.00",29/04/2019
Delivery Units,Adults and Communities,Direct Transfer Payments to So,90157997,REDACTED - PERSONAL DATA,348.00,29/04/2019
Delivery Units,Adults and Communities,Direct Transfer Payments to So,90158003,REDACTED - PERSONAL DATA,"3,266.48",29/04/2019
Delivery Units,Adults and Communities,Direct Transfer Payments to So,90158004,REDACTED - PERSONAL DATA,800.00,29/04/2019
Delivery Units,Adults and Communities,Direct Transfer Payments to So,90158005,REDACTED - PERSONAL DATA,"2,400.00",29/04/2019
Delivery Units,Adults and Communities,Direct Transfer Payments to So,90158007,REDACTED - PERSONAL DATA,"1,185.32",29/04/2019
Delivery Units,Adults and Communities,Direct Transfer Payments to So,90158009,REDACTED - PERSONAL DATA,"1,089.12",29/04/2019
Delivery Units,Adults and Communities,Direct Transfer Payments to So,90158015,REDACTED - PERSONAL DATA,568.16,29/04/2019
Delivery Units,Adults and Communities,Direct Transfer Payments to So,90158020,REDACTED - PERSONAL DATA,418.40,29/04/2019
Delivery Units,Adults and Communities,Direct Transfer Payments to So,90158025,REDACTED - PERSONAL DATA,305.44,29/04/2019
Delivery Units,Adults and Communities,Direct Transfer Payments to So,90158027,REDACTED - PERSONAL DATA,"1,525.44",29/04/2019
Delivery Units,Adults and Communities,Direct Transfer Payments to So,90158030,REDACTED - PERSONAL DATA,348.48,29/04/2019
Delivery Units,Adults and Communities,Direct Transfer Payments to So,90158031,REDACTED - PERSONAL DATA,601.00,29/04/2019
Delivery Units,Adults and Communities,Direct Transfer Payments to So,90158032,REDACTED - PERSONAL DATA,528.88,29/04/2019
Delivery Units,Adults and Communities,Direct Transfer Payments to So,90158038,REDACTED - PERSONAL DATA,769.28,29/04/2019
Delivery Units,Adults and Communities,Direct Transfer Payments to So,90158041,REDACTED - PERSONAL DATA,190.00,29/04/2019
Delivery Units,Adults and Communities,Direct Transfer Payments to So,90158042,REDACTED - PERSONAL DATA,"2,304.96",29/04/2019
Delivery Units,Adults and Communities,Direct Transfer Payments to So,90158043,REDACTED - PERSONAL DATA,170.04,29/04/2019
Delivery Units,Adults and Communities,Direct Transfer Payments to So,90158045,REDACTED - PERSONAL DATA,800.00,29/04/2019
Delivery Units,Adults and Communities,Direct Transfer Payments to So,90158048,REDACTED - PERSONAL DATA,257.44,29/04/2019
Delivery Units,Adults and Communities,Direct Transfer Payments to So,90158049,REDACTED - PERSONAL DATA,580.36,29/04/2019
Delivery Units,Adults and Communities,Direct Transfer Payments to So,90158051,REDACTED - PERSONAL DATA,"2,518.48",29/04/2019
Delivery Units,Adults and Communities,Direct Transfer Payments to So,90158055,REDACTED - PERSONAL DATA,"1,185.00",29/04/2019
Delivery Units,Adults and Communities,Direct Transfer Payments to So,90158056,REDACTED - PERSONAL DATA,621.60,29/04/2019
Delivery Units,Adults and Communities,Direct Transfer Payments to So,90158059,REDACTED - PERSONAL DATA,975.28,29/04/2019
Delivery Units,Adults and Communities,Direct Transfer Payments to So,90158060,REDACTED - PERSONAL DATA,240.00,29/04/2019
Delivery Units,Adults and Communities,Direct Transfer Payments to So,90158062,REDACTED - PERSONAL DATA,"2,606.04",29/04/2019
Delivery Units,Adults and Communities,Direct Transfer Payments to So,90158064,REDACTED - PERSONAL DATA,"1,238.92",29/04/2019
Delivery Units,Adults and Communities,Direct Transfer Payments to So,90158077,REDACTED - PERSONAL DATA,"1,660.80",29/04/2019
Delivery Units,Adults and Communities,Direct Transfer Payments to So,90158079,REDACTED - PERSONAL DATA,"1,708.00",29/04/2019
Delivery Units,Adults and Communities,Direct Transfer Payments to So,90158080,REDACTED - PERSONAL DATA,800.00,29/04/2019
Delivery Units,Adults and Communities,Direct Transfer Payments to So,90158088,REDACTED - PERSONAL DATA,"1,300.00",29/04/2019
Delivery Units,Adults and Communities,Direct Transfer Payments to So,90158093,REDACTED - PERSONAL DATA,390.00,29/04/2019
Delivery Units,Adults and Communities,Direct Transfer Payments to So,90158099,REDACTED - PERSONAL DATA,373.96,29/04/2019
Delivery Units,Adults and Communities,Direct Transfer Payments to So,90158105,REDACTED - PERSONAL DATA,480.80,29/04/2019
Delivery Units,Adults and Communities,Direct Transfer Payments to So,90158111,REDACTED - PERSONAL DATA,480.80,29/04/2019
Delivery Units,Adults and Communities,Direct Transfer Payments to So,90158112,REDACTED - PERSONAL DATA,"1,222.84",29/04/2019
Delivery Units,Adults and Communities,Direct Transfer Payments to So,90158116,REDACTED - PERSONAL DATA,144.24,29/04/2019
Delivery Units,Adults and Communities,Direct Transfer Payments to So,90158117,REDACTED - PERSONAL DATA,933.88,29/04/2019
Delivery Units,Adults and Communities,Direct Transfer Payments to So,90158119,REDACTED - PERSONAL DATA,649.04,29/04/2019
Delivery Units,Adults and Communities,Direct Transfer Payments to So,90158122,REDACTED - PERSONAL DATA,354.24,29/04/2019
Delivery Units,Adults and Communities,Direct Transfer Payments to So,90158125,REDACTED - PERSONAL DATA,"1,130.00",29/04/2019
Delivery Units,Adults and Communities,Direct Transfer Payments to So,90158127,REDACTED - PERSONAL DATA,"3,444.00",29/04/2019
Delivery Units,Adults and Communities,Direct Transfer Payments to So,90158129,REDACTED - PERSONAL DATA,"2,200.00",29/04/2019
Delivery Units,Adults and Communities,Direct Transfer Payments to So,90158133,REDACTED - PERSONAL DATA,350.84,29/04/2019
Delivery Units,Adults and Communities,Direct Transfer Payments to So,90158134,REDACTED - PERSONAL DATA,640.56,29/04/2019
Delivery Units,Adults and Communities,Direct Transfer Payments to So,90158137,REDACTED - PERSONAL DATA,24.60,29/04/2019
Delivery Units,Adults and Communities,Direct Transfer Payments to So,90158139,REDACTED - PERSONAL DATA,"1,113.44",29/04/2019
Delivery Units,Adults and Communities,Direct Transfer Payments to So,90158140,REDACTED - PERSONAL DATA,"1,094.12",29/04/2019
Delivery Units,Adults and Communities,Direct Transfer Payments to So,90158144,REDACTED - PERSONAL DATA,456.76,29/04/2019
Delivery Units,Adults and Communities,Direct Transfer Payments to So,90158146,REDACTED - PERSONAL DATA,"1,238.92",29/04/2019
Delivery Units,Adults and Communities,Direct Transfer Payments to So,90158149,REDACTED - PERSONAL DATA,485.84,29/04/2019
Delivery Units,Adults and Communities,Direct Transfer Payments to So,90158150,REDACTED - PERSONAL DATA,"1,161.92",29/04/2019
Delivery Units,Adults and Communities,Direct Transfer Payments to So,90158156,REDACTED - PERSONAL DATA,"1,359.20",29/04/2019
Delivery Units,Adults and Communities,Direct Transfer Payments to So,90158162,REDACTED - PERSONAL DATA,"3,713.28",29/04/2019
Delivery Units,Adults and Communities,Direct Transfer Payments to So,90158163,REDACTED - PERSONAL DATA,"1,400.00",29/04/2019
Delivery Units,Adults and Communities,Direct Transfer Payments to So,90158164,REDACTED - PERSONAL DATA,"1,845.36",29/04/2019
Delivery Units,Adults and Communities,Direct Transfer Payments to So,90158168,REDACTED - PERSONAL DATA,"3,100.16",29/04/2019
Delivery Units,Adults and Communities,Direct Transfer Payments to So,90158170,REDACTED - PERSONAL DATA,851.08,29/04/2019
Delivery Units,Adults and Communities,Direct Transfer Payments to So,90158171,REDACTED - PERSONAL DATA,"1,342.48",29/04/2019
Delivery Units,Adults and Communities,Direct Transfer Payments to So,90158172,REDACTED - PERSONAL DATA,672.00,29/04/2019
Delivery Units,Adults and Communities,Direct Transfer Payments to So,90158173,REDACTED - PERSONAL DATA,502.40,29/04/2019
Delivery Units,Adults and Communities,Direct Transfer Payments to So,90158176,REDACTED - PERSONAL DATA,"2,208.44",29/04/2019
Delivery Units,Adults and Communities,Direct Transfer Payments to So,90158177,REDACTED - PERSONAL DATA,"1,924.00",29/04/2019
Delivery Units,Adults and Communities,Direct Transfer Payments to So,90158179,REDACTED - PERSONAL DATA,"1,183.32",29/04/2019
Delivery Units,Adults and Communities,Direct Transfer Payments to So,90158187,REDACTED - PERSONAL DATA,700.00,29/04/2019
Delivery Units,Adults and Communities,Direct Transfer Payments to So,90158188,REDACTED - PERSONAL DATA,200.56,29/04/2019
Delivery Units,Adults and Communities,Direct Transfer Payments to So,90158189,REDACTED - PERSONAL DATA,410.96,29/04/2019
Delivery Units,Adults and Communities,Direct Transfer Payments to So,90158191,REDACTED - PERSONAL DATA,395.32,29/04/2019
Delivery Units,Adults and Communities,Direct Transfer Payments to So,90158197,REDACTED - PERSONAL DATA,"3,474.40",29/04/2019
Delivery Units,Adults and Communities,Direct Transfer Payments to So,90158198,REDACTED - PERSONAL DATA,478.48,29/04/2019
Delivery Units,Adults and Communities,Direct Transfer Payments to So,90158201,REDACTED - PERSONAL DATA,"1,440.00",29/04/2019
Delivery Units,Adults and Communities,Direct Transfer Payments to So,90158202,REDACTED - PERSONAL DATA,"1,872.00",29/04/2019
Delivery Units,Adults and Communities,Direct Transfer Payments to So,90158204,REDACTED - PERSONAL DATA,"1,560.72",29/04/2019
Delivery Units,Adults and Communities,Direct Transfer Payments to So,90158205,REDACTED - PERSONAL DATA,"1,353.04",29/04/2019
Delivery Units,Adults and Communities,Direct Transfer Payments to So,90158217,REDACTED - PERSONAL DATA,547.08,29/04/2019
Delivery Units,Adults and Communities,Direct Transfer Payments to So,90158218,REDACTED - PERSONAL DATA,"2,048.32",29/04/2019
Delivery Units,Adults and Communities,Direct Transfer Payments to So,90158221,REDACTED - PERSONAL DATA,"1,344.00",29/04/2019
Delivery Units,Adults and Communities,Direct Transfer Payments to So,90158228,REDACTED - PERSONAL DATA,"2,296.60",29/04/2019
Delivery Units,Adults and Communities,Direct Transfer Payments to So,90158231,REDACTED - PERSONAL DATA,"1,524.64",29/04/2019
Delivery Units,Adults and Communities,Direct Transfer Payments to So,90158232,REDACTED - PERSONAL DATA,"2,349.16",29/04/2019
Delivery Units,Adults and Communities,Direct Transfer Payments to So,90158236,REDACTED - PERSONAL DATA,720.00,29/04/2019
Delivery Units,Adults and Communities,Direct Transfer Payments to So,90158240,REDACTED - PERSONAL DATA,"1,312.48",29/04/2019
Delivery Units,Adults and Communities,Direct Transfer Payments to So,90158243,REDACTED - PERSONAL DATA,384.00,29/04/2019
Delivery Units,Adults and Communities,Direct Transfer Payments to So,90158244,REDACTED - PERSONAL DATA,"1,431.96",29/04/2019
Delivery Units,Adults and Communities,Direct Transfer Payments to So,90158246,REDACTED - PERSONAL DATA,960.00,29/04/2019
Delivery Units,Adults and Communities,Direct Transfer Payments to So,90158248,REDACTED - PERSONAL DATA,192.32,29/04/2019
Delivery Units,Adults and Communities,Direct Transfer Payments to So,90158253,REDACTED - PERSONAL DATA,"2,088.00",29/04/2019
Delivery Units,Adults and Communities,Direct Transfer Payments to So,90158257,REDACTED - PERSONAL DATA,"1,545.48",29/04/2019
Delivery Units,Adults and Communities,Direct Transfer Payments to So,90158258,REDACTED - PERSONAL DATA,"2,048.44",29/04/2019
Delivery Units,Adults and Communities,Direct Transfer Payments to So,90158264,REDACTED - PERSONAL DATA,601.00,29/04/2019
Delivery Units,Adults and Communities,Direct Transfer Payments to So,90158273,REDACTED - PERSONAL DATA,649.08,29/04/2019
Delivery Units,Adults and Communities,Direct Transfer Payments to So,90158278,REDACTED - PERSONAL DATA,"2,240.00",29/04/2019
Delivery Units,Adults and Communities,Direct Transfer Payments to So,90158281,REDACTED - PERSONAL DATA,218.24,29/04/2019
Delivery Units,Adults and Communities,Direct Transfer Payments to So,90158283,REDACTED - PERSONAL DATA,392.00,29/04/2019
Delivery Units,Adults and Communities,Direct Transfer Payments to So,90158284,REDACTED - PERSONAL DATA,889.48,29/04/2019
Delivery Units,Adults and Communities,Direct Transfer Payments to So,90158285,REDACTED - PERSONAL DATA,231.40,29/04/2019
Delivery Units,Adults and Communities,Direct Transfer Payments to So,90158289,REDACTED - PERSONAL DATA,"1,060.00",29/04/2019
Delivery Units,Adults and Communities,Direct Transfer Payments to So,90158292,REDACTED - PERSONAL DATA,675.80,29/04/2019
Delivery Units,Adults and Communities,Direct Transfer Payments to So,90158296,REDACTED - PERSONAL DATA,321.80,29/04/2019
Delivery Units,Adults and Communities,Direct Transfer Payments to So,90158298,REDACTED - PERSONAL DATA,528.88,29/04/2019
Delivery Units,Adults and Communities,Direct Transfer Payments to So,90158304,REDACTED - PERSONAL DATA,382.20,29/04/2019
Delivery Units,Adults and Communities,Direct Transfer Payments to So,90158306,REDACTED - PERSONAL DATA,"1,582.00",29/04/2019
Delivery Units,Adults and Communities,Direct Transfer Payments to So,90158307,REDACTED - PERSONAL DATA,"4,608.04",29/04/2019
Delivery Units,Adults and Communities,Direct Transfer Payments to So,90158310,REDACTED - PERSONAL DATA,779.44,29/04/2019
Delivery Units,Adults and Communities,Direct Transfer Payments to So,90158311,REDACTED - PERSONAL DATA,"2,520.00",29/04/2019
Delivery Units,Adults and Communities,Direct Transfer Payments to So,90158317,REDACTED - PERSONAL DATA,482.72,29/04/2019
Delivery Units,Adults and Communities,Direct Transfer Payments to So,90158325,REDACTED - PERSONAL DATA,"1,260.00",29/04/2019
Delivery Units,Adults and Communities,Direct Transfer Payments to So,90158328,REDACTED - PERSONAL DATA,966.84,29/04/2019
Delivery Units,Adults and Communities,Direct Transfer Payments to So,90158329,REDACTED - PERSONAL DATA,450.52,29/04/2019
Delivery Units,Adults and Communities,Direct Transfer Payments to So,90158331,REDACTED - PERSONAL DATA,384.00,29/04/2019
Delivery Units,Adults and Communities,Direct Transfer Payments to So,90158337,REDACTED - PERSONAL DATA,"2,316.96",29/04/2019
Delivery Units,Adults and Communities,Direct Transfer Payments to So,90158341,REDACTED - PERSONAL DATA,903.92,29/04/2019
Delivery Units,Adults and Communities,Direct Transfer Payments to So,90158346,REDACTED - PERSONAL DATA,640.00,29/04/2019
Delivery Units,Adults and Communities,Direct Transfer Payments to So,90158347,REDACTED - PERSONAL DATA,312.52,29/04/2019
Delivery Units,Adults and Communities,Direct Transfer Payments to So,90158348,REDACTED - PERSONAL DATA,490.04,29/04/2019
Delivery Units,Adults and Communities,Direct Transfer Payments to So,90158351,REDACTED - PERSONAL DATA,451.92,29/04/2019
Delivery Units,Adults and Communities,Direct Transfer Payments to So,90158352,REDACTED - PERSONAL DATA,"4,093.84",29/04/2019
Delivery Units,Adults and Communities,Direct Transfer Payments to So,90158354,REDACTED - PERSONAL DATA,144.24,29/04/2019
